{"text_format":"3","workbook":"xlsx","n_sheets":13,"sheets":["PNGs","BUILDING WORKS","1HVAC","2 FIRE DETECTION","3 BUILDING WET SERVICES","4 GAS EQUIPMENT","5 LIFT","MECHANICAL MAIN SUMMARY","SITE RETICULATION","LIGHTING &POWER","CCTV & ACCESS","ELECTRICAL MAIN SUMMARY","FINAL SUMMARY"],"not_rendered":{"external_links":1,"defined_names":10},"read":"whole","date_system":"1900"}

{"sheet":"PNGs","index":0,"n_rows":524,"n_cols":15,"rows_kept":524}
["COUNTER","ISC","SECTION","BILL","PAGE NO","ITEM NO","DOC REF","PAY REF",{"$nulls":4},"QUANTITY","RATE","AMOUNT"]
[]
[1,10,1,1,1,{"$nulls":4},"BILL NO. 1"]
[]
[2,11,1,1,1,{"$nulls":4},"PRELIMINARIES AND GENERAL"]
[]
[3,12,1,1,1,null,1,null,null,"MEANING OF TERMS \"TENDER / TENDERER\""]
[]
[4,13,1,1,1,null,1,null,null,"Any reference to the words \"Tender\" or \"Tenderer\" herein and/or in any other documentation shall be construed to have the same meaning as the words \"Bid\" or \"Bidder\""]
[]
[5,14,1,1,1,null,1,null,null,"PRELIMINARIES"]
[]
[6,15,1,1,1,null,1,null,null,"The JBCC Preliminaries Code 2103, May 2005 edition for use with the JBCC Principal Building Agreement Edition 4.1 Code 2101, March 2005 is taken to be incorporated herein. The tenderer is deemed to have referred to these documents for the full intent and meaning of each clause. These clauses are referred to by number and heading only. Where standard clauses or options are not applicable to the contract such modifications or corrections as are necessary are given under each relevant clause. Where an item is not relevant to this specific contract such item is marked \"N/A\" signifying \"Not Applicable\""]
[]
[7,16,1,1,1,null,1,null,null,"PRICING OF PRELIMINARIES"]
[]
[8,17,1,1,1,null,1,null,null,"Should Option A, as set out in clause B10.3.1 hereinafter be used for the adjustment of preliminaries then each item priced is to be allocated to one or more of the three categories Fixed, Value Related or Time Related and the respective amounts entered in the spaces provided under each item"]
[]
[9,18,1,1,1,null,1,null,null,"Items not priced in these Preliminaries shall be deemed to be included elsewhere in these Bills of Quantities"]
[]
[10,19,1,1,1,null,1,null,null,"SECTION A: JBCC PRINCIPAL BUILDING AGREEMENT"]
[]
[11,20,1,1,2,null,1,null,null,"DEFINITIONS"]
[]
[12,21,1,1,2,{"v":1,"d":"1 "},1.1,null,null,"A1.0   \tDEFINITIONS AND INTERPRETATIONClause 1.0  Clause 1.1 Definition of \"Commencement Date\" is added:"]
[]
[13,22,1,1,2,null,1,null,null,"\"COMMENCEMENT DATE\" means the date that the agreement, made in terms of the Form of Offer and Acceptance, comes into effect"]
[]
[14,23,1,1,2,null,2,null,null,"Clause 1.1 Definition of \"Construction Guarantee\" is amended by replacing it with the following:"]
[]
[15,24,1,1,2,{"v":2,"d":"2 "},2,null,null,"\"CONSTRUCTION GUARANTEE\" means a guarantee at call obtained by the contractor from an institution approved by the employer in terms of the employer's construction guarantee form as selected in the schedule",null,"Item",{"v":1,"d":"1 "}]
[]
[16,25,1,1,2,null,2,null,null,"Clause 1.1 Definition of \"Construction Period\" is amended by replacing it with the following:"]
[]
[17,26,1,1,2,null,2,null,null,"\"CONSTRUCTION PERIOD\" means the period commencing on the commencement date and ending on the date of practical completion"]
[]
[18,27,1,1,2,null,2,null,null,"Clause 1.1 Definition of \"Corrupt Practice\" is added:"]
[]
[19,28,1,1,2,null,2,null,null,"\"CORRUPT PRACTICE\" means the offering, giving, receiving or soliciting of anything of value to influence the action of a public official in the procurement process or in contract execution"]
[]
[20,29,1,1,2,null,2,null,null,"Clause 1.1 Definition of \"Fraudulent Practice\" is added:"]
[]
[21,30,1,1,2,null,2,null,null,"\"FRAUDULENT PRACTICE\" means a misrepresentation of facts in order to influence a procurement process or the execution of a contract to the detriment of any tenderer and includes collusive practice among tenderers (prior to or after the tender submission) designed to establish tender prices at artificial non-competitive levels and to deprive the tenderer of the benefits of free and open competition"]
[]
[22,31,1,1,2,null,2,null,null,"Clause 1.1 Definition of \"Interest\" is amended by replacing it with the following:"]
[]
[23,32,1,1,3,null,2,null,null,"\"INTEREST\" means the interest rates applicable on this contract, whether specifically indicated in the relevant clauses or not, will be the rate as determined by the Minister of Finance, from time to time, in terms of section 80(1)(b) of the Public Finance Management Act, 1999 (Act No. 1 of 1999)"]
[]
[24,33,1,1,3,null,2,null,null,"Clause 1.1 Definition of \"Principal Agent\" is amended by replacing it with the following:"]
[]
[25,34,1,1,3,null,2,null,null,"\"PRINCIPAL AGENT\" means the person or entity appointed by the employer and named in the schedule. In the event of a principal agent not being appointed, then all the duties and obligations of a principal agent as detailed in the agreement shall be fulfilled by a representative of the employer as named in the schedule"]
[]
[26,35,1,1,3,null,2,null,null,"Clause 1.1 Definition of \"Security\" is amended by replacing it with the following:"]
[]
[27,36,1,1,3,null,2,null,null,"\"SECURITY\" means the form of security provided by the employer or contractor, as stated in the schedule, from which the contractor or employer may recover expense or loss"]
[]
[28,37,1,1,3,null,2,null,null,"Clause 1.6 is amended by replacing the words \"prepaid registered post, telefax or e-mail\" with \"prepaid registered post or telefax\""]
[]
[29,38,1,1,3,null,3,null,null,"Clause 1.6.4 is amended by replacing it with the following:"]
[]
[30,39,1,1,3,null,3,null,null,"No clause  Fixed:____________ Value related:____________ Time related:____________",null,"Item",{"v":1,"d":"1 "}]
[]
[31,40,1,1,3,null,3,null,null,"OBJECTIVE AND PREPARATION"]
[]
[32,41,1,1,3,{"v":3,"d":"3 "},3.2,null,null,"A2.0\tOFFER, ACCEPTANCE AND PERFORMANCE  Clause 2.0  Fixed:____________ Value related:____________ Time related:____________",null,"Item",{"v":1,"d":"1 "}]
[]
[33,42,1,1,4,{"v":4,"d":"4 "},3.3,null,null,"A3.0\tDOCUMENTS \tClause 3.0Clause 3.2.1 is amended by replacing\"14.1\" with \"14.0\"Clause 3.7 is amended by the addition of the following:  The contractor shall supply and keep a copy of the JBCC Series 2000 Principal Building Agreement and Preliminaries applicable to this contract on the site, to which the employer, principal agent and agents shall have access at all timesClause 3.10 is amended by replacing the second reference to \"principal agent\" with the word \"employer\" \tFixed:____________ Value related:____________ Time related:____________",null,"Item",{"v":1,"d":"1 "}]
[]
[34,43,1,1,4,{"v":5,"d":"5 "},3.4,null,null,"A4.0\tDESIGN RESPONSIBILITY \tClause 4.0Clause 4.3 is amended by replacing it with the following:No clause\tFixed:____________ Value related:____________ Time related:____________",null,"Item",{"v":1,"d":"1 "}]
[]
[35,44,1,1,4,{"v":6,"d":"6 "},3.5,null,null,"A5.0\tEMPLOYER'S AGENTS Clause 5.0 Clause 5.1.2 is amended to include clauses 32.6.3, 34.3, 34.4 and 38.5.8 Fixed:____________ Value related:____________ Time related:____________",null,"Item",{"v":1,"d":"1 "}]
[]
[36,45,1,1,4,{"v":7,"d":"7 "},4.6,null,null,"A6.0\tSITE REPRESENTATIVE Clause 6.0 Fixed:____________ Value related:____________ Time related:____________",null,"Item",{"v":1,"d":"1 "}]
[]
[37,46,1,1,5,{"v":8,"d":"8 "},4.7,null,null,"A7.0\tCOMPLIANCE WITH REGULATIONS Clause 7.0 \tNote: A separate clause has been included in Section C : Specific Preliminaries of the bills of quantities / lump sum document for the contractor to have the opportunity to price for all the requirements of the Occupational Health and Safety Act, Construction Regulations and Health and Safety SpecificationFixed:____________ Value related:____________ Time related:____________",null,"Item",{"v":1,"d":"1 "}]
[]
[38,47,1,1,5,{"v":9,"d":"9 "},4.8,null,null,"A8.0\tWORKS RISK Clause 8.0 Fixed:____________ Value related:____________ Time related:____________",null,"Item",{"v":1,"d":"1 "}]
[]
[39,48,1,1,5,{"v":10,"d":"10 "},4.9,null,null,"A9.0\tINDEMNITIES Clause 9.0 Fixed:____________ Value related:____________ Time related:____________",null,"Item",{"v":1,"d":"1 "}]
[]
[40,49,1,1,5,{"v":11,"d":"11 "},4.1,null,null,"A10.0\tWORKS INSURANCES Clause 10.0 Clause 10.0 is amended by the addition of the following clauses:",null,"Item",{"v":1,"d":"1 "}]
[]
[41,50,1,1,5,null,4,null,null,"10.5 Damage to the Works  (a) \tWithout in any way limiting the contractor's obligations in terms of the contract, the contractor shall bear the full risk of damage to and/or destruction of the works by whatever cause during construction of the works and hereby indemnifies and holds harmless the employer against any such damage. The contractor shall take such precautions and security measures and other steps for the protection and security of the works as the contractor may deem necessary"]
[]
[42,51,1,1,6,null,4,null,null,"(b)\tThe contractor shall at all times proceed immediately to remove or dispose of any debris arising from damage to or destruction of the works and to rebuild, restore, replace and/or repair the works"]
[]
[43,52,1,1,6,null,5,null,null,"(c)\tThe employer shall carry the risk of damage to or destruction of the works and materials paid for by the employer that is the result of the excepted risks as set out in 10.6"]
[]
[44,53,1,1,6,null,5,null,null,"(d)\tWhere the employer bears the risk in terms of this contract, the contractor shall, if requested to do so, reinstate any damage or destroyed portions of the works and the costs of such reinstatement shall be measured and valued in terms of 32.0 hereof"]
[]
[45,54,1,1,6,null,5,null,null,"10.6 Injury to Persons or loss of or damage to Properties  (a)\tThe contractor shall be liable for and hereby indemnifies the employer against any liability, loss, claim or proceeding whether arising in common law or by statute, consequent upon personal injuries to or the death of any person whomsoever arising out of or in the course of or caused by the execution of the works unless due to any act or negligence of any person for whose actions the employer is legally liable"]
[]
[46,55,1,1,6,null,5,null,null,"(b)\tThe contractor shall be liable for and hereby indemnifies the employer against any liability, loss, claim or proceeding consequent upon loss of or damage to any moveable or immovable or personal property or property contiguous to the site, whether belonging to or under the control of the employer or any other body or person, arising out of or in the course of or by reason of the execution of the works unless due to any act or negligence of any person for whose actions the employer is legally liable"]
[]
[47,56,1,1,7,null,5,null,null,"(c)\tThe contractor shall, upon receiving a contract instruction from the principal agent, cause the same to be made good in a perfect and workmanlike manner at his own cost and in default thereof the employer shall be entitled to cause it to be made good and to recover the cost thereof from the contractor or to deduct the same from amounts due to the contractor"]
[]
[48,57,1,1,7,null,5,null,null,"(d)\tThe contractor shall be responsible for the protection and safety of such portions of the premises placed under his control by the employer for the purpose of executing the works until the issue of the certificate of practical completion"]
[]
[49,58,1,1,7,null,5,null,null,"(e)\tWhere the execution of the works involves the risk of removal of or interference with support to adjoining properties including land or structures or any structures to be altered or added to, the contractor shall obtain adequate insurance and will remain adequately insured or insured to the specific limit stated in the contract against the death of or injury to persons or damage to such property consequent on such removal or interference with the support until such portion of the works has been completed"]
[]
[50,59,1,1,7,null,5,null,null,"(f)\tThe contractor shall at all times proceed immediately at his own cost to remove or dispose of any debris and to rebuild, restore, replace and/or repair such property and to execute the works"]
[]
[51,60,1,1,7,null,6,null,null,"10.7 High risk insurance In the event of the project being executed in a geological area classified as a \"High Risk Area\", that is an area which is subject to highly unstable subsurface conditions that might result in catastrophic ground movement evident by sinkhole or doline formation the following will apply:"]
[]
[52,61,1,1,8,null,6,null,null,"10.7.1 Damage to the works  The contractor shall, from the commencement date of the works until the date of the certificate of practical completion bear the full risk of and hereby indemnifies and holds harmless the employer against any damage to and/or destruction of the works consequent upon a catastrophic ground movement as mentioned above. The contractor shall take such precautions and security measures and other steps for the protection of the works as he may deem necessary"]
[]
[53,62,1,1,8,null,6,null,null,"When so instructed to do so by the principal agent, the contractor shall proceed immediately to remove and/or dispose of any debris arising from damage to or destruction of the works and to rebuild, restore, replace and/or repair the works, at the contractor's own costs"]
[]
[54,63,1,1,8,null,6,null,null,"10.7.2 Injury to persons or loss of or damage to property  The contractor shall be liable for and hereby indemnifies and holds harmless the employer against any liability, loss, claim or proceeding arising at any time during the period of the contract whether arising in common law or by statute, consequent upon personal injuries to or the death of any person whomsoever resulting from, arising out of, or caused by a catastrophic ground movement as mentioned above"]
[]
[55,64,1,1,8,null,6,null,null,"The contractor shall be liable for and hereby indemnifies the employer against any and all liability, loss, claim or proceeding consequent upon loss of or damage to any moveable or immovable or personal property or property contiguous to the site, whether belonging to or under the control of the employer or any other body or person whomsoever arising out of or caused by a catastrophic ground movement, as mentioned above, which occurred during the period of the contract"]
[]
[56,65,1,1,8,null,6,null,null,"10.7.3 It is the responsibility of the contractor to ensure that he has adequate insurance to cover his risk and liability as mentioned in 10.7.1 and 10.7.2. Without limiting the contractor's obligations in terms of the contract, the contractor shall, within twenty-one (21) calendar days of the commencement date but before commencement of the works, submit to the employer proof of such insurance policy, if requested to do so"]
[]
[57,66,1,1,9,null,7,null,null,"10.7.4 The employer shall be entitled to recover any and all losses and/or damages of whatever nature suffered or incurred consequent upon the contractor's default of his obligations as set out in 10.7.1; 10.7.2 and 10.7.3. Such losses or damages may be recovered from the contractor or by deducting the same from any amounts still due under this contract or under any other contract presently or hereafter existing between the employer and the contractor and for this purpose all these contracts shall be considered one indivisible whole Fixed:____________ Value related:____________ Time related:____________",null,"Item",{"v":1,"d":"1 "}]
[]
[58,67,1,1,9,{"v":12,"d":"12 "},7.11,null,null,"A11.0\tLIABILITY INSURANCES  Clause 11.0  Fixed:____________ Value related:____________ Time related:____________",null,"Item",{"v":1,"d":"1 "}]
[]
[59,68,1,1,9,{"v":13,"d":"13 "},7.12,null,null,"A12.0\tEFFECTING INSURANCES  Clause 12.0  Fixed:____________ Value related:____________ Time related:____________",null,"Item",{"v":1,"d":"1 "}]
[]
[60,69,1,1,9,{"v":14,"d":"14 "},7.13,null,null,"A13.0\tNo clause",null,"N/A"]
[]
[61,70,1,1,9,{"v":15,"d":"15 "},7.14,null,null,"A14.0\tSECURITY  Clause 14.0  Clauses 14.1 - 14.8 are amended by replacing them with the following:"]
[]
[62,71,1,1,9,null,7,null,null,"14.1 In respect of contracts with a contract sum up to R1 million, the security to be provided by the contractor to the employer will be a payment reduction of five per cent (5%) of the value certified in the payment certificate (excluding VAT)"]
[]
[63,72,1,1,9,null,7,null,null,"14.1.1 The payment reduction of the value certified in a payment certificate shall be mutatis mutandi in terms of 31.8(A)"]
[]
[64,73,1,1,10,null,7,null,null,"14.1.2 The employer shall be entitled to recover expense and loss from the payment reduction in terms of 33.0 provided that the employer complies with the provisions of 33.4 in which event the employer's entitlement shall take precedence over his obligations to refund the payment reduction security or portions thereof to the contractor"]
[]
[65,74,1,1,10,null,8,null,null,"14.2 In respect of contracts with a contract sum above R1 million, the contractor shall have the right to select the security to be provided in terms of 14.3, 14.4, 14.5, 14.6, or 14.7 as stated in the schedule. Such security shall be provided to the employer within twenty-one (21) calendar days from commencement date. Should the contractor fail to select the security to be provided or should the contractor fail to provide the employer with the selected security within twenty-one (21) calendar days from commencement date, the security in terms of 14.7 shall be deemed to have been selected"]
[]
[66,75,1,1,10,null,8,null,null,"14.3 Where security as a cash deposit of ten per cent (10%) of the contract sum (excluding VAT) has been selected:"]
[]
[67,76,1,1,10,null,8,null,null,"14.3.1 The contractor shall furnish the employer with a cash deposit equal in value to ten per cent (10%) of the contract sum (excluding VAT) within twenty-one (21) calendar days from commencement date"]
[]
[68,77,1,1,10,null,8,null,null,"14.3.2 Within twenty-one (21) calendar days of the date of practical completion of the works the employer shall reduce the cash deposit to an amount equal to three per cent (3%) of the contract value (excluding VAT), and refund the balance to the contractor"]
[]
[69,78,1,1,10,null,8,null,null,"14.3.3 Within twenty-one (21) calendar days of the date of final completion of the works the employer shall reduce the cash deposit to an amount equal to one per cent (1%) of the contract value (excluding VAT) and refund the balance to the contractor"]
[]
[70,79,1,1,10,null,8,null,null,"14.3.4 On the date of payment of the amount in the final payment certificate, the employer shall refund the remainder of the cash deposit to the contractor"]
[]
[71,80,1,1,11,null,8,null,null,"14.3.5 The employer shall be entitled to recover expense and loss from the cash deposit in terms of 33.0 provided that the employer complies with the provisions of 33.4 in which event the employer's entitlement shall take precedence over his obligations to refund the cash deposit security or portions thereof to the contractor"]
[]
[72,81,1,1,11,null,8,null,null,"14.3.6 The parties expressly agree that neither the employer nor the contractor shall be entitled to cede the rights to the deposit to any third party"]
[]
[73,82,1,1,11,null,8,null,null,"14.4 Where security as a variable construction guarantee of ten percent (10%) of the contract sum (excluding VAT) has been selected:"]
[]
[74,83,1,1,11,null,8,null,null,"14.4.1 The contractor shall furnish the employer with an acceptable variable construction guarantee equal in value to ten per cent (10%) of the contract sum (excluding VAT) within twenty-one (21) calendar days from commencement date"]
[]
[75,84,1,1,11,null,8,null,null,"14.4.2 The variable construction guarantee shall reduce and expire in terms of the Variable Construction Guarantee form included in the invitation to tender"]
[]
[76,85,1,1,11,null,8,null,null,"14.4.3 The employer shall return the variable construction guarantee to the contractor within fourteen (14) calendar days of it expiring"]
[]
[77,86,1,1,11,null,9,null,null,"14.4.4 Where the employer has a right of recovery against the contractor in terms of 33.0, the employer shall issue a written demand in terms of the variable construction guarantee"]
[]
[78,87,1,1,11,null,9,null,null,"14.5 Where security as a fixed construction guarantee of five per cent (5%) of the contract sum (excluding VAT) and a five per cent (5%) payment reduction of the value certified in the payment certificate (excluding VAT) has been selected:"]
[]
[79,88,1,1,11,null,9,null,null,"14.5.1 The contractor shall furnish a fixed construction guarantee to the employer equal in value to five per cent (5%) of the contract sum (excluding VAT)"]
[]
[80,89,1,1,11,null,9,null,null,"14.5.2 The fixed construction guarantee shall come into force on the date of issue and shall expire on the date of the last certificate of practical completion"]
[]
[81,90,1,1,12,null,9,null,null,"14.5.3 The employer shall return the fixed construction guarantee to the contractor within fourteen (14) calendar days of it expiring"]
[]
[82,91,1,1,12,null,9,null,null,"14.5.4 The payment reduction of the value certified in a payment certificate shall be in terms of 31.8 (A) and 34.8"]
[]
[83,92,1,1,12,null,9,null,null,"14.5.5 Where the employer has a right of recovery against the contractor in terms of 33.0, the employer shall be entitled to issue a written demand in terms of the fixed construction guarantee or may recover from the payment reduction or may do both"]
[]
[84,93,1,1,12,null,9,null,null,"14.6 Where security as a cash deposit of five per cent (5%) of the contract sum (excluding VAT) and a payment reduction of five per cent (5%) of the value certified in the payment certificate (excluding VAT) has been selected:"]
[]
[85,94,1,1,12,null,9,null,null,"14.6.1 The contractor shall furnish the employer with a cash deposit equal in value to five per cent (5%) of the contract sum (excluding VAT) within twenty-one (21) calendar days from commencement date"]
[]
[86,95,1,1,12,null,9,null,null,"14.6.2 Within twenty-one (21) calendar days of the date of practical completion of the works the employer shall refund the cash deposit in total to the contractor"]
[]
[87,96,1,1,12,null,9,null,null,"14.6.3 The payment reduction of the value certified in a payment certificate shall be mutatis mutandi in terms of 31.8(A)"]
[]
[88,97,1,1,12,null,9,null,null,"14.6.4 Where the employer has a right of recovery against the contractor in terms of 33.0, the employer may issue a written notice in terms of 33.4 or may recover from the payment reduction or may do both"]
[]
[89,98,1,1,12,null,9,null,null,"14.7 Where security as a payment reduction of ten per cent (10%) of the value certified in the payment certificate (excluding VAT) has been selected:"]
[]
[90,99,1,1,12,null,9,null,null,"14.7.1 The payment reduction of the value certified in a payment certificate shall be mutatis mutandi in terms of 31.8(B)"]
[]
[91,100,1,1,13,null,10,null,null,"14.7.2 The employer shall be entitled to recover expense and loss from the payment reduction in terms of 33.0 provided that the employer complies with the provisions of 33.4 in which event the employer's entitlement shall take precedence over his obligations to refund the payment reduction or portions thereof to the contractor"]
[]
[92,101,1,1,13,null,10,null,null,"14.8 Payments made by the guarantor to the employer in terms of the fixed or variable construction guarantee shall not prejudice the rights of the employer or contractor in terms of this agreement"]
[]
[93,102,1,1,13,null,10,null,null,"14.9 Should the contractor fail to furnish the security in terms of 14.2, the employer, in his sole discretion and without notification to the contractor, is entitled to change the contractor's selected form of security to that of a ten per cent (10%) payment reduction of the value certified in the payment certificate (excluding VAT), whereafter 14.7 shall be applicable  Fixed:____________ Value related:____________ Time related:____________",null,"Item",{"v":1,"d":"1 "}]
[]
[94,103,1,1,13,null,10,null,null,"EXECUTION"]
[]
[95,104,1,1,13,{"v":16,"d":"16 "},10.15,null,null,"A15.0\tPREPARATION FOR AND EXECUTION OF THE WORKS  Clause 15.0  Clause 15.1.1 is amended by replacing it with:  No clause  Clause 15.1.2 is amended by replacing it with:  The security selected in terms of 14.0"]
[]
[96,105,1,1,13,null,10,null,null,"Clause 15.1 is amended by the addition of the following clause:  15.1.4 An acceptable health and safety plan, required in terms of the Occupational Health and Safety Act, 1993 (Act 85 of 1993), within twenty-one (21) calendar days of commencement date"]
[]
[97,106,1,1,13,null,10,null,null,"Clause 15.2.1 is amended by replacing it with the following clause:"]
[]
[98,107,1,1,14,null,10,null,null,"Give the contractor possession of the site within ten (10) working days of the contractor complying with the terms of 15.1.4  Fixed:____________ Value related:____________ Time related:____________",null,"Item",{"v":1,"d":"1 "}]
[]
[99,108,1,1,14,{"v":17,"d":"17 "},10.16,null,null,"A16.0\tACCESS TO THE WORKS  Clause 16.0  Fixed:____________ Value related:____________ Time related:____________",null,"Item",{"v":1,"d":"1 "}]
[]
[100,109,1,1,14,{"v":18,"d":"18 "},11.17,null,null,"A17.0\tCONTRACT INSTRUCTIONS  Clause 17.0  Clause 17.1.11 is amended by deleting the words \"and the appointment of nominated and selected subcontractors\"  Fixed:____________ Value related:____________ Time related:____________",null,"Item",{"v":1,"d":"1 "}]
[]
[101,110,1,1,14,{"v":19,"d":"19 "},11.18,null,null,"A18.0\tSETTING OUT OF THE WORKS  Clause 18.0  Fixed:____________ Value related:____________ Time related:____________",null,"Item",{"v":1,"d":"1 "}]
[]
[102,111,1,1,14,{"v":20,"d":"20 "},11.19,null,null,"A19.0\tASSIGNMENT  Clause 19.0  Fixed:____________ Value related:____________ Time related:____________",null,"Item",{"v":1,"d":"1 "}]
[]
[103,112,1,1,15,{"v":21,"d":"21 "},11.2,null,null,"A20.0\tNOMINATED SUBCONTRACTORS  Clause 20.0  Clause 20.1.3 is amended by replacing it with the following:  No clause  Note: See item B9.1 hereinafter for adjustment of attendance on nominated subcontractors executing work allowed for under provisional sums  Fixed:____________ Value related:____________ Time related:____________",null,"Item",{"v":1,"d":"1 "}]
[]
[104,113,1,1,15,{"v":22,"d":"22 "},11.21,null,null,"A21.0\tSELECTED SUBCONTRACTORS  Clause 21.0  Clause 21 is amended by replacing it with:  No clause  Fixed:____________ Value related:____________ Time related:____________",null,"Item",{"v":1,"d":"1 "}]
[]
[105,114,1,1,15,{"v":23,"d":"23 "},11.22,null,null,"A22.0\tEMPLOYER'S DIRECT CONTRACTORS  Clause 22.0  Fixed:____________ Value related:____________ Time related:____________",null,"Item",{"v":1,"d":"1 "}]
[]
[106,115,1,1,15,{"v":24,"d":"24 "},12.23,null,null,"A23.0\tCONTRACTOR'S DOMESTIC SUBCONTRACTORS  Clause 23.0  Fixed:____________ Value related:____________ Time related:____________",null,"Item",{"v":1,"d":"1 "}]
[]
[107,116,1,1,15,null,12,null,null,"COMPLETION"]
[]
[108,117,1,1,15,{"v":25,"d":"25 "},12.24,null,null,"A24.0\tPRACTICAL COMPLETION  Clause 24.0  Fixed:____________ Value related:____________ Time related:____________",null,"Item",{"v":1,"d":"1 "}]
[]
[109,118,1,1,16,{"v":26,"d":"26 "},12.25,null,null,"A25.0\tWORKS COMPLETION  Clause 25.0  Fixed:____________ Value related:____________ Time related:____________",null,"Item",{"v":1,"d":"1 "}]
[]
[110,119,1,1,16,{"v":27,"d":"27 "},12.26,null,null,"A26.0\tFINAL COMPLETION  Clause 26.0  Clause 26.1.2 is amended by inserting \"#\" next to 26.1.2  Fixed:____________ Value related:____________ Time related:____________",null,"Item",{"v":1,"d":"1 "}]
[]
[111,120,1,1,16,{"v":28,"d":"28 "},12.27,null,null,"A27.0\tLATENT DEFECTS LIABILITY PERIOD  Clause 27.0  Fixed:____________ Value related:____________ Time related:____________",null,"Item",{"v":1,"d":"1 "}]
[]
[112,121,1,1,16,{"v":29,"d":"29 "},12.28,null,null,"A28.0\tSECTIONAL COMPLETION  Clause 28.0  Fixed:____________ Value related:____________ Time related:____________",null,"Item",{"v":1,"d":"1 "}]
[]
[113,122,1,1,16,{"v":30,"d":"30 "},12.29,null,null,"A29.0\tREVISION OF DATE FOR PRACTICAL COMPLETION  Clause 29.0  Clause 29.2.5 is amended by replacing it with:  No clause  Fixed:____________ Value related:____________ Time related:____________",null,"Item",{"v":1,"d":"1 "}]
[]
[114,123,1,1,16,{"v":31,"d":"31 "},13.3,null,null,"A30.0\tPENALTY FOR NON-COMPLETION  Clause 30.0  Fixed:____________ Value related:____________ Time related:____________",null,"Item",{"v":1,"d":"1 "}]
[]
[115,124,1,1,17,null,13,null,null,"PAYMENT"]
[]
[116,125,1,1,17,{"v":32,"d":"32 "},13.31,null,null,"A31.0\tINTERIM PAYMENT TO THE CONTRACTOR  Clause 31.0"]
[]
[117,126,1,1,17,null,13,null,null,"Clause 31.5.2 is amended by replacing \"14.7.1\" with \"14.0\""]
[]
[118,127,1,1,17,null,13,null,null,"Clause 31.8 is amended by replacing it with the following two alternative clauses:"]
[]
[119,128,1,1,17,null,13,null,null,"Alternative A  31.8(A) Where a security is selected in terms of 14.1; 14.5 or 14.6, the value of the works in terms of 31.4.1 and materials and goods in terms of 31.4.2 shall be certified in full. The value certified shall be subject to the following percentage adjustments:"]
[]
[120,129,1,1,17,null,13,null,null,"31.8(A).1 Ninety-five per cent (95%) of such value in interim payment certificates issued up to the date of practical completion"]
[]
[121,130,1,1,17,null,13,null,null,"31.8(A).2 Ninety-seven per cent (97%) of such value in interim payment certificates issued on the date of practical completion and up to but excluding the date of final completion"]
[]
[122,131,1,1,17,null,13,null,null,"31.8(A).3 Ninety-nine per cent (99%) of such value in interim payment certificates issued on the date of final completion and up to but excluding the final payment certificate in terms of 34.6"]
[]
[123,132,1,1,17,null,13,null,null,"31.8(A).4 One hundred per cent (100%) of such value in the final payment certificate in terms of 34.6 except where the amount certified is in favour of the employer. In such an event the payment reduction shall remain at the adjustment level applicable to the final payment certificate"]
[]
[124,133,1,1,17,null,13,null,null,"Alternative B"]
[]
[125,134,1,1,17,null,13,null,null,"31.8(B) Where security as a payment reduction in terms of 14.7 has been selected, the value of the works in terms of 31.4.1 and materials and goods in terms of 31.4.2 shall be certified in full. The value certified shall be subject to the following percentage adjustments:"]
[]
[126,135,1,1,18,null,13,null,null,"31.8(B).1 Ninety per cent (90%) of such value in interim payment certificates issued up to the date of practical completion"]
[]
[127,136,1,1,18,null,14,null,null,"31.8(B).2 Ninety-seven per cent (97%) of such value in interim payment certificates issued on the date of practical completion and up to but excluding the date of final completion"]
[]
[128,137,1,1,18,null,14,null,null,"31.8(B).3 Ninety-nine per cent (99%) of such value in interim payment certificates issued on the date of final completion and up to but excluding the final payment certificate in terms of 34.6"]
[]
[129,138,1,1,18,null,14,null,null,"31.8(B).4 One hundred per cent (100%) of such value in the final payment certificate in terms of 34.6 except where the amount certified is in favour of the employer. In such an event the payment reduction shall remain at the adjustment level applicable to the final payment certificate"]
[]
[130,139,1,1,18,null,14,null,null,"Clause 31.12 is amended by deleting the following:"]
[]
[131,140,1,1,18,null,14,null,null,"Payment shall be subject to the employer giving the contractor a tax invoice for the amount due  Fixed:____________ Value related:____________ Time related:____________",null,"Item",{"v":1,"d":"1 "}]
[]
[132,141,1,1,18,{"v":33,"d":"33 "},14.32,null,null,"A32.0\tADJUSTMENT TO THE CONTRACT VALUE  Clause 32.0  Clauses 32.5.1, 32.5.4 and 32.5.7 are amended by the addition of the following at the end of the sentence:  \"due to no fault of the contractor\"  Fixed:____________ Value related:____________ Time related:____________",null,"Item",{"v":1,"d":"1 "}]
[]
[133,142,1,1,18,{"v":34,"d":"34 "},14.33,null,null,"A33.0\tRECOVERY OF EXPENSE AND LOSS  Clause 33.0  Fixed:____________ Value related:____________ Time related:____________",null,"Item",{"v":1,"d":"1 "}]
[]
[134,143,1,1,19,{"v":35,"d":"35 "},15.34,null,null,"A34.0\tFINAL ACCOUNT AND FINAL PAYMENT  Clause 34.0  Clause 34.1 is amended by removing \"#\" next to 34.1  Clause 34.2 is amended by inserting \"#\" next to 34.2  Clause 34.8 is amended by deleting the words \"where security as a fixed construction guarantee in terms of 14.4 has been selected or where payment reduction has been applied in terms of 14.7.1\"  Clause 34.13 is amended by replacing \"seven (7) calendar days\" with \"twenty-one (21) calendar days\" and deleting the words \"subject to the employer giving the contractor a tax invoice for the amount due\"  Fixed:____________ Value related:____________ Time related:____________",null,"Item",{"v":1,"d":"1 "}]
[]
[135,144,1,1,19,{"v":36,"d":"36 "},15.35,null,null,"A35.0\tPAYMENT TO OTHER PARTIES  Clause 35.0  Fixed:____________ Value related:____________ Time related:____________",null,"Item",{"v":1,"d":"1 "}]
[]
[136,145,1,1,20,null,15,null,null,"CANCELLATION"]
[]
[137,146,1,1,20,{"v":37,"d":"37 "},15.36,null,null,"A36.0\tCANCELLATION BY EMPLOYER - CONTRACTOR'S DEFAULT \t  Clause 36.0  Clause 36.1 is amended by the addition of the following clauses:  36.1.3 refuses or neglects to comply strictly with any of the conditions of contract  36.1.4 estate being sequestrated, liquidated or surrendered in terms of the insolvency laws in force within the Republic of South Africa  36.1.5 in the judgement of the employer, has engaged in corrupt or fraudulent practices in competing for or in executing the contract  Clause 36.3 is amended by removing the reference to \"No clause\" and replacing the words \"principal agent\" with \"employer\""]
[]
[138,147,1,1,20,null,15,null,null,"Clause 36.0 is amended by the addition of the following clause:"]
[]
[139,148,1,1,20,null,16,null,null,"36.7 Notwithstanding any clause to the contrary, on cancellation of this agreement either by the employer or the contractor; or for any reason whatsoever, the contractor shall on written instruction, discontinue with the works on a date stated and withdraw himself from the site. The contractor shall not be entitled to refuse to withdraw from the works on the grounds of any lien or right of retention or on the grounds of any other right whatsoever  Fixed:____________ Value related:____________ Time related:____________",null,"Item",{"v":1,"d":"1 "}]
[]
[140,149,1,1,20,{"v":38,"d":"38 "},16.37,null,null,"A37.0\tCANCELLATION BY EMPLOYER - LOSS AND DAMAGE  Clause 37.0  Clause 37.3.5 is amended by replacing \"ninety (90)\" with \"one hundred and twenty (120)\""]
[]
[141,150,1,1,21,null,16,null,null,"Clause 37.0 is amended by the addition of the following clause:  37.5 Notwithstanding any clause to the contrary, on cancellation of this agreement either by the employer or the contractor; or for any reason whatsoever, the contractor shall on written instruction, discontinue with the works on a date stated and withdraw himself from the site. The contractor shall not be entitled to refuse to withdraw from the works on the grounds of any lien or right of retention or on the grounds of any other right whatsoever  Fixed:____________ Value related:____________ Time related:____________",null,"Item",{"v":1,"d":"1 "}]
[]
[142,151,1,1,21,{"v":39,"d":"39 "},16.38,null,null,"A38.0\tCANCELLATION BY CONTRACTOR - EMPLOYER'S DEFAULT  Clause 38.0  Clause 38.5.4 is amended by replacing \"ninety (90)\" with \"one hundred and twenty (120)\"  Clause 38.0 is amended by the addition of the following clause:"]
[]
[143,152,1,1,21,null,16,null,null,"38.7 Notwithstanding any clause to the contrary, on cancellation of this agreement either by the employer or the contractor; or for any reason whatsoever, the contractor shall on written instruction, discontinue with the works on a date stated and withdraw himself from the site. The contractor shall not be entitled to refuse to withdraw from the works on the grounds of any lien or right of retention or on the grounds of any other right whatsoever  Fixed:____________ Value related:____________ Time related:____________",null,"Item",{"v":1,"d":"1 "}]
[]
[144,153,1,1,22,{"v":40,"d":"40 "},17.39,null,null,"A39.0\tCANCELLATION - CESSATION OF THE WORKS  Clause 39.0  Clause 39.3.5 is amended by the addition of the following at the end of the sentence:  \"within one hundred and twenty (120) working days of completion of such a report\"  Fixed:____________ Value related:____________ Time related:____________",null,"Item",{"v":1,"d":"1 "}]
[]
[145,154,1,1,22,null,17,null,null,"DISPUTE"]
[]
[146,155,1,1,22,{"v":41,"d":"41 "},17.4,null,null,"A40.0\tDISPUTE SETTLEMENT Clause 40.0 \tClause 40.2.2 is amended by replacing \"one (1) year\" with \"three (3) years\"  Clause 40.6 is amended by removing the reference to:  No clause \tClause 40.7.1 is amended by replacing \"(10)\" with \"(15)\" and by the addition of the following: \tWhether or not mediation resolves the dispute, the parties shall bear their own costs concerning the mediation and equally share the costs of the mediator and related costs \tFixed:____________ Value related:____________ Time related:____________",null,"Item",{"v":1,"d":"1 "}]
[]
[147,156,1,1,22,null,17,null,null,"SUBSTITUTE PROVISIONS"]
[]
[148,157,1,1,22,{"v":42,"d":"42 "},17.41,null,null,"A41.0\tSTATE CLAUSES  Clause 41.0  Fixed:____________ Value related:____________ Time related:____________",null,"Item",{"v":1,"d":"1 "}]
[]
[149,158,1,1,23,null,17,null,null,"CONTRACT VARIABLES"]
[]
[150,159,1,1,23,{"v":43,"d":"43 "},17.42,null,null,"A42.0\tTHE SCHEDULE Clause 42.0Tenderers are referred to the Contract Data (EC) for variables pertaining to this contractFixed:____________ Value related:____________ Time related:____________",null,"Item",{"v":1,"d":"1 "}]
[]
[151,160,1,1,23,null,18,null,null,"SECTION B: JBCC PRELIMINARIES"]
[]
[152,161,1,1,23,null,18,null,null,"B1.0\tDEFINITIONS AND INTERPRETATION"]
[]
[153,162,1,1,23,{"v":44,"d":"44 "},18.43,null,null,"B1.1\tDefinitions and interpretation  See also clause A1.0 of Section A for additional and/or amended definitions which shall apply equally to this Section  Fixed:____________ Value related:____________ Time related:____________",null,"Item",{"v":1,"d":"1 "}]
[]
[154,163,1,1,23,null,18,null,null,"B2.0\tDOCUMENTS"]
[]
[155,164,1,1,23,{"v":45,"d":"45 "},18.44,null,null,"B2.1\tChecking of documents  Fixed:____________ Value related:____________ Time related:____________",null,"Item",{"v":1,"d":"1 "}]
[]
[156,165,1,1,23,{"v":46,"d":"46 "},18.45,null,null,"B2.2\tProvisional bills of quantities  Fixed:____________ Value related:____________ Time related:____________",null,"Item",{"v":1,"d":"1 "}]
[]
[157,166,1,1,23,{"v":47,"d":"47 "},18.46,null,null,"B2.3\tAvailability of construction documentation  Fixed:____________ Value related:____________ Time related:____________",null,"Item",{"v":1,"d":"1 "}]
[]
[158,167,1,1,23,{"v":48,"d":"48 "},18.47,null,null,"B2.4\tInterests of agents  Fixed:____________ Value related:____________ Time related:____________",null,"Item",{"v":1,"d":"1 "}]
[]
[159,168,1,1,24,{"v":49,"d":"49 "},18.48,null,null,"B2.5\tPriced documents  Fixed:____________ Value related:____________ Time related:____________",null,"Item",{"v":1,"d":"1 "}]
[]
[160,169,1,1,24,{"v":50,"d":"50 "},18.49,null,null,"B2.6\tTender submission  Clause 2.6 is amended by replacing \"JBCC Form of Tender\" with \"Form of Offer and Acceptance (EC)\"  Fixed:____________ Value related:____________ Time related:____________",null,"Item",{"v":1,"d":"1 "}]
[]
[161,170,1,1,24,null,18,null,null,"B3.0\tTHE SITE"]
[]
[162,171,1,1,24,{"v":51,"d":"51 "},18.5,null,null,"B3.1\tDefined works area  Fixed:____________ Value related:____________ Time related:____________",null,"Item",{"v":1,"d":"1 "}]
[]
[163,172,1,1,24,{"v":52,"d":"52 "},18.51,null,null,"B3.2\tGeotechnical investigation  Fixed:____________ Value related:____________ Time related:____________",null,"Item",{"v":1,"d":"1 "}]
[]
[164,173,1,1,24,{"v":53,"d":"53 "},19.52,null,null,"B3.3\tInspection of the site  Fixed:____________ Value related:____________ Time related:____________",null,"Item",{"v":1,"d":"1 "}]
[]
[165,174,1,1,24,{"v":54,"d":"54 "},19.53,null,null,"B3.4\tExisting premises occupied  Fixed:____________ Value related:____________ Time related:____________",null,"Item",{"v":1,"d":"1 "}]
[]
[166,175,1,1,24,{"v":55,"d":"55 "},19.54,null,null,"B3.5\tPrevious work - dimensional accuracy  Fixed:____________ Value related:____________ Time related:____________",null,"Item",{"v":1,"d":"1 "}]
[]
[167,176,1,1,24,{"v":56,"d":"56 "},19.55,null,null,"B3.6\tPrevious work - defects  Fixed:____________ Value related:____________ Time related:____________",null,"Item",{"v":1,"d":"1 "}]
[]
[168,177,1,1,24,{"v":57,"d":"57 "},19.56,null,null,"B3.7\tServices - known  Fixed:____________ Value related:____________ Time related:____________",null,"Item",{"v":1,"d":"1 "}]
[]
[169,178,1,1,25,{"v":58,"d":"58 "},19.57,null,null,"B3.8\tServices - unknown  Fixed:____________ Value related:____________ Time related:____________",null,"Item",{"v":1,"d":"1 "}]
[]
[170,179,1,1,25,{"v":59,"d":"59 "},19.58,null,null,"B3.9\tProtection of trees  Fixed:____________ Value related:____________ Time related:____________",null,"Item",{"v":1,"d":"1 "}]
[]
[171,180,1,1,25,{"v":60,"d":"60 "},19.59,null,null,"B3.10\tArticles of value  Fixed:____________ Value related:____________ Time related:___________",null,"Item",{"v":1,"d":"1 "}]
[]
[172,181,1,1,25,{"v":61,"d":"61 "},19.6,null,null,"B3.11\tInspection of adjoining properties  Fixed:____________ Value related:____________ Time related:____________",null,"Item",{"v":1,"d":"1 "}]
[]
[173,182,1,1,25,null,19,null,null,"B4.0\tMANAGEMENT OF CONTRACT"]
[]
[174,183,1,1,25,{"v":62,"d":"62 "},19.61,null,null,"B4.1\tManagement of the works  Fixed:____________ Value related:____________ Time related:____________",null,"Item",{"v":1,"d":"1 "}]
[]
[175,184,1,1,25,{"v":63,"d":"63 "},19.62,null,null,"B4.2\tProgramme for the works  Fixed:____________ Value related:____________ Time related:____________",null,"Item",{"v":1,"d":"1 "}]
[]
[176,185,1,1,25,{"v":64,"d":"64 "},19.63,null,null,"B4.3\tProgress meetings  Fixed:____________ Value related:____________ Time related:____________",null,"Item",{"v":1,"d":"1 "}]
[]
[177,186,1,1,25,{"v":65,"d":"65 "},20.64,null,null,"B4.4\tTechnical meetings  Fixed:____________ Value related:____________ Time related:____________",null,"Item",{"v":1,"d":"1 "}]
[]
[178,187,1,1,25,{"v":66,"d":"66 "},20.65,null,null,"B4.5\tLabour and plant records  Fixed:____________ Value related:____________ Time related:____________",null,"Item",{"v":1,"d":"1 "}]
[]
[179,188,1,1,26,null,20,null,null,"B5.0\tSAMPLES, SHOP DRAWINGS AND MANUFACTURERS\"€™ INSTRUCTIONS"]
[]
[180,189,1,1,26,{"v":67,"d":"67 "},20.66,null,null,"B5.1\tSamples of materials  Fixed:____________ Value related:____________ Time related:____________",null,"Item",{"v":1,"d":"1 "}]
[]
[181,190,1,1,26,{"v":68,"d":"68 "},20.67,null,null,"B5.2\tWorkmanship samples  Fixed:____________ Value related:____________ Time related:____________",null,"Item",{"v":1,"d":"1 "}]
[]
[182,191,1,1,26,{"v":69,"d":"69 "},20.68,null,null,"B5.3\tShop drawings  Fixed:____________ Value related:____________ Time related:____________",null,"Item",{"v":1,"d":"1 "}]
[]
[183,192,1,1,26,{"v":70,"d":"70 "},20.69,null,null,"B5.4\tCompliance with manufacturers' instructions  Fixed:____________ Value related:____________ Time related:____________",null,"Item",{"v":1,"d":"1 "}]
[]
[184,193,1,1,26,null,20,null,null,"B6.0\tTEMPORARY WORKS AND PLANT"]
[]
[185,194,1,1,26,{"v":71,"d":"71 "},20.7,null,null,"B6.1\tDeposits and fees  Fixed:____________ Value related:____________ Time related:____________",null,"Item",{"v":1,"d":"1 "}]
[]
[186,195,1,1,26,{"v":72,"d":"72 "},20.71,null,null,"B6.2\tEnclosure of the works  Fixed:____________ Value related:____________ Time related:____________",null,"Item",{"v":1,"d":"1 "}]
[]
[187,196,1,1,26,{"v":73,"d":"73 "},20.72,null,null,"B6.3\tAdvertising  Fixed:____________ Value related:____________ Time related:____________",null,"Item",{"v":1,"d":"1 "}]
[]
[188,197,1,1,26,{"v":74,"d":"74 "},20.73,null,null,"B6.4\tPlant, equipment, sheds and offices  Fixed:____________ Value related:____________ Time related:____________",null,"Item",{"v":1,"d":"1 "}]
[]
[189,198,1,1,26,{"v":75,"d":"75 "},20.74,null,null,"B6.5\tMain notice board  Fixed:____________ Value related:____________ Time related:____________",null,"Item",{"v":1,"d":"1 "}]
[]
[190,199,1,1,27,{"v":76,"d":"76 "},21.75,null,null,"B6.6\tSubcontractors' notice board  Fixed:____________ Value related:____________ Time related:____________",null,"Item",{"v":1,"d":"1 "}]
[]
[191,200,1,1,27,null,21,null,null,"B7.0\tTEMPORARY SERVICES"]
[]
[192,201,1,1,27,{"v":77,"d":"77 "},21.76,null,null,"B7.1\tLocation  Fixed:____________ Value related:____________ Time related:____________",null,"Item",{"v":1,"d":"1 "}]
[]
[193,202,1,1,27,{"v":78,"d":"78 "},21.77,null,null,"B7.2\tWater  Fixed:____________ Value related:____________ Time related:____________",null,"Item",{"v":1,"d":"1 "}]
[]
[194,203,1,1,27,{"v":79,"d":"79 "},21.78,null,null,"B7.3\tElectricity  Fixed:____________ Value related:____________ Time related:____________",null,"Item",{"v":1,"d":"1 "}]
[]
[195,204,1,1,27,{"v":80,"d":"80 "},21.79,null,null,"B7.4\tTelecommunication facilities  Fixed:____________ Value related:____________ Time related:____________",null,"Item",{"v":1,"d":"1 "}]
[]
[196,205,1,1,27,{"v":81,"d":"81 "},21.8,null,null,"B7.5\tAblution facilities  Fixed:____________ Value related:____________ Time related:____________",null,"Item",{"v":1,"d":"1 "}]
[]
[197,206,1,1,27,null,21,null,null,"B8.0\tPRIME COST AMOUNTS"]
[]
[198,207,1,1,27,{"v":82,"d":"82 "},21.81,null,null,"B8.1\tResponsibility for prime cost amounts  Fixed:____________ Value related:____________ Time related:____________",null,"Item",{"v":1,"d":"1 "}]
[]
[199,208,1,1,27,null,21,null,null,"B9.0\tATTENDANCE ON N/S SUBCONTRACTORS"]
[]
[200,209,1,1,27,{"v":83,"d":"83 "},21.82,null,null,"B9.1\tGeneral attendance  Fixed:____________ Value related:____________ Time related:____________",null,"Item",{"v":1,"d":"1 "}]
[]
[201,210,1,1,28,{"v":84,"d":"84 "},21.83,null,null,"B9.2\tSpecial attendance  Fixed:____________ Value related:____________ Time related:____________",null,"Item",{"v":1,"d":"1 "}]
[]
[202,211,1,1,28,{"v":85,"d":"85 "},21.84,null,null,"B9.3\tCommissioning - fuel, water and electricity  Fixed:____________ Value related:____________ Time related:____________",null,"Item",{"v":1,"d":"1 "}]
[]
[203,212,1,1,28,null,22,null,null,"B10.0\tFINANCIAL ASPECTS"]
[]
[204,213,1,1,28,{"v":86,"d":"86 "},22.85,null,null,"B10.1\tStatutory taxes, duties and levies  Fixed:____________ Value related:____________ Time related:____________",null,"Item",{"v":1,"d":"1 "}]
[]
[205,214,1,1,28,{"v":87,"d":"87 "},22.86,null,null,"B10.2\tPayment for preliminaries  Fixed:____________ Value related:____________ Time related:____________",null,"Item",{"v":1,"d":"1 "}]
[]
[206,215,1,1,28,{"v":88,"d":"88 "},22.87,null,null,"B10.3\tAdjustment of preliminariesClauses B10.3.1 and B10.3.2 are amended by replacing \"within fifteen (15) working days of taking possession of the site\" with \"when submitting his priced bills of quantities / lump sum document\" Fixed:____________ Value related:____________ Time related:____________",null,"Item",{"v":1,"d":"1 "}]
[]
[207,216,1,1,28,{"v":89,"d":"89 "},22.88,null,null,"B10.4\tPayment certificate cash flow  Fixed:____________ Value related:____________ Time related:____________",null,"Item",{"v":1,"d":"1 "}]
[]
[208,217,1,1,28,null,22,null,null,"B11.0\tGENERAL"]
[]
[209,218,1,1,28,{"v":90,"d":"90 "},22.89,null,null,"B11.1\tProtection of the works  Fixed:____________ Value related:____________ Time related:____________",null,"Item",{"v":1,"d":"1 "}]
[]
[210,219,1,1,28,{"v":91,"d":"91 "},22.9,null,null,"B11.2\tProtection / isolation of existing / sectionally occupied works  Fixed:____________ Value related:____________ Time related:____________",null,"Item",{"v":1,"d":"1 "}]
[]
[211,220,1,1,29,{"v":92,"d":"92 "},22.91,null,null,"B11.3\tSecurity of the works  Fixed:____________ Value related:____________ Time related:____________",null,"Item",{"v":1,"d":"1 "}]
[]
[212,221,1,1,29,{"v":93,"d":"93 "},22.92,null,null,"B11.4\tNotice before covering work  Fixed:____________ Value related:____________ Time related:____________",null,"Item",{"v":1,"d":"1 "}]
[]
[213,222,1,1,29,{"v":94,"d":"94 "},22.93,null,null,"B11.5\tDisturbance  Fixed:____________ Value related:____________ Time related:____________",null,"Item",{"v":1,"d":"1 "}]
[]
[214,223,1,1,29,{"v":95,"d":"95 "},22.94,null,null,"B11.6\tEnvironmental disturbance  Fixed:____________ Value related:____________ Time related:____________",null,"Item",{"v":1,"d":"1 "}]
[]
[215,224,1,1,29,{"v":96,"d":"96 "},23.95,null,null,"B11.7\tWorks cleaning and clearing  Fixed:____________ Value related:____________ Time related:____________",null,"Item",{"v":1,"d":"1 "}]
[]
[216,225,1,1,29,{"v":97,"d":"97 "},23.96,null,null,"B11.8\tVermin  Fixed:____________ Value related:____________ Time related:____________",null,"Item",{"v":1,"d":"1 "}]
[]
[217,226,1,1,29,{"v":98,"d":"98 "},23.97,null,null,"B11.9\tOverhand work  Fixed:____________ Value related:____________ Time related:____________",null,"Item",{"v":1,"d":"1 "}]
[]
[218,227,1,1,29,{"v":99,"d":"99 "},23.98,null,null,"B11.10\tInstruction manuals and guarantees  Fixed:____________ Value related:____________ Time related:____________",null,"Item",{"v":1,"d":"1 "}]
[]
[219,228,1,1,29,{"v":100,"d":"100 "},23.99,null,null,"B11.11\tAs built information  Fixed:____________ Value related:____________ Time related:____________",null,"Item",{"v":1,"d":"1 "}]
[]
[220,229,1,1,29,{"v":101,"d":"101 "},23.1,null,null,"B11.12\tTenant installations  Fixed:____________ Value related:____________ Time related:____________",null,"Item",{"v":1,"d":"1 "}]
[]
[221,230,1,1,30,null,23,null,null,"B12.0\tSCHEDULE OF VARIABLES"]
[]
[222,231,1,1,30,{"v":102,"d":"102 "},23.101,null,null,"B12.1\tSchedule of variables  Fixed:____________ Value related:____________ Time related:____________",null,"Item",{"v":1,"d":"1 "}]
[]
[223,232,1,1,30,null,23,null,null,"This schedule contains all variables referred to in this document and is divided into pre-tender and post-tender categories. The pre-tender category must be completed in full and included in the tender documents. Both the pre-tender and post-tender categories form part of these Preliminaries"]
[]
[224,233,1,1,30,null,23,null,null,"Spaces requiring information must be filled in, shown as \"not applicable\" or deleted and not left blank. Where choices are offered, the non-applicable items are to be deleted. Where insufficient space is provided the information should be annexed hereto and cross-referenced to the applicable clause of the schedule. Key cross reference clauses are italicised in [ ] brackets"]
[]
[225,234,1,1,30,null,23,null,null,"12.1\tPRE-TENDER INFORMATION  12.1.1\tProvisional bills of quantities [2.2]\tThe quantities are provisional\t\t\t\t\tYES"]
[]
[226,235,1,1,30,null,23,null,null,"12.1.2\tAvailability of construction documentation [2.3]\tConstruction documentation is complete\t\t\t\tNO"]
[]
[227,236,1,1,30,null,24,null,null,"12.1.3\tInterests of agents [2.4]\tDetails: NIL"]
[]
[228,237,1,1,30,null,24,null,null,"12.1.4\tDefined works area [3.1]\tDetails: As per Architect's detail"]
[]
[229,238,1,1,30,null,24,null,null,"12.1.5\tGeotechnical investigation [3.2]\tDetails: Available on request from the Engineer"]
[]
[230,239,1,1,30,null,24,null,null,"12.1.6\tExisting premises occupied [3.4]\tSpecific requirements: Not Applicable"]
[]
[231,240,1,1,31,null,24,null,null,"12.1.7\tPrevious work - dimensional accuracy [3.5]\tDetails: As above item"]
[]
[232,241,1,1,31,null,24,null,null,"12.1.8\tPrevious work - defects [3.6]\tDetails: As above item"]
[]
[233,242,1,1,31,null,24,null,null,"12.1.9\tServices - known [3.7]\tDetails: Details available on request from the Engineer"]
[]
[234,243,1,1,31,null,24,null,null,"12.1.10\tProtection of trees [3.9]\tSpecific requirements: Not applicable"]
[]
[235,244,1,1,31,null,24,null,null,"12.1.11\tInspection of adjoining properties [3.11]\tSpecific requirements: Contractor carry out their own inspection and report if they identify any concerns"]
[]
[236,245,1,1,31,null,24,null,null,"12.1.12\tEnclosure of the works [6.2]\tSpecific requirements:"]
[]
[237,246,1,1,31,null,24,null,null,"12.1.13\tOffices [6.4.3]\tSpecific requirements: \tThe contractor shall provide, maintain and remove on completion of the works an office for the exclusive use of the principal agent, minimum size 4 x 3 x 3m high internally, suitably insulated and ventilated, provided with electric lighting and fitted with boarded floor, desk, chair, drawing stool, drawing board and lock-up drawers for drawings. The office shall be kept clean and fit for use at all times"]
[]
[238,247,1,1,31,null,25,null,null,"12.1.14\tMain notice board [6.5]\tSpecific requirements: Drawing to be issued"]
[]
[239,248,1,1,31,null,25,null,null,"12.1.15\tSubcontractors' notice board [6.6]\tA notice board is required - No \t"]
[]
[240,249,1,1,32,null,25,null,null,"12.1.16\tWater [7.2]\tOption A (by contractor)\t\t\t\t\tYES  \tOption B (by employer - free of charge)\t\t\t\tNO  \tOption C (by employer - metered)\t\t\t\tNO"]
[]
[241,250,1,1,32,null,25,null,null,"12.1.17\tElectricity [7.3]\tOption A (by contractor)\t\t\t\t\tYES  \tOption B (by employer - free of charge)\t\t\t\tNO  \tOption C (by employer - metered)\t\t\t\tNO"]
[]
[242,251,1,1,32,null,25,null,null,"12.1.18\tTelecommunications [7.4]\tTelephone - BY CONTRACTOR\t\t\t\t\t\t\tYES  \tFacsimile - BY CONTRACTOR\t\t\t\t\t\t\tYES  \tE-mail\t- BY CONTRACTOR\t\t\t\t\t\t\tYES"]
[]
[243,252,1,1,32,null,25,null,null,"12.1.19\tAblution facilities [7.5]\tOption A (by contractor)\t\t\t\t\tYES  \tOption B (by employer)\t\t\t\t\t\tNO"]
[]
[244,253,1,1,32,null,25,null,null,"12.1.20\tProtection of existing/sectionally occupied works [11.2]\tProtection is required\t\t\t\t\t\tYES"]
[]
[245,254,1,1,32,null,26,null,null,"12.1.21\tSpecial attendance [9.2]\tNot Applicable"]
[]
[246,255,1,1,33,null,26,null,null,"12.1.22\tProtection of the works [11.1]\tSpecific requirements: Not Applicable"]
[]
[247,256,1,1,33,null,26,null,null,"12.1.23\tDisturbance [11.5]\tSpecific requirements: \tThe contractor shall keep the site, structures, well watered during operations to prevent dust and shall provide and erect and remove on completion of the works all necessary temporary dust screens all to the satisfaction of the principal agent"]
[]
[248,257,1,1,33,null,26,null,null,"12.1.24\tEnvironmental disturbance [11.6]\tSpecific requirements: See Environmental Management Plan available upon request from Zutari Consulting Engineers"]
[]
[249,258,1,1,33,null,26,null,null,"12.2\tPOST-TENDER INFORMATION"]
[]
[250,259,1,1,33,null,26,null,null,"12.2.1\tPayment of preliminaries [10.2]\tOption A (prorated)\t\t\t\t\t\tNO  \tOption B (calculated)\t\t\t\t\t\tYES"]
[]
[251,260,1,1,33,null,26,null,null,"12.2.2\tAdjustment of preliminaries [10.3]\tOption A (three categories)\t\t\t\t\tNO  \tOption B (detailed breakdown)\t\t\t\t\tYES"]
[]
[252,261,1,1,33,null,26,null,null,"12.2.3\tAdditional agreed preliminaries items \tDetails: NIL"]
[]
[253,262,1,1,33,null,27,null,null,"SECTION C: SPECIFIC PRELIMINARIES"]
[]
[254,263,1,1,33,null,27,null,null,"Section C contains specific preliminary items which apply to this contract except where N/A (Not Applicable) appears against an item"]
[]
[255,264,1,1,34,{"v":103,"d":"103 "},27.102,null,null,"C1.0\tCONTRACT DRAWINGS  The drawings issued with the tender documents do not comprise the complete set but serve as a guide only for tendering purposes and for indicating the scope of the work to enable the tenderer to acquaint himself with the nature and extent of the works and the manner in which they are to be executed  Should any part of the drawings not be clearly understood by the tenderer he shall, before submitting his tender, obtain clarification in writing from the principal agent  Fixed: ____________ Value related:____________ Time related:____________",null,"Item",{"v":1,"d":"1 "}]
[]
[256,265,1,1,34,{"v":104,"d":"104 "},27.103,null,null,"C2.0\tGENERAL PREAMBLES  The document \"Specification of Materials and Methods to be used (PW371)\" is obtainable on the Department's website (http://www.publicworks.gov.za/ under \"Consultants Guidelines\"), and shall be read in conjunction with the bills of quantities / lump sum document and be referred to for the full descriptions of work to be done and materials to be used  Fixed: ____________ Value related:____________ Time related:____________",null,"Item",{"v":1,"d":"1 "}]
[]
[257,266,1,1,34,{"$nulls":4},"GENERAL PREAMBLES"]
[]
[258,267,1,1,34,{"$nulls":4},"The General Preambles for Trades 2017 published by the Association of South African Quantity Surveyors is designed to support and extend the abbreviated descriptions utilised in these bills of quantities by inter alia referring to SANS construction standards. Where such preambles are not applicable (eg where BS or Euro construction standards are applicable or the design consultants provide other preambles/specifications for insertion), users are to ensure that the abbreviated descriptions when read in conjunction with the Standard System of Measuring Building Work (seventh edition) for works within South Africa or the Standard Method of Measuring Building Work for Africa 2015 (first edition) for works elsewhere in Africa, represent the full description by extending the abbreviated bills of quantities descriptions and/or by inserting appropriate preambles or specifications"]
[]
[259,268,1,1,35,{"v":105,"d":"105 "},27.104,null,null,"C3.0\tTRADE NAMESWherever a trade name for any product has been described in the bills of quantities / lump sum document, the tenderer's attention is drawn to the fact that any other product of equal quality may be used subject to the written approval of the principal agent being obtained prior to the closing date for submission of tenders If prior written approval for an alternative product is not obtained, the product described shall be deemed to have been tendered forFixed: ____________ Value related:____________ Time related:____________",null,"Item",{"v":1,"d":"1 "}]
[]
[260,269,1,1,35,{"v":106,"d":"106 "},28.105,null,null,"C4.0\tIMPORTED MATERIALS AND EQUIPMENT  Where imported items are listed in the tender documents, the tenderer shall provide all the information called for, failing which the price of any such item, materials or equipment shall be excluded from currency fluctuations. (refer to Schedule of Imported Materials and Equipment to be completed by tenderer)  Notwithstanding any provisions elsewhere regarding the adjustment of contract prices, the price of any item, material or equipment listed in terms of this clause shall be excluded from the Contract Price Adjustment Provisions (if applicable)  Fixed: ____________ Value related:____________ Time related:____________",null,"Item",{"v":1,"d":"1 "}]
[]
[]
[{"$nulls":9},"CARRIED FORWAD TO FINAL SUMMARY",{"$nulls":4},{"$f":"SUM(O25:O521)","v":0}]

{"sheet":"BUILDING WORKS","index":1,"n_rows":1868,"n_cols":17,"rows_kept":1868}
["COUNTER","ISC","SECTION","BILL","PAGE NO","ITEM NO","DOC REF",null,null,"QUANTITY","RATE","AMOUNT"]
[]
[1,10,1,1,1,null,null,"BILL NO. 1"]
[]
[2,11,1,1,1,null,null,"PRELIMINARIES AND GENERAL"]
[]
[3,12,1,1,1,null,1,"MEANING OF TERMS \"TENDER / TENDERER\""]
[]
[4,13,1,1,1,null,1,"Any reference to the words \"Tender\" or \"Tenderer\" herein and/or in any other documentation shall be construed to have the same meaning as the words \"Bid\" or \"Bidder\""]
[]
[5,14,1,1,1,null,1,"PRELIMINARIES"]
[]
[6,15,1,1,1,null,1,"The JBCC Preliminaries Code 2103, May 2005 edition for use with the JBCC Principal Building Agreement Edition 4.1 Code 2101, March 2005 is taken to be incorporated herein. The tenderer is deemed to have referred to these documents for the full intent and meaning of each clause. These clauses are referred to by number and heading only. Where standard clauses or options are not applicable to the contract such modifications or corrections as are necessary are given under each relevant clause. Where an item is not relevant to this specific contract such item is marked \"N/A\" signifying \"Not Applicable\""]
[]
[7,16,1,1,1,null,1,"PRICING OF PRELIMINARIES"]
[]
[8,17,1,1,1,null,1,"Should Option A, as set out in clause B10.3.1 hereinafter be used for the adjustment of preliminaries then each item priced is to be allocated to one or more of the three categories Fixed, Value Related or Time Related and the respective amounts entered in the spaces provided under each item"]
[]
[9,18,1,1,1,null,1,"Items not priced in these Preliminaries shall be deemed to be included elsewhere in these Bills of Quantities"]
[]
[10,19,1,1,1,null,1,"SECTION A: JBCC PRINCIPAL BUILDING AGREEMENT"]
[]
[11,20,1,1,2,null,1,"DEFINITIONS"]
[]
[12,21,1,1,2,{"v":1,"d":"1 "},1.1,"A1.0   \tDEFINITIONS AND INTERPRETATIONClause 1.0  Clause 1.1 Definition of \"Commencement Date\" is added:","CONT",{"v":0,"d":"0 "}]
[]
[13,22,1,1,2,null,1,"\"COMMENCEMENT DATE\" means the date that the agreement, made in terms of the Form of Offer and Acceptance, comes into effect","CONT",{"v":0,"d":"0 "}]
[]
[14,23,1,1,2,null,2,"Clause 1.1 Definition of \"Construction Guarantee\" is amended by replacing it with the following:","CONT",{"v":0,"d":"0 "}]
[]
[15,24,1,1,2,{"v":2,"d":"2 "},2,"\"CONSTRUCTION GUARANTEE\" means a guarantee at call obtained by the contractor from an institution approved by the employer in terms of the employer's construction guarantee form as selected in the schedule","Item",{"v":1,"d":"1 "},null,{"$f":"ROUND($J31*K31,2)","v":{"v":0,"d":"0.00"}}]
[]
[16,25,1,1,2,null,2,"Clause 1.1 Definition of \"Construction Period\" is amended by replacing it with the following:","CONT",{"v":0,"d":"0 "}]
[]
[17,26,1,1,2,null,2,"\"CONSTRUCTION PERIOD\" means the period commencing on the commencement date and ending on the date of practical completion","CONT",{"v":0,"d":"0 "}]
[]
[18,27,1,1,2,null,2,"Clause 1.1 Definition of \"Corrupt Practice\" is added:","CONT",{"v":0,"d":"0 "}]
[]
[19,28,1,1,2,null,2,"\"CORRUPT PRACTICE\" means the offering, giving, receiving or soliciting of anything of value to influence the action of a public official in the procurement process or in contract execution","CONT",{"v":0,"d":"0 "}]
[]
[20,29,1,1,2,null,2,"Clause 1.1 Definition of \"Fraudulent Practice\" is added:","CONT",{"v":0,"d":"0 "}]
[]
[21,30,1,1,2,null,2,"\"FRAUDULENT PRACTICE\" means a misrepresentation of facts in order to influence a procurement process or the execution of a contract to the detriment of any tenderer and includes collusive practice among tenderers (prior to or after the tender submission) designed to establish tender prices at artificial non-competitive levels and to deprive the tenderer of the benefits of free and open competition","CONT",{"v":0,"d":"0 "}]
[]
[22,31,1,1,2,null,2,"Clause 1.1 Definition of \"Interest\" is amended by replacing it with the following:","CONT",{"v":0,"d":"0 "}]
[]
[23,32,1,1,3,null,2,"\"INTEREST\" means the interest rates applicable on this contract, whether specifically indicated in the relevant clauses or not, will be the rate as determined by the Minister of Finance, from time to time, in terms of section 80(1)(b) of the Public Finance Management Act, 1999 (Act No. 1 of 1999)","CONT",{"v":0,"d":"0 "}]
[]
[24,33,1,1,3,null,2,"Clause 1.1 Definition of \"Principal Agent\" is amended by replacing it with the following:","CONT",{"v":0,"d":"0 "}]
[]
[25,34,1,1,3,null,2,"\"PRINCIPAL AGENT\" means the person or entity appointed by the employer and named in the schedule. In the event of a principal agent not being appointed, then all the duties and obligations of a principal agent as detailed in the agreement shall be fulfilled by a representative of the employer as named in the schedule","CONT",{"v":0,"d":"0 "}]
[]
[26,35,1,1,3,null,2,"Clause 1.1 Definition of \"Security\" is amended by replacing it with the following:","CONT",{"v":0,"d":"0 "}]
[]
[27,36,1,1,3,null,2,"\"SECURITY\" means the form of security provided by the employer or contractor, as stated in the schedule, from which the contractor or employer may recover expense or loss","CONT",{"v":0,"d":"0 "}]
[]
[28,37,1,1,3,null,2,"Clause 1.6 is amended by replacing the words \"prepaid registered post, telefax or e-mail\" with \"prepaid registered post or telefax\"","CONT",{"v":0,"d":"0 "}]
[]
[29,38,1,1,3,null,3,"Clause 1.6.4 is amended by replacing it with the following:","CONT",{"v":0,"d":"0 "}]
[]
[30,39,1,1,3,null,3,"No clause  Fixed:____________ Value related:____________ Time related:____________","Item",{"v":1,"d":"1 "},null,{"$f":"ROUND($J61*K61,2)","v":{"v":0,"d":"0.00"}}]
[]
[31,40,1,1,3,null,3,"OBJECTIVE AND PREPARATION"]
[]
[32,41,1,1,3,{"v":3,"d":"3 "},3.2,"A2.0\tOFFER, ACCEPTANCE AND PERFORMANCE  Clause 2.0  Fixed:____________ Value related:____________ Time related:____________","Item",{"v":1,"d":"1 "},null,{"$f":"ROUND($J65*K65,2)","v":{"v":0,"d":"0.00"}}]
[]
[33,42,1,1,4,{"v":4,"d":"4 "},3.3,"A3.0\tDOCUMENTS \tClause 3.0Clause 3.2.1 is amended by replacing\"14.1\" with \"14.0\"Clause 3.7 is amended by the addition of the following:  The contractor shall supply and keep a copy of the JBCC Series 2000 Principal Building Agreement and Preliminaries applicable to this contract on the site, to which the employer, principal agent and agents shall have access at all timesClause 3.10 is amended by replacing the second reference to \"principal agent\" with the word \"employer\" \tFixed:____________ Value related:____________ Time related:____________","Item",{"v":1,"d":"1 "},null,{"$f":"ROUND($J67*K67,2)","v":{"v":0,"d":"0.00"}}]
[]
[34,43,1,1,4,{"v":5,"d":"5 "},3.4,"A4.0\tDESIGN RESPONSIBILITY \tClause 4.0Clause 4.3 is amended by replacing it with the following:No clause\tFixed:____________ Value related:____________ Time related:____________","Item",{"v":1,"d":"1 "},null,{"$f":"ROUND($J69*K69,2)","v":{"v":0,"d":"0.00"}}]
[]
[35,44,1,1,4,{"v":6,"d":"6 "},3.5,"A5.0\tEMPLOYER'S AGENTS Clause 5.0 Clause 5.1.2 is amended to include clauses 32.6.3, 34.3, 34.4 and 38.5.8 Fixed:____________ Value related:____________ Time related:____________","Item",{"v":1,"d":"1 "},null,{"$f":"ROUND($J71*K71,2)","v":{"v":0,"d":"0.00"}}]
[]
[36,45,1,1,4,{"v":7,"d":"7 "},4.6,"A6.0\tSITE REPRESENTATIVE Clause 6.0 Fixed:____________ Value related:____________ Time related:____________","Item",{"v":1,"d":"1 "},null,{"$f":"ROUND($J73*K73,2)","v":{"v":0,"d":"0.00"}}]
[]
[37,46,1,1,5,{"v":8,"d":"8 "},4.7,"A7.0\tCOMPLIANCE WITH REGULATIONS Clause 7.0 \tNote: A separate clause has been included in Section C : Specific Preliminaries of the bills of quantities / lump sum document for the contractor to have the opportunity to price for all the requirements of the Occupational Health and Safety Act, Construction Regulations and Health and Safety SpecificationFixed:____________ Value related:____________ Time related:____________","Item",{"v":1,"d":"1 "},null,{"$f":"ROUND($J75*K75,2)","v":{"v":0,"d":"0.00"}}]
[]
[38,47,1,1,5,{"v":9,"d":"9 "},4.8,"A8.0\tWORKS RISK Clause 8.0 Fixed:____________ Value related:____________ Time related:____________","Item",{"v":1,"d":"1 "},null,{"$f":"ROUND($J77*K77,2)","v":{"v":0,"d":"0.00"}}]
[]
[39,48,1,1,5,{"v":10,"d":"10 "},4.9,"A9.0\tINDEMNITIES Clause 9.0 Fixed:____________ Value related:____________ Time related:____________","Item",{"v":1,"d":"1 "},null,{"$f":"ROUND($J79*K79,2)","v":{"v":0,"d":"0.00"}}]
[]
[40,49,1,1,5,{"v":11,"d":"11 "},4.1,"A10.0\tWORKS INSURANCES Clause 10.0 Clause 10.0 is amended by the addition of the following clauses:","Item",{"v":1,"d":"1 "},null,{"$f":"ROUND($J81*K81,2)","v":{"v":0,"d":"0.00"}}]
[]
[41,50,1,1,5,null,4,"10.5 Damage to the Works  (a) \tWithout in any way limiting the contractor's obligations in terms of the contract, the contractor shall bear the full risk of damage to and/or destruction of the works by whatever cause during construction of the works and hereby indemnifies and holds harmless the employer against any such damage. The contractor shall take such precautions and security measures and other steps for the protection and security of the works as the contractor may deem necessary","CONT",{"v":0,"d":"0 "}]
[]
[42,51,1,1,6,null,4,"(b)\tThe contractor shall at all times proceed immediately to remove or dispose of any debris arising from damage to or destruction of the works and to rebuild, restore, replace and/or repair the works","CONT",{"v":0,"d":"0 "}]
[]
[43,52,1,1,6,null,5,"(c)\tThe employer shall carry the risk of damage to or destruction of the works and materials paid for by the employer that is the result of the excepted risks as set out in 10.6","CONT",{"v":0,"d":"0 "}]
[]
[44,53,1,1,6,null,5,"(d)\tWhere the employer bears the risk in terms of this contract, the contractor shall, if requested to do so, reinstate any damage or destroyed portions of the works and the costs of such reinstatement shall be measured and valued in terms of 32.0 hereof","CONT",{"v":0,"d":"0 "}]
[]
[45,54,1,1,6,null,5,"10.6 Injury to Persons or loss of or damage to Properties  (a)\tThe contractor shall be liable for and hereby indemnifies the employer against any liability, loss, claim or proceeding whether arising in common law or by statute, consequent upon personal injuries to or the death of any person whomsoever arising out of or in the course of or caused by the execution of the works unless due to any act or negligence of any person for whose actions the employer is legally liable","CONT",{"v":0,"d":"0 "}]
[]
[46,55,1,1,6,null,5,"(b)\tThe contractor shall be liable for and hereby indemnifies the employer against any liability, loss, claim or proceeding consequent upon loss of or damage to any moveable or immovable or personal property or property contiguous to the site, whether belonging to or under the control of the employer or any other body or person, arising out of or in the course of or by reason of the execution of the works unless due to any act or negligence of any person for whose actions the employer is legally liable","CONT",{"v":0,"d":"0 "}]
[]
[47,56,1,1,7,null,5,"(c)\tThe contractor shall, upon receiving a contract instruction from the principal agent, cause the same to be made good in a perfect and workmanlike manner at his own cost and in default thereof the employer shall be entitled to cause it to be made good and to recover the cost thereof from the contractor or to deduct the same from amounts due to the contractor","CONT",{"v":0,"d":"0 "}]
[]
[48,57,1,1,7,null,5,"(d)\tThe contractor shall be responsible for the protection and safety of such portions of the premises placed under his control by the employer for the purpose of executing the works until the issue of the certificate of practical completion","CONT",{"v":0,"d":"0 "}]
[]
[49,58,1,1,7,null,5,"(e)\tWhere the execution of the works involves the risk of removal of or interference with support to adjoining properties including land or structures or any structures to be altered or added to, the contractor shall obtain adequate insurance and will remain adequately insured or insured to the specific limit stated in the contract against the death of or injury to persons or damage to such property consequent on such removal or interference with the support until such portion of the works has been completed","CONT",{"v":0,"d":"0 "}]
[]
[50,59,1,1,7,null,5,"(f)\tThe contractor shall at all times proceed immediately at his own cost to remove or dispose of any debris and to rebuild, restore, replace and/or repair such property and to execute the works","CONT",{"v":0,"d":"0 "}]
[]
[51,60,1,1,7,null,6,"10.7 High risk insurance In the event of the project being executed in a geological area classified as a \"High Risk Area\", that is an area which is subject to highly unstable subsurface conditions that might result in catastrophic ground movement evident by sinkhole or doline formation the following will apply:","CONT",{"v":0,"d":"0 "}]
[]
[52,61,1,1,8,null,6,"10.7.1 Damage to the works  The contractor shall, from the commencement date of the works until the date of the certificate of practical completion bear the full risk of and hereby indemnifies and holds harmless the employer against any damage to and/or destruction of the works consequent upon a catastrophic ground movement as mentioned above. The contractor shall take such precautions and security measures and other steps for the protection of the works as he may deem necessary","CONT",{"v":0,"d":"0 "}]
[]
[53,62,1,1,8,null,6,"When so instructed to do so by the principal agent, the contractor shall proceed immediately to remove and/or dispose of any debris arising from damage to or destruction of the works and to rebuild, restore, replace and/or repair the works, at the contractor's own costs","CONT",{"v":0,"d":"0 "}]
[]
[54,63,1,1,8,null,6,"10.7.2 Injury to persons or loss of or damage to property  The contractor shall be liable for and hereby indemnifies and holds harmless the employer against any liability, loss, claim or proceeding arising at any time during the period of the contract whether arising in common law or by statute, consequent upon personal injuries to or the death of any person whomsoever resulting from, arising out of, or caused by a catastrophic ground movement as mentioned above","CONT",{"v":0,"d":"0 "}]
[]
[55,64,1,1,8,null,6,"The contractor shall be liable for and hereby indemnifies the employer against any and all liability, loss, claim or proceeding consequent upon loss of or damage to any moveable or immovable or personal property or property contiguous to the site, whether belonging to or under the control of the employer or any other body or person whomsoever arising out of or caused by a catastrophic ground movement, as mentioned above, which occurred during the period of the contract","CONT",{"v":0,"d":"0 "}]
[]
[56,65,1,1,8,null,6,"10.7.3 It is the responsibility of the contractor to ensure that he has adequate insurance to cover his risk and liability as mentioned in 10.7.1 and 10.7.2. Without limiting the contractor's obligations in terms of the contract, the contractor shall, within twenty-one (21) calendar days of the commencement date but before commencement of the works, submit to the employer proof of such insurance policy, if requested to do so","CONT",{"v":0,"d":"0 "}]
[]
[57,66,1,1,9,null,7,"10.7.4 The employer shall be entitled to recover any and all losses and/or damages of whatever nature suffered or incurred consequent upon the contractor's default of his obligations as set out in 10.7.1; 10.7.2 and 10.7.3. Such losses or damages may be recovered from the contractor or by deducting the same from any amounts still due under this contract or under any other contract presently or hereafter existing between the employer and the contractor and for this purpose all these contracts shall be considered one indivisible whole Fixed:____________ Value related:____________ Time related:____________","Item",{"v":1,"d":"1 "},null,{"$f":"ROUND($J115*K115,2)","v":{"v":0,"d":"0.00"}}]
[]
[58,67,1,1,9,{"v":12,"d":"12 "},7.11,"A11.0\tLIABILITY INSURANCES  Clause 11.0  Fixed:____________ Value related:____________ Time related:____________","Item",{"v":1,"d":"1 "},null,{"$f":"ROUND($J117*K117,2)","v":{"v":0,"d":"0.00"}}]
[]
[59,68,1,1,9,{"v":13,"d":"13 "},7.12,"A12.0\tEFFECTING INSURANCES  Clause 12.0  Fixed:____________ Value related:____________ Time related:____________","Item",{"v":1,"d":"1 "},null,{"$f":"ROUND($J119*K119,2)","v":{"v":0,"d":"0.00"}}]
[]
[60,69,1,1,9,{"v":14,"d":"14 "},7.13,"A13.0\tNo clause","N/A",{"v":0,"d":"0 "}]
[]
[61,70,1,1,9,{"v":15,"d":"15 "},7.14,"A14.0\tSECURITY  Clause 14.0  Clauses 14.1 - 14.8 are amended by replacing them with the following:","CONT",{"v":0,"d":"0 "}]
[]
[62,71,1,1,9,null,7,"14.1 In respect of contracts with a contract sum up to R1 million, the security to be provided by the contractor to the employer will be a payment reduction of five per cent (5%) of the value certified in the payment certificate (excluding VAT)","CONT",{"v":0,"d":"0 "}]
[]
[63,72,1,1,9,null,7,"14.1.1 The payment reduction of the value certified in a payment certificate shall be mutatis mutandi in terms of 31.8(A)","CONT",{"v":0,"d":"0 "}]
[]
[64,73,1,1,10,null,7,"14.1.2 The employer shall be entitled to recover expense and loss from the payment reduction in terms of 33.0 provided that the employer complies with the provisions of 33.4 in which event the employer's entitlement shall take precedence over his obligations to refund the payment reduction security or portions thereof to the contractor","CONT",{"v":0,"d":"0 "}]
[]
[65,74,1,1,10,null,8,"14.2 In respect of contracts with a contract sum above R1 million, the contractor shall have the right to select the security to be provided in terms of 14.3, 14.4, 14.5, 14.6, or 14.7 as stated in the schedule. Such security shall be provided to the employer within twenty-one (21) calendar days from commencement date. Should the contractor fail to select the security to be provided or should the contractor fail to provide the employer with the selected security within twenty-one (21) calendar days from commencement date, the security in terms of 14.7 shall be deemed to have been selected","CONT",{"v":0,"d":"0 "}]
[]
[66,75,1,1,10,null,8,"14.3 Where security as a cash deposit of ten per cent (10%) of the contract sum (excluding VAT) has been selected:","CONT",{"v":0,"d":"0 "}]
[]
[67,76,1,1,10,null,8,"14.3.1 The contractor shall furnish the employer with a cash deposit equal in value to ten per cent (10%) of the contract sum (excluding VAT) within twenty-one (21) calendar days from commencement date","CONT",{"v":0,"d":"0 "}]
[]
[68,77,1,1,10,null,8,"14.3.2 Within twenty-one (21) calendar days of the date of practical completion of the works the employer shall reduce the cash deposit to an amount equal to three per cent (3%) of the contract value (excluding VAT), and refund the balance to the contractor","CONT",{"v":0,"d":"0 "}]
[]
[69,78,1,1,10,null,8,"14.3.3 Within twenty-one (21) calendar days of the date of final completion of the works the employer shall reduce the cash deposit to an amount equal to one per cent (1%) of the contract value (excluding VAT) and refund the balance to the contractor","CONT",{"v":0,"d":"0 "}]
[]
[70,79,1,1,10,null,8,"14.3.4 On the date of payment of the amount in the final payment certificate, the employer shall refund the remainder of the cash deposit to the contractor","CONT",{"v":0,"d":"0 "}]
[]
[71,80,1,1,11,null,8,"14.3.5 The employer shall be entitled to recover expense and loss from the cash deposit in terms of 33.0 provided that the employer complies with the provisions of 33.4 in which event the employer's entitlement shall take precedence over his obligations to refund the cash deposit security or portions thereof to the contractor","CONT",{"v":0,"d":"0 "}]
[]
[72,81,1,1,11,null,8,"14.3.6 The parties expressly agree that neither the employer nor the contractor shall be entitled to cede the rights to the deposit to any third party","CONT",{"v":0,"d":"0 "}]
[]
[73,82,1,1,11,null,8,"14.4 Where security as a variable construction guarantee of ten percent (10%) of the contract sum (excluding VAT) has been selected:","CONT",{"v":0,"d":"0 "}]
[]
[74,83,1,1,11,null,8,"14.4.1 The contractor shall furnish the employer with an acceptable variable construction guarantee equal in value to ten per cent (10%) of the contract sum (excluding VAT) within twenty-one (21) calendar days from commencement date","CONT",{"v":0,"d":"0 "}]
[]
[75,84,1,1,11,null,8,"14.4.2 The variable construction guarantee shall reduce and expire in terms of the Variable Construction Guarantee form included in the invitation to tender","CONT",{"v":0,"d":"0 "}]
[]
[76,85,1,1,11,null,8,"14.4.3 The employer shall return the variable construction guarantee to the contractor within fourteen (14) calendar days of it expiring","CONT",{"v":0,"d":"0 "}]
[]
[77,86,1,1,11,null,9,"14.4.4 Where the employer has a right of recovery against the contractor in terms of 33.0, the employer shall issue a written demand in terms of the variable construction guarantee","CONT",{"v":0,"d":"0 "}]
[]
[78,87,1,1,11,null,9,"14.5 Where security as a fixed construction guarantee of five per cent (5%) of the contract sum (excluding VAT) and a five per cent (5%) payment reduction of the value certified in the payment certificate (excluding VAT) has been selected:","CONT",{"v":0,"d":"0 "}]
[]
[79,88,1,1,11,null,9,"14.5.1 The contractor shall furnish a fixed construction guarantee to the employer equal in value to five per cent (5%) of the contract sum (excluding VAT)","CONT",{"v":0,"d":"0 "}]
[]
[80,89,1,1,11,null,9,"14.5.2 The fixed construction guarantee shall come into force on the date of issue and shall expire on the date of the last certificate of practical completion","CONT",{"v":0,"d":"0 "}]
[]
[81,90,1,1,12,null,9,"14.5.3 The employer shall return the fixed construction guarantee to the contractor within fourteen (14) calendar days of it expiring","CONT",{"v":0,"d":"0 "}]
[]
[82,91,1,1,12,null,9,"14.5.4 The payment reduction of the value certified in a payment certificate shall be in terms of 31.8 (A) and 34.8","CONT",{"v":0,"d":"0 "}]
[]
[83,92,1,1,12,null,9,"14.5.5 Where the employer has a right of recovery against the contractor in terms of 33.0, the employer shall be entitled to issue a written demand in terms of the fixed construction guarantee or may recover from the payment reduction or may do both","CONT",{"v":0,"d":"0 "}]
[]
[84,93,1,1,12,null,9,"14.6 Where security as a cash deposit of five per cent (5%) of the contract sum (excluding VAT) and a payment reduction of five per cent (5%) of the value certified in the payment certificate (excluding VAT) has been selected:","CONT",{"v":0,"d":"0 "}]
[]
[85,94,1,1,12,null,9,"14.6.1 The contractor shall furnish the employer with a cash deposit equal in value to five per cent (5%) of the contract sum (excluding VAT) within twenty-one (21) calendar days from commencement date","CONT",{"v":0,"d":"0 "}]
[]
[86,95,1,1,12,null,9,"14.6.2 Within twenty-one (21) calendar days of the date of practical completion of the works the employer shall refund the cash deposit in total to the contractor","CONT",{"v":0,"d":"0 "}]
[]
[87,96,1,1,12,null,9,"14.6.3 The payment reduction of the value certified in a payment certificate shall be mutatis mutandi in terms of 31.8(A)","CONT",{"v":0,"d":"0 "}]
[]
[88,97,1,1,12,null,9,"14.6.4 Where the employer has a right of recovery against the contractor in terms of 33.0, the employer may issue a written notice in terms of 33.4 or may recover from the payment reduction or may do both","CONT",{"v":0,"d":"0 "}]
[]
[89,98,1,1,12,null,9,"14.7 Where security as a payment reduction of ten per cent (10%) of the value certified in the payment certificate (excluding VAT) has been selected:","CONT",{"v":0,"d":"0 "}]
[]
[90,99,1,1,12,null,9,"14.7.1 The payment reduction of the value certified in a payment certificate shall be mutatis mutandi in terms of 31.8(B)","CONT",{"v":0,"d":"0 "}]
[]
[91,100,1,1,13,null,10,"14.7.2 The employer shall be entitled to recover expense and loss from the payment reduction in terms of 33.0 provided that the employer complies with the provisions of 33.4 in which event the employer's entitlement shall take precedence over his obligations to refund the payment reduction or portions thereof to the contractor","CONT",{"v":0,"d":"0 "}]
[]
[92,101,1,1,13,null,10,"14.8 Payments made by the guarantor to the employer in terms of the fixed or variable construction guarantee shall not prejudice the rights of the employer or contractor in terms of this agreement","CONT",{"v":0,"d":"0 "}]
[]
[93,102,1,1,13,null,10,"14.9 Should the contractor fail to furnish the security in terms of 14.2, the employer, in his sole discretion and without notification to the contractor, is entitled to change the contractor's selected form of security to that of a ten per cent (10%) payment reduction of the value certified in the payment certificate (excluding VAT), whereafter 14.7 shall be applicable  Fixed:____________ Value related:____________ Time related:____________","Item",{"v":1,"d":"1 "},null,{"$f":"ROUND($J187*K187,2)","v":{"v":0,"d":"0.00"}}]
[]
[94,103,1,1,13,null,10,"EXECUTION"]
[]
[95,104,1,1,13,{"v":16,"d":"16 "},10.15,"A15.0\tPREPARATION FOR AND EXECUTION OF THE WORKS  Clause 15.0  Clause 15.1.1 is amended by replacing it with:  No clause  Clause 15.1.2 is amended by replacing it with:  The security selected in terms of 14.0","CONT",{"v":0,"d":"0 "}]
[]
[96,105,1,1,13,null,10,"Clause 15.1 is amended by the addition of the following clause:  15.1.4 An acceptable health and safety plan, required in terms of the Occupational Health and Safety Act, 1993 (Act 85 of 1993), within twenty-one (21) calendar days of commencement date","CONT",{"v":0,"d":"0 "}]
[]
[97,106,1,1,13,null,10,"Clause 15.2.1 is amended by replacing it with the following clause:","CONT",{"v":0,"d":"0 "}]
[]
[98,107,1,1,14,null,10,"Give the contractor possession of the site within ten (10) working days of the contractor complying with the terms of 15.1.4  Fixed:____________ Value related:____________ Time related:____________","Item",{"v":1,"d":"1 "},null,{"$f":"ROUND($J197*K197,2)","v":{"v":0,"d":"0.00"}}]
[]
[99,108,1,1,14,{"v":17,"d":"17 "},10.16,"A16.0\tACCESS TO THE WORKS  Clause 16.0  Fixed:____________ Value related:____________ Time related:____________","Item",{"v":1,"d":"1 "},null,{"$f":"ROUND($J199*K199,2)","v":{"v":0,"d":"0.00"}}]
[]
[100,109,1,1,14,{"v":18,"d":"18 "},11.17,"A17.0\tCONTRACT INSTRUCTIONS  Clause 17.0  Clause 17.1.11 is amended by deleting the words \"and the appointment of nominated and selected subcontractors\"  Fixed:____________ Value related:____________ Time related:____________","Item",{"v":1,"d":"1 "},null,{"$f":"ROUND($J201*K201,2)","v":{"v":0,"d":"0.00"}}]
[]
[101,110,1,1,14,{"v":19,"d":"19 "},11.18,"A18.0\tSETTING OUT OF THE WORKS  Clause 18.0  Fixed:____________ Value related:____________ Time related:____________","Item",{"v":1,"d":"1 "},null,{"$f":"ROUND($J203*K203,2)","v":{"v":0,"d":"0.00"}}]
[]
[102,111,1,1,14,{"v":20,"d":"20 "},11.19,"A19.0\tASSIGNMENT  Clause 19.0  Fixed:____________ Value related:____________ Time related:____________","Item",{"v":1,"d":"1 "},null,{"$f":"ROUND($J205*K205,2)","v":{"v":0,"d":"0.00"}}]
[]
[103,112,1,1,15,{"v":21,"d":"21 "},11.2,"A20.0\tNOMINATED SUBCONTRACTORS  Clause 20.0  Clause 20.1.3 is amended by replacing it with the following:  No clause  Note: See item B9.1 hereinafter for adjustment of attendance on nominated subcontractors executing work allowed for under provisional sums  Fixed:____________ Value related:____________ Time related:____________","Item",{"v":1,"d":"1 "},null,{"$f":"ROUND($J207*K207,2)","v":{"v":0,"d":"0.00"}}]
[]
[104,113,1,1,15,{"v":22,"d":"22 "},11.21,"A21.0\tSELECTED SUBCONTRACTORS  Clause 21.0  Clause 21 is amended by replacing it with:  No clause  Fixed:____________ Value related:____________ Time related:____________","Item",{"v":1,"d":"1 "},null,{"$f":"ROUND($J209*K209,2)","v":{"v":0,"d":"0.00"}}]
[]
[105,114,1,1,15,{"v":23,"d":"23 "},11.22,"A22.0\tEMPLOYER'S DIRECT CONTRACTORS  Clause 22.0  Fixed:____________ Value related:____________ Time related:____________","Item",{"v":1,"d":"1 "},null,{"$f":"ROUND($J211*K211,2)","v":{"v":0,"d":"0.00"}}]
[]
[106,115,1,1,15,{"v":24,"d":"24 "},12.23,"A23.0\tCONTRACTOR'S DOMESTIC SUBCONTRACTORS  Clause 23.0  Fixed:____________ Value related:____________ Time related:____________","Item",{"v":1,"d":"1 "},null,{"$f":"ROUND($J213*K213,2)","v":{"v":0,"d":"0.00"}}]
[]
[107,116,1,1,15,null,12,"COMPLETION"]
[]
[108,117,1,1,15,{"v":25,"d":"25 "},12.24,"A24.0\tPRACTICAL COMPLETION  Clause 24.0  Fixed:____________ Value related:____________ Time related:____________","Item",{"v":1,"d":"1 "},null,{"$f":"ROUND($J217*K217,2)","v":{"v":0,"d":"0.00"}}]
[]
[109,118,1,1,16,{"v":26,"d":"26 "},12.25,"A25.0\tWORKS COMPLETION  Clause 25.0  Fixed:____________ Value related:____________ Time related:____________","Item",{"v":1,"d":"1 "},null,{"$f":"ROUND($J219*K219,2)","v":{"v":0,"d":"0.00"}}]
[]
[110,119,1,1,16,{"v":27,"d":"27 "},12.26,"A26.0\tFINAL COMPLETION  Clause 26.0  Clause 26.1.2 is amended by inserting \"#\" next to 26.1.2  Fixed:____________ Value related:____________ Time related:____________","Item",{"v":1,"d":"1 "},null,{"$f":"ROUND($J221*K221,2)","v":{"v":0,"d":"0.00"}}]
[]
[111,120,1,1,16,{"v":28,"d":"28 "},12.27,"A27.0\tLATENT DEFECTS LIABILITY PERIOD  Clause 27.0  Fixed:____________ Value related:____________ Time related:____________","Item",{"v":1,"d":"1 "},null,{"$f":"ROUND($J223*K223,2)","v":{"v":0,"d":"0.00"}}]
[]
[112,121,1,1,16,{"v":29,"d":"29 "},12.28,"A28.0\tSECTIONAL COMPLETION  Clause 28.0  Fixed:____________ Value related:____________ Time related:____________","Item",{"v":1,"d":"1 "},null,{"$f":"ROUND($J225*K225,2)","v":{"v":0,"d":"0.00"}}]
[]
[113,122,1,1,16,{"v":30,"d":"30 "},12.29,"A29.0\tREVISION OF DATE FOR PRACTICAL COMPLETION  Clause 29.0  Clause 29.2.5 is amended by replacing it with:  No clause  Fixed:____________ Value related:____________ Time related:____________","Item",{"v":1,"d":"1 "},null,{"$f":"ROUND($J227*K227,2)","v":{"v":0,"d":"0.00"}}]
[]
[114,123,1,1,16,{"v":31,"d":"31 "},13.3,"A30.0\tPENALTY FOR NON-COMPLETION  Clause 30.0  Fixed:____________ Value related:____________ Time related:____________","Item",{"v":1,"d":"1 "},null,{"$f":"ROUND($J229*K229,2)","v":{"v":0,"d":"0.00"}}]
[]
[115,124,1,1,17,null,13,"PAYMENT"]
[]
[116,125,1,1,17,{"v":32,"d":"32 "},13.31,"A31.0\tINTERIM PAYMENT TO THE CONTRACTOR  Clause 31.0","CONT",{"v":0,"d":"0 "}]
[]
[117,126,1,1,17,null,13,"Clause 31.5.2 is amended by replacing \"14.7.1\" with \"14.0\"","CONT",{"v":0,"d":"0 "}]
[]
[118,127,1,1,17,null,13,"Clause 31.8 is amended by replacing it with the following two alternative clauses:","CONT",{"v":0,"d":"0 "}]
[]
[119,128,1,1,17,null,13,"Alternative A  31.8(A) Where a security is selected in terms of 14.1; 14.5 or 14.6, the value of the works in terms of 31.4.1 and materials and goods in terms of 31.4.2 shall be certified in full. The value certified shall be subject to the following percentage adjustments:","CONT",{"v":0,"d":"0 "}]
[]
[120,129,1,1,17,null,13,"31.8(A).1 Ninety-five per cent (95%) of such value in interim payment certificates issued up to the date of practical completion","CONT",{"v":0,"d":"0 "}]
[]
[121,130,1,1,17,null,13,"31.8(A).2 Ninety-seven per cent (97%) of such value in interim payment certificates issued on the date of practical completion and up to but excluding the date of final completion","CONT",{"v":0,"d":"0 "}]
[]
[122,131,1,1,17,null,13,"31.8(A).3 Ninety-nine per cent (99%) of such value in interim payment certificates issued on the date of final completion and up to but excluding the final payment certificate in terms of 34.6","CONT",{"v":0,"d":"0 "}]
[]
[123,132,1,1,17,null,13,"31.8(A).4 One hundred per cent (100%) of such value in the final payment certificate in terms of 34.6 except where the amount certified is in favour of the employer. In such an event the payment reduction shall remain at the adjustment level applicable to the final payment certificate","CONT",{"v":0,"d":"0 "}]
[]
[124,133,1,1,17,null,13,"Alternative B","CONT",{"v":0,"d":"0 "}]
[]
[125,134,1,1,17,null,13,"31.8(B) Where security as a payment reduction in terms of 14.7 has been selected, the value of the works in terms of 31.4.1 and materials and goods in terms of 31.4.2 shall be certified in full. The value certified shall be subject to the following percentage adjustments:","CONT",{"v":0,"d":"0 "}]
[]
[126,135,1,1,18,null,13,"31.8(B).1 Ninety per cent (90%) of such value in interim payment certificates issued up to the date of practical completion","CONT",{"v":0,"d":"0 "}]
[]
[127,136,1,1,18,null,14,"31.8(B).2 Ninety-seven per cent (97%) of such value in interim payment certificates issued on the date of practical completion and up to but excluding the date of final completion","CONT",{"v":0,"d":"0 "}]
[]
[128,137,1,1,18,null,14,"31.8(B).3 Ninety-nine per cent (99%) of such value in interim payment certificates issued on the date of final completion and up to but excluding the final payment certificate in terms of 34.6","CONT",{"v":0,"d":"0 "}]
[]
[129,138,1,1,18,null,14,"31.8(B).4 One hundred per cent (100%) of such value in the final payment certificate in terms of 34.6 except where the amount certified is in favour of the employer. In such an event the payment reduction shall remain at the adjustment level applicable to the final payment certificate","CONT",{"v":0,"d":"0 "}]
[]
[130,139,1,1,18,null,14,"Clause 31.12 is amended by deleting the following:","CONT",{"v":0,"d":"0 "}]
[]
[131,140,1,1,18,null,14,"Payment shall be subject to the employer giving the contractor a tax invoice for the amount due  Fixed:____________ Value related:____________ Time related:____________","Item",{"v":1,"d":"1 "},null,{"$f":"ROUND($J263*K263,2)","v":{"v":0,"d":"0.00"}}]
[]
[132,141,1,1,18,{"v":33,"d":"33 "},14.32,"A32.0\tADJUSTMENT TO THE CONTRACT VALUE  Clause 32.0  Clauses 32.5.1, 32.5.4 and 32.5.7 are amended by the addition of the following at the end of the sentence:  \"due to no fault of the contractor\"  Fixed:____________ Value related:____________ Time related:____________","Item",{"v":1,"d":"1 "},null,{"$f":"ROUND($J265*K265,2)","v":{"v":0,"d":"0.00"}}]
[]
[133,142,1,1,18,{"v":34,"d":"34 "},14.33,"A33.0\tRECOVERY OF EXPENSE AND LOSS  Clause 33.0  Fixed:____________ Value related:____________ Time related:____________","Item",{"v":1,"d":"1 "},null,{"$f":"ROUND($J267*K267,2)","v":{"v":0,"d":"0.00"}}]
[]
[134,143,1,1,19,{"v":35,"d":"35 "},15.34,"A34.0\tFINAL ACCOUNT AND FINAL PAYMENT  Clause 34.0  Clause 34.1 is amended by removing \"#\" next to 34.1  Clause 34.2 is amended by inserting \"#\" next to 34.2  Clause 34.8 is amended by deleting the words \"where security as a fixed construction guarantee in terms of 14.4 has been selected or where payment reduction has been applied in terms of 14.7.1\"  Clause 34.13 is amended by replacing \"seven (7) calendar days\" with \"twenty-one (21) calendar days\" and deleting the words \"subject to the employer giving the contractor a tax invoice for the amount due\"  Fixed:____________ Value related:____________ Time related:____________","Item",{"v":1,"d":"1 "},null,{"$f":"ROUND($J269*K269,2)","v":{"v":0,"d":"0.00"}}]
[]
[135,144,1,1,19,{"v":36,"d":"36 "},15.35,"A35.0\tPAYMENT TO OTHER PARTIES  Clause 35.0  Fixed:____________ Value related:____________ Time related:____________","Item",{"v":1,"d":"1 "},null,{"$f":"ROUND($J271*K271,2)","v":{"v":0,"d":"0.00"}}]
[]
[136,145,1,1,20,null,15,"CANCELLATION"]
[]
[137,146,1,1,20,{"v":37,"d":"37 "},15.36,"A36.0\tCANCELLATION BY EMPLOYER - CONTRACTOR'S DEFAULT \t  Clause 36.0  Clause 36.1 is amended by the addition of the following clauses:  36.1.3 refuses or neglects to comply strictly with any of the conditions of contract  36.1.4 estate being sequestrated, liquidated or surrendered in terms of the insolvency laws in force within the Republic of South Africa  36.1.5 in the judgement of the employer, has engaged in corrupt or fraudulent practices in competing for or in executing the contract  Clause 36.3 is amended by removing the reference to \"No clause\" and replacing the words \"principal agent\" with \"employer\"","CONT",{"v":0,"d":"0 "}]
[]
[138,147,1,1,20,null,15,"Clause 36.0 is amended by the addition of the following clause:","CONT",{"v":0,"d":"0 "}]
[]
[139,148,1,1,20,null,16,"36.7 Notwithstanding any clause to the contrary, on cancellation of this agreement either by the employer or the contractor; or for any reason whatsoever, the contractor shall on written instruction, discontinue with the works on a date stated and withdraw himself from the site. The contractor shall not be entitled to refuse to withdraw from the works on the grounds of any lien or right of retention or on the grounds of any other right whatsoever  Fixed:____________ Value related:____________ Time related:____________","Item",{"v":1,"d":"1 "},null,{"$f":"ROUND($J279*K279,2)","v":{"v":0,"d":"0.00"}}]
[]
[140,149,1,1,20,{"v":38,"d":"38 "},16.37,"A37.0\tCANCELLATION BY EMPLOYER - LOSS AND DAMAGE  Clause 37.0  Clause 37.3.5 is amended by replacing \"ninety (90)\" with \"one hundred and twenty (120)\"","CONT",{"v":0,"d":"0 "}]
[]
[141,150,1,1,21,null,16,"Clause 37.0 is amended by the addition of the following clause:  37.5 Notwithstanding any clause to the contrary, on cancellation of this agreement either by the employer or the contractor; or for any reason whatsoever, the contractor shall on written instruction, discontinue with the works on a date stated and withdraw himself from the site. The contractor shall not be entitled to refuse to withdraw from the works on the grounds of any lien or right of retention or on the grounds of any other right whatsoever  Fixed:____________ Value related:____________ Time related:____________","Item",{"v":1,"d":"1 "},null,{"$f":"ROUND($J283*K283,2)","v":{"v":0,"d":"0.00"}}]
[]
[142,151,1,1,21,{"v":39,"d":"39 "},16.38,"A38.0\tCANCELLATION BY CONTRACTOR - EMPLOYER'S DEFAULT  Clause 38.0  Clause 38.5.4 is amended by replacing \"ninety (90)\" with \"one hundred and twenty (120)\"  Clause 38.0 is amended by the addition of the following clause:","CONT",{"v":0,"d":"0 "}]
[]
[143,152,1,1,21,null,16,"38.7 Notwithstanding any clause to the contrary, on cancellation of this agreement either by the employer or the contractor; or for any reason whatsoever, the contractor shall on written instruction, discontinue with the works on a date stated and withdraw himself from the site. The contractor shall not be entitled to refuse to withdraw from the works on the grounds of any lien or right of retention or on the grounds of any other right whatsoever  Fixed:____________ Value related:____________ Time related:____________","Item",{"v":1,"d":"1 "},null,{"$f":"ROUND($J287*K287,2)","v":{"v":0,"d":"0.00"}}]
[]
[144,153,1,1,22,{"v":40,"d":"40 "},17.39,"A39.0\tCANCELLATION - CESSATION OF THE WORKS  Clause 39.0  Clause 39.3.5 is amended by the addition of the following at the end of the sentence:  \"within one hundred and twenty (120) working days of completion of such a report\"  Fixed:____________ Value related:____________ Time related:____________","Item",{"v":1,"d":"1 "},null,{"$f":"ROUND($J289*K289,2)","v":{"v":0,"d":"0.00"}}]
[]
[145,154,1,1,22,null,17,"DISPUTE"]
[]
[146,155,1,1,22,{"v":41,"d":"41 "},17.4,"A40.0\tDISPUTE SETTLEMENT Clause 40.0 \tClause 40.2.2 is amended by replacing \"one (1) year\" with \"three (3) years\"  Clause 40.6 is amended by removing the reference to:  No clause \tClause 40.7.1 is amended by replacing \"(10)\" with \"(15)\" and by the addition of the following: \tWhether or not mediation resolves the dispute, the parties shall bear their own costs concerning the mediation and equally share the costs of the mediator and related costs \tFixed:____________ Value related:____________ Time related:____________","Item",{"v":1,"d":"1 "},null,{"$f":"ROUND($J293*K293,2)","v":{"v":0,"d":"0.00"}}]
[]
[147,156,1,1,22,null,17,"SUBSTITUTE PROVISIONS"]
[]
[148,157,1,1,22,{"v":42,"d":"42 "},17.41,"A41.0\tSTATE CLAUSES  Clause 41.0  Fixed:____________ Value related:____________ Time related:____________","Item",{"v":1,"d":"1 "},null,{"$f":"ROUND($J297*K297,2)","v":{"v":0,"d":"0.00"}}]
[]
[149,158,1,1,23,null,17,"CONTRACT VARIABLES"]
[]
[150,159,1,1,23,{"v":43,"d":"43 "},17.42,"A42.0\tTHE SCHEDULE Clause 42.0Tenderers are referred to the Contract Data (EC) for variables pertaining to this contractFixed:____________ Value related:____________ Time related:____________","Item",{"v":1,"d":"1 "},null,{"$f":"ROUND($J301*K301,2)","v":{"v":0,"d":"0.00"}}]
[]
[151,160,1,1,23,null,18,"SECTION B: JBCC PRELIMINARIES"]
[]
[152,161,1,1,23,null,18,"B1.0\tDEFINITIONS AND INTERPRETATION"]
[]
[153,162,1,1,23,{"v":44,"d":"44 "},18.43,"B1.1\tDefinitions and interpretation  See also clause A1.0 of Section A for additional and/or amended definitions which shall apply equally to this Section  Fixed:____________ Value related:____________ Time related:____________","Item",{"v":1,"d":"1 "},null,{"$f":"ROUND($J307*K307,2)","v":{"v":0,"d":"0.00"}}]
[]
[154,163,1,1,23,null,18,"B2.0\tDOCUMENTS"]
[]
[155,164,1,1,23,{"v":45,"d":"45 "},18.44,"B2.1\tChecking of documents  Fixed:____________ Value related:____________ Time related:____________","Item",{"v":1,"d":"1 "},null,{"$f":"ROUND($J311*K311,2)","v":{"v":0,"d":"0.00"}}]
[]
[156,165,1,1,23,{"v":46,"d":"46 "},18.45,"B2.2\tProvisional bills of quantities  Fixed:____________ Value related:____________ Time related:____________","Item",{"v":1,"d":"1 "},null,{"$f":"ROUND($J313*K313,2)","v":{"v":0,"d":"0.00"}}]
[]
[157,166,1,1,23,{"v":47,"d":"47 "},18.46,"B2.3\tAvailability of construction documentation  Fixed:____________ Value related:____________ Time related:____________","Item",{"v":1,"d":"1 "},null,{"$f":"ROUND($J315*K315,2)","v":{"v":0,"d":"0.00"}}]
[]
[158,167,1,1,23,{"v":48,"d":"48 "},18.47,"B2.4\tInterests of agents  Fixed:____________ Value related:____________ Time related:____________","Item",{"v":1,"d":"1 "},null,{"$f":"ROUND($J317*K317,2)","v":{"v":0,"d":"0.00"}}]
[]
[159,168,1,1,24,{"v":49,"d":"49 "},18.48,"B2.5\tPriced documents  Fixed:____________ Value related:____________ Time related:____________","Item",{"v":1,"d":"1 "},null,{"$f":"ROUND($J319*K319,2)","v":{"v":0,"d":"0.00"}}]
[]
[160,169,1,1,24,{"v":50,"d":"50 "},18.49,"B2.6\tTender submission  Clause 2.6 is amended by replacing \"JBCC Form of Tender\" with \"Form of Offer and Acceptance (EC)\"  Fixed:____________ Value related:____________ Time related:____________","Item",{"v":1,"d":"1 "},null,{"$f":"ROUND($J321*K321,2)","v":{"v":0,"d":"0.00"}}]
[]
[161,170,1,1,24,null,18,"B3.0\tTHE SITE"]
[]
[162,171,1,1,24,{"v":51,"d":"51 "},18.5,"B3.1\tDefined works area  Fixed:____________ Value related:____________ Time related:____________","Item",{"v":1,"d":"1 "},null,{"$f":"ROUND($J325*K325,2)","v":{"v":0,"d":"0.00"}}]
[]
[163,172,1,1,24,{"v":52,"d":"52 "},18.51,"B3.2\tGeotechnical investigation  Fixed:____________ Value related:____________ Time related:____________","Item",{"v":1,"d":"1 "},null,{"$f":"ROUND($J327*K327,2)","v":{"v":0,"d":"0.00"}}]
[]
[164,173,1,1,24,{"v":53,"d":"53 "},19.52,"B3.3\tInspection of the site  Fixed:____________ Value related:____________ Time related:____________","Item",{"v":1,"d":"1 "},null,{"$f":"ROUND($J329*K329,2)","v":{"v":0,"d":"0.00"}}]
[]
[165,174,1,1,24,{"v":54,"d":"54 "},19.53,"B3.4\tExisting premises occupied  Fixed:____________ Value related:____________ Time related:____________","Item",{"v":1,"d":"1 "},null,{"$f":"ROUND($J331*K331,2)","v":{"v":0,"d":"0.00"}}]
[]
[166,175,1,1,24,{"v":55,"d":"55 "},19.54,"B3.5\tPrevious work - dimensional accuracy  Fixed:____________ Value related:____________ Time related:____________","Item",{"v":1,"d":"1 "},null,{"$f":"ROUND($J333*K333,2)","v":{"v":0,"d":"0.00"}}]
[]
[167,176,1,1,24,{"v":56,"d":"56 "},19.55,"B3.6\tPrevious work - defects  Fixed:____________ Value related:____________ Time related:____________","Item",{"v":1,"d":"1 "},null,{"$f":"ROUND($J335*K335,2)","v":{"v":0,"d":"0.00"}}]
[]
[168,177,1,1,24,{"v":57,"d":"57 "},19.56,"B3.7\tServices - known  Fixed:____________ Value related:____________ Time related:____________","Item",{"v":1,"d":"1 "},null,{"$f":"ROUND($J337*K337,2)","v":{"v":0,"d":"0.00"}}]
[]
[169,178,1,1,25,{"v":58,"d":"58 "},19.57,"B3.8\tServices - unknown  Fixed:____________ Value related:____________ Time related:____________","Item",{"v":1,"d":"1 "},null,{"$f":"ROUND($J339*K339,2)","v":{"v":0,"d":"0.00"}}]
[]
[170,179,1,1,25,{"v":59,"d":"59 "},19.58,"B3.9\tProtection of trees  Fixed:____________ Value related:____________ Time related:____________","Item",{"v":1,"d":"1 "},null,{"$f":"ROUND($J341*K341,2)","v":{"v":0,"d":"0.00"}}]
[]
[171,180,1,1,25,{"v":60,"d":"60 "},19.59,"B3.10\tArticles of value  Fixed:____________ Value related:____________ Time related:___________","Item",{"v":1,"d":"1 "},null,{"$f":"ROUND($J343*K343,2)","v":{"v":0,"d":"0.00"}}]
[]
[172,181,1,1,25,{"v":61,"d":"61 "},19.6,"B3.11\tInspection of adjoining properties  Fixed:____________ Value related:____________ Time related:____________","Item",{"v":1,"d":"1 "},null,{"$f":"ROUND($J345*K345,2)","v":{"v":0,"d":"0.00"}}]
[]
[173,182,1,1,25,null,19,"B4.0\tMANAGEMENT OF CONTRACT"]
[]
[174,183,1,1,25,{"v":62,"d":"62 "},19.61,"B4.1\tManagement of the works  Fixed:____________ Value related:____________ Time related:____________","Item",{"v":1,"d":"1 "},null,{"$f":"ROUND($J349*K349,2)","v":{"v":0,"d":"0.00"}}]
[]
[175,184,1,1,25,{"v":63,"d":"63 "},19.62,"B4.2\tProgramme for the works  Fixed:____________ Value related:____________ Time related:____________","Item",{"v":1,"d":"1 "},null,{"$f":"ROUND($J351*K351,2)","v":{"v":0,"d":"0.00"}}]
[]
[176,185,1,1,25,{"v":64,"d":"64 "},19.63,"B4.3\tProgress meetings  Fixed:____________ Value related:____________ Time related:____________","Item",{"v":1,"d":"1 "},null,{"$f":"ROUND($J353*K353,2)","v":{"v":0,"d":"0.00"}}]
[]
[177,186,1,1,25,{"v":65,"d":"65 "},20.64,"B4.4\tTechnical meetings  Fixed:____________ Value related:____________ Time related:____________","Item",{"v":1,"d":"1 "},null,{"$f":"ROUND($J355*K355,2)","v":{"v":0,"d":"0.00"}}]
[]
[178,187,1,1,25,{"v":66,"d":"66 "},20.65,"B4.5\tLabour and plant records  Fixed:____________ Value related:____________ Time related:____________","Item",{"v":1,"d":"1 "},null,{"$f":"ROUND($J357*K357,2)","v":{"v":0,"d":"0.00"}}]
[]
[179,188,1,1,26,null,20,"B5.0\tSAMPLES, SHOP DRAWINGS AND MANUFACTURERS\"€™ INSTRUCTIONS"]
[]
[180,189,1,1,26,{"v":67,"d":"67 "},20.66,"B5.1\tSamples of materials  Fixed:____________ Value related:____________ Time related:____________","Item",{"v":1,"d":"1 "},null,{"$f":"ROUND($J361*K361,2)","v":{"v":0,"d":"0.00"}}]
[]
[181,190,1,1,26,{"v":68,"d":"68 "},20.67,"B5.2\tWorkmanship samples  Fixed:____________ Value related:____________ Time related:____________","Item",{"v":1,"d":"1 "},null,{"$f":"ROUND($J363*K363,2)","v":{"v":0,"d":"0.00"}}]
[]
[182,191,1,1,26,{"v":69,"d":"69 "},20.68,"B5.3\tShop drawings  Fixed:____________ Value related:____________ Time related:____________","Item",{"v":1,"d":"1 "},null,{"$f":"ROUND($J365*K365,2)","v":{"v":0,"d":"0.00"}}]
[]
[183,192,1,1,26,{"v":70,"d":"70 "},20.69,"B5.4\tCompliance with manufacturers' instructions  Fixed:____________ Value related:____________ Time related:____________","Item",{"v":1,"d":"1 "},null,{"$f":"ROUND($J367*K367,2)","v":{"v":0,"d":"0.00"}}]
[]
[184,193,1,1,26,null,20,"B6.0\tTEMPORARY WORKS AND PLANT"]
[]
[185,194,1,1,26,{"v":71,"d":"71 "},20.7,"B6.1\tDeposits and fees  Fixed:____________ Value related:____________ Time related:____________","Item",{"v":1,"d":"1 "},null,{"$f":"ROUND($J371*K371,2)","v":{"v":0,"d":"0.00"}}]
[]
[186,195,1,1,26,{"v":72,"d":"72 "},20.71,"B6.2\tEnclosure of the works  Fixed:____________ Value related:____________ Time related:____________","Item",{"v":1,"d":"1 "},null,{"$f":"ROUND($J373*K373,2)","v":{"v":0,"d":"0.00"}}]
[]
[187,196,1,1,26,{"v":73,"d":"73 "},20.72,"B6.3\tAdvertising  Fixed:____________ Value related:____________ Time related:____________","Item",{"v":1,"d":"1 "},null,{"$f":"ROUND($J375*K375,2)","v":{"v":0,"d":"0.00"}}]
[]
[188,197,1,1,26,{"v":74,"d":"74 "},20.73,"B6.4\tPlant, equipment, sheds and offices  Fixed:____________ Value related:____________ Time related:____________","Item",{"v":1,"d":"1 "},null,{"$f":"ROUND($J377*K377,2)","v":{"v":0,"d":"0.00"}}]
[]
[189,198,1,1,26,{"v":75,"d":"75 "},20.74,"B6.5\tMain notice board  Fixed:____________ Value related:____________ Time related:____________","Item",{"v":1,"d":"1 "},null,{"$f":"ROUND($J379*K379,2)","v":{"v":0,"d":"0.00"}}]
[]
[190,199,1,1,27,{"v":76,"d":"76 "},21.75,"B6.6\tSubcontractors' notice board  Fixed:____________ Value related:____________ Time related:____________","Item",{"v":1,"d":"1 "},null,{"$f":"ROUND($J381*K381,2)","v":{"v":0,"d":"0.00"}}]
[]
[191,200,1,1,27,null,21,"B7.0\tTEMPORARY SERVICES"]
[]
[192,201,1,1,27,{"v":77,"d":"77 "},21.76,"B7.1\tLocation  Fixed:____________ Value related:____________ Time related:____________","Item",{"v":1,"d":"1 "},null,{"$f":"ROUND($J385*K385,2)","v":{"v":0,"d":"0.00"}}]
[]
[193,202,1,1,27,{"v":78,"d":"78 "},21.77,"B7.2\tWater  Fixed:____________ Value related:____________ Time related:____________","Item",{"v":1,"d":"1 "},null,{"$f":"ROUND($J387*K387,2)","v":{"v":0,"d":"0.00"}}]
[]
[194,203,1,1,27,{"v":79,"d":"79 "},21.78,"B7.3\tElectricity  Fixed:____________ Value related:____________ Time related:____________","Item",{"v":1,"d":"1 "},null,{"$f":"ROUND($J389*K389,2)","v":{"v":0,"d":"0.00"}}]
[]
[195,204,1,1,27,{"v":80,"d":"80 "},21.79,"B7.4\tTelecommunication facilities  Fixed:____________ Value related:____________ Time related:____________","Item",{"v":1,"d":"1 "},null,{"$f":"ROUND($J391*K391,2)","v":{"v":0,"d":"0.00"}}]
[]
[196,205,1,1,27,{"v":81,"d":"81 "},21.8,"B7.5\tAblution facilities  Fixed:____________ Value related:____________ Time related:____________","Item",{"v":1,"d":"1 "},null,{"$f":"ROUND($J393*K393,2)","v":{"v":0,"d":"0.00"}}]
[]
[197,206,1,1,27,null,21,"B8.0\tPRIME COST AMOUNTS"]
[]
[198,207,1,1,27,{"v":82,"d":"82 "},21.81,"B8.1\tResponsibility for prime cost amounts  Fixed:____________ Value related:____________ Time related:____________","Item",{"v":1,"d":"1 "},null,{"$f":"ROUND($J397*K397,2)","v":{"v":0,"d":"0.00"}}]
[]
[199,208,1,1,27,null,21,"B9.0\tATTENDANCE ON N/S SUBCONTRACTORS"]
[]
[200,209,1,1,27,{"v":83,"d":"83 "},21.82,"B9.1\tGeneral attendance  Fixed:____________ Value related:____________ Time related:____________","Item",{"v":1,"d":"1 "},null,{"$f":"ROUND($J401*K401,2)","v":{"v":0,"d":"0.00"}}]
[]
[201,210,1,1,28,{"v":84,"d":"84 "},21.83,"B9.2\tSpecial attendance  Fixed:____________ Value related:____________ Time related:____________","Item",{"v":1,"d":"1 "},null,{"$f":"ROUND($J403*K403,2)","v":{"v":0,"d":"0.00"}}]
[]
[202,211,1,1,28,{"v":85,"d":"85 "},21.84,"B9.3\tCommissioning - fuel, water and electricity  Fixed:____________ Value related:____________ Time related:____________","Item",{"v":1,"d":"1 "},null,{"$f":"ROUND($J405*K405,2)","v":{"v":0,"d":"0.00"}}]
[]
[203,212,1,1,28,null,22,"B10.0\tFINANCIAL ASPECTS"]
[]
[204,213,1,1,28,{"v":86,"d":"86 "},22.85,"B10.1\tStatutory taxes, duties and levies  Fixed:____________ Value related:____________ Time related:____________","Item",{"v":1,"d":"1 "},null,{"$f":"ROUND($J409*K409,2)","v":{"v":0,"d":"0.00"}}]
[]
[205,214,1,1,28,{"v":87,"d":"87 "},22.86,"B10.2\tPayment for preliminaries  Fixed:____________ Value related:____________ Time related:____________","Item",{"v":1,"d":"1 "},null,{"$f":"ROUND($J411*K411,2)","v":{"v":0,"d":"0.00"}}]
[]
[206,215,1,1,28,{"v":88,"d":"88 "},22.87,"B10.3\tAdjustment of preliminariesClauses B10.3.1 and B10.3.2 are amended by replacing \"within fifteen (15) working days of taking possession of the site\" with \"when submitting his priced bills of quantities / lump sum document\" Fixed:____________ Value related:____________ Time related:____________","Item",{"v":1,"d":"1 "},null,{"$f":"ROUND($J413*K413,2)","v":{"v":0,"d":"0.00"}}]
[]
[207,216,1,1,28,{"v":89,"d":"89 "},22.88,"B10.4\tPayment certificate cash flow  Fixed:____________ Value related:____________ Time related:____________","Item",{"v":1,"d":"1 "},null,{"$f":"ROUND($J415*K415,2)","v":{"v":0,"d":"0.00"}}]
[]
[208,217,1,1,28,null,22,"B11.0\tGENERAL"]
[]
[209,218,1,1,28,{"v":90,"d":"90 "},22.89,"B11.1\tProtection of the works  Fixed:____________ Value related:____________ Time related:____________","Item",{"v":1,"d":"1 "},null,{"$f":"ROUND($J419*K419,2)","v":{"v":0,"d":"0.00"}}]
[]
[210,219,1,1,28,{"v":91,"d":"91 "},22.9,"B11.2\tProtection / isolation of existing / sectionally occupied works  Fixed:____________ Value related:____________ Time related:____________","Item",{"v":1,"d":"1 "},null,{"$f":"ROUND($J421*K421,2)","v":{"v":0,"d":"0.00"}}]
[]
[211,220,1,1,29,{"v":92,"d":"92 "},22.91,"B11.3\tSecurity of the works  Fixed:____________ Value related:____________ Time related:____________","Item",{"v":1,"d":"1 "},null,{"$f":"ROUND($J423*K423,2)","v":{"v":0,"d":"0.00"}}]
[]
[212,221,1,1,29,{"v":93,"d":"93 "},22.92,"B11.4\tNotice before covering work  Fixed:____________ Value related:____________ Time related:____________","Item",{"v":1,"d":"1 "},null,{"$f":"ROUND($J425*K425,2)","v":{"v":0,"d":"0.00"}}]
[]
[213,222,1,1,29,{"v":94,"d":"94 "},22.93,"B11.5\tDisturbance  Fixed:____________ Value related:____________ Time related:____________","Item",{"v":1,"d":"1 "},null,{"$f":"ROUND($J427*K427,2)","v":{"v":0,"d":"0.00"}}]
[]
[214,223,1,1,29,{"v":95,"d":"95 "},22.94,"B11.6\tEnvironmental disturbance  Fixed:____________ Value related:____________ Time related:____________","Item",{"v":1,"d":"1 "},null,{"$f":"ROUND($J429*K429,2)","v":{"v":0,"d":"0.00"}}]
[]
[215,224,1,1,29,{"v":96,"d":"96 "},23.95,"B11.7\tWorks cleaning and clearing  Fixed:____________ Value related:____________ Time related:____________","Item",{"v":1,"d":"1 "},null,{"$f":"ROUND($J431*K431,2)","v":{"v":0,"d":"0.00"}}]
[]
[216,225,1,1,29,{"v":97,"d":"97 "},23.96,"B11.8\tVermin  Fixed:____________ Value related:____________ Time related:____________","Item",{"v":1,"d":"1 "},null,{"$f":"ROUND($J433*K433,2)","v":{"v":0,"d":"0.00"}}]
[]
[217,226,1,1,29,{"v":98,"d":"98 "},23.97,"B11.9\tOverhand work  Fixed:____________ Value related:____________ Time related:____________","Item",{"v":1,"d":"1 "},null,{"$f":"ROUND($J435*K435,2)","v":{"v":0,"d":"0.00"}}]
[]
[218,227,1,1,29,{"v":99,"d":"99 "},23.98,"B11.10\tInstruction manuals and guarantees  Fixed:____________ Value related:____________ Time related:____________","Item",{"v":1,"d":"1 "},null,{"$f":"ROUND($J437*K437,2)","v":{"v":0,"d":"0.00"}}]
[]
[219,228,1,1,29,{"v":100,"d":"100 "},23.99,"B11.11\tAs built information  Fixed:____________ Value related:____________ Time related:____________","Item",{"v":1,"d":"1 "},null,{"$f":"ROUND($J439*K439,2)","v":{"v":0,"d":"0.00"}}]
[]
[220,229,1,1,29,{"v":101,"d":"101 "},23.1,"B11.12\tTenant installations  Fixed:____________ Value related:____________ Time related:____________","Item",{"v":1,"d":"1 "},null,{"$f":"ROUND($J441*K441,2)","v":{"v":0,"d":"0.00"}}]
[]
[221,230,1,1,30,null,23,"B12.0\tSCHEDULE OF VARIABLES"]
[]
[222,231,1,1,30,{"v":102,"d":"102 "},23.101,"B12.1\tSchedule of variables  Fixed:____________ Value related:____________ Time related:____________","Item",{"v":1,"d":"1 "},null,{"$f":"ROUND($J445*K445,2)","v":{"v":0,"d":"0.00"}}]
[]
[223,232,1,1,30,null,23,"This schedule contains all variables referred to in this document and is divided into pre-tender and post-tender categories. The pre-tender category must be completed in full and included in the tender documents. Both the pre-tender and post-tender categories form part of these Preliminaries"]
[]
[224,233,1,1,30,null,23,"Spaces requiring information must be filled in, shown as \"not applicable\" or deleted and not left blank. Where choices are offered, the non-applicable items are to be deleted. Where insufficient space is provided the information should be annexed hereto and cross-referenced to the applicable clause of the schedule. Key cross reference clauses are italicised in [ ] brackets"]
[]
[225,234,1,1,30,null,23,"12.1\tPRE-TENDER INFORMATION  12.1.1\tProvisional bills of quantities [2.2]\tThe quantities are provisional\t\t\t\t\tYES"]
[]
[226,235,1,1,30,null,23,"12.1.2\tAvailability of construction documentation [2.3]\tConstruction documentation is complete\t\t\t\tNO"]
[]
[227,236,1,1,30,null,24,"12.1.3\tInterests of agents [2.4]\tDetails: NIL"]
[]
[228,237,1,1,30,null,24,"12.1.4\tDefined works area [3.1]\tDetails: As per Architect's detail"]
[]
[229,238,1,1,30,null,24,"12.1.5\tGeotechnical investigation [3.2]\tDetails: Available on request from the Engineer"]
[]
[230,239,1,1,30,null,24,"12.1.6\tExisting premises occupied [3.4]\tSpecific requirements: Not Applicable"]
[]
[231,240,1,1,31,null,24,"12.1.7\tPrevious work - dimensional accuracy [3.5]\tDetails: As above item"]
[]
[232,241,1,1,31,null,24,"12.1.8\tPrevious work - defects [3.6]\tDetails: As above item"]
[]
[233,242,1,1,31,null,24,"12.1.9\tServices - known [3.7]\tDetails: Details available on request from the Engineer"]
[]
[234,243,1,1,31,null,24,"12.1.10\tProtection of trees [3.9]\tSpecific requirements: Not applicable"]
[]
[235,244,1,1,31,null,24,"12.1.11\tInspection of adjoining properties [3.11]\tSpecific requirements: Contractor carry out their own inspection and report if they identify any concerns"]
[]
[236,245,1,1,31,null,24,"12.1.12\tEnclosure of the works [6.2]\tSpecific requirements:"]
[]
[237,246,1,1,31,null,24,"12.1.13\tOffices [6.4.3]\tSpecific requirements: \tThe contractor shall provide, maintain and remove on completion of the works an office for the exclusive use of the principal agent, minimum size 4 x 3 x 3m high internally, suitably insulated and ventilated, provided with electric lighting and fitted with boarded floor, desk, chair, drawing stool, drawing board and lock-up drawers for drawings. The office shall be kept clean and fit for use at all times"]
[]
[238,247,1,1,31,null,25,"12.1.14\tMain notice board [6.5]\tSpecific requirements: Drawing to be issued"]
[]
[239,248,1,1,31,null,25,"12.1.15\tSubcontractors' notice board [6.6]\tA notice board is required - No \t"]
[]
[240,249,1,1,32,null,25,"12.1.16\tWater [7.2]\tOption A (by contractor)\t\t\t\t\tYES  \tOption B (by employer - free of charge)\t\t\t\tNO  \tOption C (by employer - metered)\t\t\t\tNO"]
[]
[241,250,1,1,32,null,25,"12.1.17\tElectricity [7.3]\tOption A (by contractor)\t\t\t\t\tYES  \tOption B (by employer - free of charge)\t\t\t\tNO  \tOption C (by employer - metered)\t\t\t\tNO"]
[]
[242,251,1,1,32,null,25,"12.1.18\tTelecommunications [7.4]\tTelephone - BY CONTRACTOR\t\t\t\t\t\t\tYES  \tFacsimile - BY CONTRACTOR\t\t\t\t\t\t\tYES  \tE-mail\t- BY CONTRACTOR\t\t\t\t\t\t\tYES"]
[]
[243,252,1,1,32,null,25,"12.1.19\tAblution facilities [7.5]\tOption A (by contractor)\t\t\t\t\tYES  \tOption B (by employer)\t\t\t\t\t\tNO"]
[]
[244,253,1,1,32,null,25,"12.1.20\tProtection of existing/sectionally occupied works [11.2]\tProtection is required\t\t\t\t\t\tYES"]
[]
[245,254,1,1,32,null,26,"12.1.21\tSpecial attendance [9.2]\tNot Applicable"]
[]
[246,255,1,1,33,null,26,"12.1.22\tProtection of the works [11.1]\tSpecific requirements: Not Applicable"]
[]
[247,256,1,1,33,null,26,"12.1.23\tDisturbance [11.5]\tSpecific requirements: \tThe contractor shall keep the site, structures, well watered during operations to prevent dust and shall provide and erect and remove on completion of the works all necessary temporary dust screens all to the satisfaction of the principal agent"]
[]
[248,257,1,1,33,null,26,"12.1.24\tEnvironmental disturbance [11.6]\tSpecific requirements: See Environmental Management Plan available upon request from Zutari Consulting Engineers"]
[]
[249,258,1,1,33,null,26,"12.2\tPOST-TENDER INFORMATION"]
[]
[250,259,1,1,33,null,26,"12.2.1\tPayment of preliminaries [10.2]\tOption A (prorated)\t\t\t\t\t\tNO  \tOption B (calculated)\t\t\t\t\t\tYES"]
[]
[251,260,1,1,33,null,26,"12.2.2\tAdjustment of preliminaries [10.3]\tOption A (three categories)\t\t\t\t\tNO  \tOption B (detailed breakdown)\t\t\t\t\tYES"]
[]
[252,261,1,1,33,null,26,"12.2.3\tAdditional agreed preliminaries items \tDetails: NIL"]
[]
[253,262,1,1,33,null,27,"SECTION C: SPECIFIC PRELIMINARIES"]
[]
[254,263,1,1,33,null,27,"Section C contains specific preliminary items which apply to this contract except where N/A (Not Applicable) appears against an item"]
[]
[255,264,1,1,34,{"v":103,"d":"103 "},27.102,"C1.0\tCONTRACT DRAWINGS  The drawings issued with the tender documents do not comprise the complete set but serve as a guide only for tendering purposes and for indicating the scope of the work to enable the tenderer to acquaint himself with the nature and extent of the works and the manner in which they are to be executed  Should any part of the drawings not be clearly understood by the tenderer he shall, before submitting his tender, obtain clarification in writing from the principal agent  Fixed: ____________ Value related:____________ Time related:____________","Item",{"v":1,"d":"1 "},null,{"$f":"ROUND($J511*K511,2)","v":{"v":0,"d":"0.00"}}]
[]
[256,265,1,1,34,{"v":104,"d":"104 "},27.103,"C2.0\tGENERAL PREAMBLES  The document \"Specification of Materials and Methods to be used (PW371)\" is obtainable on the Department's website (http://www.publicworks.gov.za/ under \"Consultants Guidelines\"), and shall be read in conjunction with the bills of quantities / lump sum document and be referred to for the full descriptions of work to be done and materials to be used  Fixed: ____________ Value related:____________ Time related:____________","Item",{"v":1,"d":"1 "},null,{"$f":"ROUND($J513*K513,2)","v":{"v":0,"d":"0.00"}}]
[]
[257,266,1,1,34,null,null,"GENERAL PREAMBLES"]
[]
[258,267,1,1,34,null,null,"The General Preambles for Trades 2017 published by the Association of South African Quantity Surveyors is designed to support and extend the abbreviated descriptions utilised in these bills of quantities by inter alia referring to SANS construction standards. Where such preambles are not applicable (eg where BS or Euro construction standards are applicable or the design consultants provide other preambles/specifications for insertion), users are to ensure that the abbreviated descriptions when read in conjunction with the Standard System of Measuring Building Work (seventh edition) for works within South Africa or the Standard Method of Measuring Building Work for Africa 2015 (first edition) for works elsewhere in Africa, represent the full description by extending the abbreviated bills of quantities descriptions and/or by inserting appropriate preambles or specifications"]
[]
[259,268,1,1,35,{"v":105,"d":"105 "},27.104,"C3.0\tTRADE NAMESWherever a trade name for any product has been described in the bills of quantities / lump sum document, the tenderer's attention is drawn to the fact that any other product of equal quality may be used subject to the written approval of the principal agent being obtained prior to the closing date for submission of tenders If prior written approval for an alternative product is not obtained, the product described shall be deemed to have been tendered forFixed: ____________ Value related:____________ Time related:____________","Item",{"v":1,"d":"1 "},null,{"$f":"ROUND($J519*K519,2)","v":{"v":0,"d":"0.00"}}]
[]
[260,269,1,1,35,{"v":106,"d":"106 "},28.105,"C4.0\tIMPORTED MATERIALS AND EQUIPMENT  Where imported items are listed in the tender documents, the tenderer shall provide all the information called for, failing which the price of any such item, materials or equipment shall be excluded from currency fluctuations. (refer to Schedule of Imported Materials and Equipment to be completed by tenderer)  Notwithstanding any provisions elsewhere regarding the adjustment of contract prices, the price of any item, material or equipment listed in terms of this clause shall be excluded from the Contract Price Adjustment Provisions (if applicable)  Fixed: ____________ Value related:____________ Time related:____________","Item",{"v":1,"d":"1 "},null,{"$f":"ROUND($J521*K521,2)","v":{"v":0,"d":"0.00"}}]
[]
[]
[{"$nulls":7},"Carried forward to Summary "]
[]
[]
[364,690,3,1,43,null,null,"BILL  NO. 1"]
[]
[365,691,3,1,43,null,null,"EARTHWORKS (PROVISIONAL)"]
[]
[366,693,3,1,43,null,null,"PREAMBLES",null,"QTY","RATE","AMOUNT"]
[]
[367,694,3,1,43,null,null,"For preambles refer to \"General Specification of Materials and Methods to be used for Building Contracts\"  (GP /ASC)"]
[]
[368,695,3,1,43,null,null,"CPAP ADJUSTMENT"]
[]
[369,696,3,1,43,null,null,"Unless otherwise stated all items in this bill shall be deemed to fall into Work Group 104 for Contract Price Adjustment Provisions"]
[]
[370,697,3,1,43,null,null,"SUPPLEMENTARY PREAMBLES"]
[]
[371,698,3,1,43,null,null,"Nature of ground"]
[]
[372,699,3,1,43,null,null,"A Soils Investigation has been carried out on the site by the Engineer and the report is annexed to these bills of quantities."]
[]
[373,700,3,1,43,null,null,"Carting away of excavated material"]
[]
[374,701,3,1,43,null,null,"Descriptions of carting away of excavated material shall be deemed to include loading excavated material onto trucks directly from the excavations or, alternatively, from stock piles situated on the building site."]
[]
[375,702,3,1,43,null,null,"Filling"]
[]
[376,703,3,1,43,null,null,"Notwithstanding the reference to prescribed multiple handling in clause 1 page 6 of the Standard System of Measuring Building Work, prices for filling and backfilling shall include for all selection and any necessary multiple handling of material."]
[]
[377,704,3,1,43,null,null,"Testing"]
[]
[378,705,3,1,43,null,null,"Prices for filling are to include for all necessary density tests in accordance with SABS 1200D"]
[]
[379,707,3,1,44,null,null,"SITE CLEARANCE ETC"]
[]
[380,708,3,1,44,null,null,"Site Clearance"]
[]
[381,709,3,1,44,{"v":1,"d":"1 "},null,"Digging up and removal of rubbish, debris, vegetation, hedges, shrubs and trees not exceeding 200mm girth, bush, etc","m²",{"v":800,"d":"800 "}]
[]
[382,710,3,1,44,null,null,"Remove and grub large trees and tree stumps, of girth around the trunk 1m high above ground level including grubbing of roots, filling of holes and compaction to 90% Mod AASHTO density."]
[]
[384,712,3,1,44,{"v":2,"d":"2 "},null,"Tree exceeding 500mm and not exceeding 1000mm girth","No",{"v":2,"d":"2 "}]
[]
[{"$nulls":5},{"v":3,"d":"3 "},null,"Tree exceeding 1000mm and not exceeding 2000mm girth","No",{"v":2,"d":"2 "}]
[]
[{"$nulls":5},{"v":4,"d":"4 "},null,"Tree exceeding 2000mm and not exceeding 3000mm girth","No",{"v":2,"d":"2 "}]
[]
[385,713,3,1,44,null,null,"Remove topsoil to nominal depth of 150mm and stockpile."]
[]
[]
[387,721,3,1,44,null,null,"EXCAVATION, FILLING, ETC"]
[]
[388,722,3,1,44,null,null,"Excavation in earth not exceeding 2m deep in confined spaces"]
[]
[389,723,3,1,44,{"v":5,"d":"5 "},null,"Reduced levels under floors","m³",{"v":300,"d":"300 "}]
[]
[391,725,3,1,44,{"v":6,"d":"6 "},null,"Trenches","m³",{"v":110,"d":"110 "}]
[]
[392,726,3,1,44,{"v":7,"d":"7 "},null,"Holes","m³",{"v":14,"d":"14 "}]
[]
[]
[395,729,3,1,44,null,null,"Extra over excavations in earth for excavation in:"]
[]
[396,730,3,1,44,{"v":8,"d":"8 "},null,"Soft rock","m³",{"$f":"SUM(J577:J582)*20%","v":{"v":84.80000000000001,"d":"85 "}}]
[]
[397,731,3,1,45,{"v":9,"d":"9 "},null,"Hard rock","m³",{"$f":"J587*10%","v":{"v":8.480000000000002,"d":"8 "}}]
[]
[398,732,3,1,45,null,null,"Extra over all excavations for carting away:"]
[]
[399,733,3,1,45,{"v":10,"d":"10 "},null,"Surplus material from excavations and / or stock piles on site to a dumping site to be located by the contractor.","m³",{"v":370,"d":"370 "}]
[]
[400,734,3,1,45,null,null,"Risk of collapse of excavations:"]
[]
[401,735,3,1,45,{"v":11,"d":"11 "},null,"Side of trenches and holes excavations not exceeding 1,5m deep","m²",{"v":60,"d":"60 "}]
[]
[{"$nulls":5},{"v":12,"d":"12 "},null,"Ditto, but from ground level to exceeding 1,5m","m²",{"v":100,"d":"100 "}]
[]
[402,736,3,1,45,null,null,"Keeping excavations free of water:"]
[]
[403,737,3,1,45,{"v":13,"d":"13 "},null,"Keeping excavations free from mud and all water including subterranean sources.","Item",{"v":1,"d":"1 "}]
[]
[404,738,3,1,45,null,null,"Imported G7 filling , selected and supplied by the contractor, including depositing in layers not exceeding 150mm thick and compacting to 98% modified AASHTO dry density to trenches, holes, etc"]
[]
[405,739,3,1,45,{"v":14,"d":"14 "},null,"Backfilling to trenches, holes, etc","m³",{"v":150,"d":"150 "}]
[]
[{"$nulls":5},{"v":15,"d":"15 "},null,"Under floors, steps, pavings, etc","m³",{"v":75,"d":"75 "}]
[]
[406,740,3,1,45,null,null,"Imported G5 filling , selected and supplied by the contractor, including depositing in layers not exceeding 150mm thick and compacting to 98% modified AASHTO dry density to trenches, holes, etc"]
[]
[407,741,3,1,45,{"v":16,"d":"16 "},null,"Under floors, steps, pavings, etc","m³",{"v":70,"d":"70 "}]
[]
[]
[{"$nulls":7},"Coarse river sand filling supplied by the contractor"]
[]
[{"$nulls":5},{"v":17,"d":"17 "},null,"Under floors etc","m³",{"v":50,"d":"50 "}]
[]
[]
[409,743,3,1,45,null,null,"Compaction of surfaces"]
[]
[410,744,3,1,45,{"v":18,"d":"18 "},null,"Compaction of ground surface under floors etc including scarifying for a depth of 150mm, breaking down oversize material, adding suitable material where necessary and compacting to 93% Mod AASHTO density.","m²",{"v":410,"d":"410 "}]
[]
[]
[{"$nulls":7},"Prescribed density tests on filling "]
[]
[{"$nulls":5},{"v":19,"d":"19 "},null,"Allow for compaction tests by an approved laboratory to determine density of filling material","No",{"v":45,"d":"45 "}]
[]
[411,745,3,1,45,null,null,"Soil insecticide with Approved brand of ant-termite soil poison applied by a Registered Pest Control Company and guaranteed against termite infestation for ten years:"]
[]
[412,746,3,1,45,{"v":20,"d":"20 "},null,"Under floors, etc, including forming and poisoning shallow furrows against foundation walls, etc, filling in furrows and ramming","m²",{"v":60,"d":"60 "}]
[]
[413,747,3,1,45,{"v":21,"d":"21 "},null,"To bottom and sides of trenches","m²",{"v":450,"d":"450 "}]
{"$rows_empty":24}
[{"$nulls":7},"Carried forward to Summary ",{"$nulls":3},{"$f":"SUM(L560:L650)","v":0}]
[]
[]
[415,749,3,2,46,null,null,"BILL  NO. 2"]
[]
[416,750,3,2,46,null,null,"CONCRETE, FORMWORK AND REINFORCEMENT  (PROVISIONAL)"]
[]
[417,751,3,2,46,null,null,"PREAMBLES",null,"QTY","RATE","AMOUNT"]
[]
[418,752,3,2,46,null,null,"For preambles refer to \"General Specification of Materials and Methods to be used for Building Contracts\"  (GP /ASC)"]
[]
[419,753,3,2,46,null,null,"CPAP ADJUSTMENT"]
[]
[420,754,3,2,46,null,null,"Unless otherwise stated all items in this bill shall be deemed to fall into Work Group 110, 111 and 114 for Contract Price Adjustment Provisions"]
[]
[{"$nulls":7},"Costs of tests."]
[{"$nulls":7},"The costs of making, storing and testing of concrete test cubes as required under clause 7 ' of Tests of SABS 1200 G shall include the cost of providingcube moulds necessary for the purpose, for testing costs and for submitting reports on the tests for the Engineer. The testing shall be undertaken by a an independent firm or institution nominated by the contractor to the approval of the Engineer. ( Tets cubes are measured separately). "]
[]
[{"$nulls":7},"UNREINFORCED CONCRETE CAST AGAINST EXCAVATED SURFACES"]
[]
[{"$nulls":7},"15Mpa/19mm Concrete"]
[]
[{"$nulls":5},{"v":1,"d":"1 "},null,"Surface blinding under footings and bases","m³",100]
[]
[{"$nulls":7},"REINFORCED CONCRETE CAST AGAINST EXCAVATED SURFACES"]
[]
[{"$nulls":7},"30MPa/20mm concrete"]
[]
[{"$nulls":5},{"v":2,"d":"2 "},null,"Strip footings to walls ","m³",{"v":70,"d":"70 "}]
[]
[421,755,3,2,46,null,null,"REINFORCED CONCRETE "]
[]
[422,756,3,2,46,null,null,"30MPa/20mm concrete"]
[]
[423,757,3,2,46,{"v":3,"d":"3 "},null,"Surface beds, on waterproofing","m³",{"v":60,"d":"60 "}]
[]
[425,759,3,2,46,{"v":4,"d":"4 "},null,"Suspended slabs","m³",{"v":150,"d":"150 "}]
[]
[427,761,3,2,46,{"v":5,"d":"5 "},null,"Roof slabs","m³",{"v":80,"d":"80 "}]
[]
[{"$nulls":5},{"v":6,"d":"6 "},null,"Columns","m³",{"v":50,"d":"50 "}]
[]
[428,5427,3,2,46,{"v":7,"d":"7 "},null,"Beams","m³",{"v":20,"d":"20 "}]
[]
[{"$nulls":5},{"v":8,"d":"8 "},null,"Cavity walls","m³",{"v":75,"d":"75 "}]
[]
[{"$nulls":5},{"v":9,"d":"9 "},null,"Stair cases","m³",{"v":45,"d":"45 "}]
[]
[{"$nulls":5},{"v":10,"d":"10 "},null,"(a)Allow one million and five hundred thousand (R 1 500 000)  for micro pilling foundation","sum",{"v":1,"d":"1 "},{"v":1500000,"d":"1,500,000.00"}]
[]
[{"$nulls":7},"(b) Contractor charge to allow for handling costs & profit ","%"]
[]
[{"$nulls":7},"Test blocks"]
[]
[{"$nulls":5},{"v":11,"d":"11 "},null,"Making and testing of 150x150x150mm concrete strength test cubes (Provision)","No.",{"v":50,"d":"50 "}]
[]
[{"$nulls":7},"FINISHING TOP OF SURFACE OF CONCRETE"]
[432,763,3,2,46,null,null,"Finishing top surfaces of concrete smooth with a wood float"]
[]
[433,764,3,2,46,{"v":12,"d":"12 "},null,"Surface beds, suspended slabs, ground slabs, roof slabs, etc","m²",{"v":2346,"d":"2,346 "}]
[]
[{"$nulls":7},"Finishing top surfaces of concrete smooth with a steel float"]
[]
[{"$nulls":5},{"v":13,"d":"13 "},null,"Surface beds, suspended slabs, ground slabs, roof slabs, etc","m²",{"v":1500,"d":"1,500 "}]
[]
[{"$nulls":7},"Charmfers at corners"]
[]
[{"$nulls":5},{"v":14,"d":"14 "},null,"19 x 19mm  triangular fillet at corners formed of unreinforced concrete steel trowelled","m",{"v":450,"d":"450 "}]
[]
[{"$nulls":7},"MOVEMENT JOINT ETC"]
[]
[436,767,3,2,47,null,null,"Expansion joints with bitumen impregnated soft board between vertical concrete and brick surfaces"]
[]
[437,768,3,2,47,{"v":15,"d":"15 "},null,"10mm Joints not exceeding 300mm high","m",{"v":300,"d":"300 "}]
[]
[438,769,3,2,47,null,null,"Saw-cut joints sealed with two part flexible polyurethane joint sealant"]
[]
[439,770,3,2,47,{"v":16,"d":"16 "},null,"6 x 30mm Saw-cut joints in top of concrete","m",{"v":100,"d":"100 "}]
[]
[440,5390,3,2,47,null,null,"SMOOTH AND FAIR FORMWORK (DEGREE OF ACCURACY II)"]
[]
[441,5391,3,2,47,null,null,"Smooth formwork to sides"]
[]
[442,5392,3,2,47,{"v":17,"d":"17 "},null,"Beams propped to a height exceeding 3,5m and not exceeding 5m","m²",{"v":100,"d":"100 "}]
[]
[443,5393,3,2,47,{"v":18,"d":"18 "},null,"Walls with total height exceeding 3,5m and not exceeding 5m above bearing level","m²",{"v":8,"d":"8 "}]
[]
[444,771,3,2,47,null,null,"ROUGH FORMWORK (DEGREE OF ACCURACY III)"]
[]
[445,772,3,2,47,null,null,"Rough formwork to sides"]
[]
[446,773,3,2,47,{"v":19,"d":"19 "},null,"Edges, risers, ends and reveals not exceeding 300mm high or wide","m",{"v":500,"d":"500 "}]
[]
[{"$nulls":7},"Permanent Formwork"]
[]
[{"$nulls":5},{"v":20,"d":"20 "},null,"Soffit of slabs","m2",{"v":1000,"d":"1,000 "}]
[]
[447,774,3,2,47,null,null,"REINFORCEMENT (PROVISIONAL)"]
[]
[448,775,3,2,47,null,null,"High tensile steel"]
[]
[449,776,3,2,47,{"v":21,"d":"21 "},null,"High tensile steel reinforcement bars to structural concrete work.","t",{"v":25,"d":"25.00"}]
[]
[450,777,3,2,47,null,null,"Fabric reinforcement"]
[]
[451,778,3,2,47,{"v":22,"d":"22 "},null,"Type Ref. 245 in concrete surface beds, slabs, etc","m²",2350]
[]
[]
[]
[{"$nulls":7},"Carried forward to Summary ",{"$nulls":3},{"$f":"SUM(L681:L765)","v":0}]
[]
[453,780,3,3,48,null,null,"BILL  NO. 3"]
[]
[454,781,3,3,48,null,null,"MASONRY"]
[]
[455,782,3,3,48,null,null,"PREAMBLES",null,"QTY","RATE","AMOUNT"]
[]
[456,783,3,3,48,null,null,"For preambles refer to \"General Specification of Materials and Methods to be used for Building Contracts\"  (GP /ASC)"]
[]
[457,784,3,3,48,null,null,"CPAP ADJUSTMENT"]
[]
[458,785,3,3,48,null,null,"Unless otherwise stated all items in this bill shall be deemed to fall into Work Group 118 for Contract Price Adjustment Provisions"]
[]
[459,786,3,3,48,null,null,"Sizes in descriptions"]
[]
[460,787,3,3,48,null,null,"Where sizes in descriptions are given in brick units, \"one brick\" shall represent the length and \"half brick\" the width of a brick"]
[]
[461,788,3,3,48,null,null,"Hollow walls"]
[]
[462,789,3,3,48,null,null,"Descriptions of hollow walls shall be deemed to include leaving every fifth perpend of the bottom course of the external skin open as a weep hole."]
[]
[463,790,3,3,48,null,null,"Face bricks"]
[]
[464,791,3,3,48,null,null,"Bricks shall be ordered timeously to obtain uniformity in size and colour."]
[]
[465,792,3,3,48,null,null,"Pointing"]
[]
[466,793,3,3,48,null,null,"Descriptions of recessed pointing to fair face brickwork and face brickwork shall be deemed to include square recessed, hollow recessed, weathered pointing, etc"]
[]
[467,795,3,3,49,null,null,"BRICKWORK IN FOUNDATIONS"]
[]
[468,796,3,3,49,null,null,"Brickwork of NFX bricks (14 MPa nominal compressive strength) in class II mortar"]
[]
[469,797,3,3,49,null,null,"FOUNDATIONS (PROVISIONAL)"]
[]
[470,798,3,3,49,{"v":1,"d":"1 "},null,"Half brick walls(LI)","m²",{"v":50,"d":"50 "}]
[]
[471,799,3,3,49,{"v":2,"d":"2 "},null,"One brick walls(LI)","m²",{"v":200,"d":"200 "}]
[]
[472,800,3,3,49,null,null,"SUPERSTRUCTURE",{"$nulls":5}," "]
[]
[473,801,3,3,49,null,null,"Brickwork of NFP bricks in class II mortar"]
[]
[]
[474,802,3,3,49,{"v":3,"d":"3 "},null,"Half brick walls(LI)","m²",{"v":220,"d":"220 "}]
[]
[475,803,3,3,49,{"v":4,"d":"4 "},null,"One brick walls(LI)","m²",{"v":940,"d":"940 "}]
[]
[]
[]
[478,805,3,3,49,null,null,"BRICKWORK AND BLOCKWORK SUNDRIES"]
[]
[479,806,3,3,49,{"v":5,"d":"5 "},null,"115mm Wide reinforcement built in horizontally","m",{"v":430,"d":"430 "},{"$nulls":6}," "]
[]
[480,807,3,3,49,{"v":6,"d":"6 "},null,"230mm Wide reinforcement built in horizontally","m",{"v":5000,"d":"5,000 "}]
[]
[{"$nulls":5},{"v":7,"d":"7 "},null,"Ditto, but in foundations (Provisional)","m",{"v":1000,"d":"1,000 "}]
[]
[481,808,3,3,49,null,null,"Turning pieces"]
[]
[482,809,3,3,49,{"v":8,"d":"8 "},null,"110mm Wide turning piece to lintels","m",{"v":40,"d":"40 "}]
[]
[483,810,3,3,49,{"v":9,"d":"9 "},null,"230mm Wide turning piece to lintels","m",{"v":200,"d":"200 "}]
[]
[484,811,3,3,49,null,null,"Galvanised wire ties etc"]
[]
[485,812,3,3,49,{"v":10,"d":"10 "},null,"4mm Diameter roof tie 2m girth bent double, with one end built into brickwork and other end fixed to timber","No",{"v":100,"d":"100 "}]
[]
[486,3594,3,3,49,null,null,"FACEBRICK"]
[]
[487,3595,3,3,49,null,null,"Facebrick wall with 10mm raked joints to later specifications"]
[]
[{"$nulls":5},{"v":11,"d":"11 "},null,"Extra over brickwork for face brickwork externally ","m²",100]
[]
[488,3596,3,3,49,{"v":12,"d":"12 "},null,"One brickwork for face brickwork","m²",{"v":840,"d":"840 "}]
[]
[{"$nulls":5},{"v":13,"d":"13 "},null,"Half brick walls ","m²",{"v":120,"d":"120 "}]
[]
[{"$nulls":5},{"v":14,"d":"14 "},null,"Fair raking cutting ","m",{"v":36,"d":"36 "}]
[]
[{"$nulls":5},{"v":15,"d":"15 "},null,"345mm thick cavity brick walls made of two leafs of 110mm wall with 135mm concrete fill (concrete elsewhere measured somewhere","m²",{"v":300,"d":"300 "}]
[]
[{"$nulls":7},"Brick-on-edge header course copings, sills etc. of face brick as described"]
[497,815,3,3,51]
[498,816,3,3,51,{"v":16,"d":"16 "},null,"Internal Sills","m",{"v":100,"d":"100 "}]
[]
[500,818,3,3,51,null,null," Modcon Coping Type  002a Window Cill secured to brickwork in accordance with the manufacturer's specification & detail"]
[]
[{"$nulls":5},{"v":17,"d":"17 "},null,"Coping Type  270x65x50x1.000m long ","m",{"v":100,"d":"100 "}]
[]
[{"$nulls":5},{"v":18,"d":"18 "},null,"Coping Type 150 x 65 x 50 x 1.200m long ","m",{"v":50,"d":"50 "}]
[]
[{"$nulls":5},{"v":19,"d":"19 "},null,"Coping Type 295 x 50 x 35 x 1.000m long ","m",{"v":20,"d":"20 "}]
[]
[{"$nulls":5},{"v":20,"d":"20 "},null,"Coping Type 380 x 105 x 75 x 1.200m long ","m",{"v":75,"d":"75 "}]
[]
[]
[]
[]
[{"$nulls":7},"Carried forward to Summary ",{"$nulls":3},{"$f":"SUM(L803:L865)","v":0}]
[]
[]
[502,820,3,4,52,null,null,"BILL  NO. 4"]
[]
[503,821,3,4,52,null,null,"WATERPROOFING"]
[]
[504,822,3,4,52,null,null,"PREAMBLES",null,"QTY","RATE","AMOUNT"]
[]
[505,823,3,4,52,null,null,"For preambles refer to \"General Specification of Materials and Methods to be used for Building Contracts\"  (GP /ASC)"]
[]
[506,824,3,4,52,null,null,"CPAP ADJUSTMENT"]
[]
[507,825,3,4,52,null,null,"Unless otherwise stated all items in this bill shall be deemed to fall into Work Group 120 for Contract Price Adjustment Provisions"]
[]
[508,826,3,4,52,null,null,"SUPPLEMENTARY PREAMBLES"]
[]
[509,827,3,4,52,null,null,"Waterproofing"]
[]
[510,828,3,4,52,null,null,"Waterproofing of roofs, basements, etc shall be laid under a ten year guarantee.  Waterproofing to roofs shall be laid to even falls to outlets etc with necessary ridges, hips and valleys. Descriptions of sheet or membrane waterproofing shall be deemed to include additional labour to turn-ups and turn-downs"]
[]
[{"$nulls":7},"DAMP PROOFING OF WALLS AND FLOORS"]
[]
[511,829,3,4,52,null,null,"One layer of 375 micron \"Gundle plastic Brikgrip DPC\" embossed damp proof course"]
[]
[512,830,3,4,52,{"v":1,"d":"1 "},null,"In walls","m²",{"v":100,"d":"100 "}]
[]
[513,831,3,4,52,null,null,"One layer of 250 micron Gundle plastic \"USB Green\" waterproofing sheeting sealed at laps with \"Gunplas\" pressure sensitive tape."]
[]
[514,832,3,4,52,{"v":2,"d":"2 "},null,"Under surface beds","m²",{"v":1500,"d":"1,500 "}]
[]
[{"$nulls":7},"4mm \"Derbigum SP4\" or equal and approved fully bonded waterproofing system carried out strictly in accordance with the manufacturer's instructions and under a Ten Year Insurance Backed Guarantee on materials and workmanship (On Concrete)."]
[]
[]
[{"$nulls":5},{"v":3,"d":"3 "},null,"On concrete roof slab","m²",{"v":450,"d":"450 "}]
[]
[]
[515,833,3,4,52,null,null,"Silicone sealing compound",{"$nulls":7}," "]
[]
[516,834,3,4,52,{"v":4,"d":"4 "},null,"In joints between window frames and brickwork","m",{"v":300,"d":"300 "}]
[]
[]
[{"$nulls":7},"Carried forward to Summary ",{"$nulls":3},{"$f":"SUM(L892:L908)","v":0}]
[]
[]
[518,836,3,5,53,null,null,"BILL NO. 5"]
[]
[519,837,3,5,53,null,null,"CARPENTRY AND JOINERY"]
[]
[520,838,3,5,53,null,null,"PREAMBLES",null,"QTY","RATE","AMOUNT"]
[]
[521,839,3,5,53,null,null,"For preambles refer to \"General Specification of Materials and Methods to be used for Building Contracts\"  (GP /ASC)"]
[]
[522,840,3,5,53,null,null,"CPAP ADJUSTMENT"]
[]
[523,841,3,5,53,null,null,"Unless otherwise stated all items in this bill shall be deemed to fall into Work Group 126 for Contract Price Adjustment Provisions"]
[]
[524,842,3,5,53,null,null,"SUPPLEMENTARY PREAMBLES"]
[]
[525,843,3,5,53,null,null,"Fixing"]
[]
[526,844,3,5,53,null,null,"Items described as \"nailed\" shall be deemed to be fixed with hardened steel nails or pins, or to be shot-pinned, to brickwork or concrete"]
[]
[527,845,3,5,53,null,null,"Items described as \"plugged\" shall be deemed to include screwing to fibre, plastic or metal plugs at not exceeding 500mm centres, and where described as \"bolted\", the bolts have been given elsewhere"]
[]
[528,846,3,5,53,null,null,"Joinery"]
[]
[529,847,3,5,53,null,null,"Descriptions of frames shall be deemed to include frames, transomes, rails, etc."]
[]
[530,848,3,5,53,null,null,"Descriptions of hardwood joinery shall be deemed to include sinking and pelleting heads and nuts of bolts."]
[]
[531,849,3,5,53,null,null,"Decorative thermosetting plastic laminate covering"]
[]
[532,850,3,5,53,null,null,"Laminate covering shall be glued under pressure and edge strips of same shall be butt jointed at junctions with adjacent similar finish."]
[]
[{"$nulls":7},"BALUSTRADE WALL, WALL CLADDING AND CUPBOARDS"]
[534,853,3,5,54]
[{"$nulls":5},{"v":1,"d":"1 "},null,"Allow for one hundred and fifth thousand (R150 000) for the Supply and installation of Carpentery and Joinery","sum",{"v":1,"d":"1 "},{"v":150000,"d":"150,000.00"}]
[]
[{"$nulls":7},"Contractor charge to allow for handling costs & profit for the above item","%"]
[]
[{"$nulls":5},{"v":2,"d":"2 "},null,"Allow for four Million (R4 000 000)  Supply and installation of Laboratory furniture and fittings","sum",{"v":1,"d":"1 "},{"v":4000000,"d":"4,000,000.00"}]
[]
[{"$nulls":7}," Contractor charge to allow for handling costs & profit for the above item","%"]
[]
[542,870,3,5,54,null,null,"DOORS, ETC"]
[]
[544,872,3,5,54,{"v":3,"d":"3 "},null,"Class A fire door, size 900 x 2100mm (D2)","No",{"v":3,"d":"3 "}]
[]
[545,873,3,5,54,{"v":4,"d":"4 "},null,"Hollow core door, size 900 x 2100mm (D6)","No",{"v":1,"d":"1 "}]
{"$rows_empty":9}
[{"$nulls":7},"Carried forward to Summary ",{"$nulls":3},{"$f":"SUM(L945:L960)","v":0}]
[]
[580,968,3,7,58,null,null,"BILL  NO. 6"]
[]
[581,969,3,7,58,null,null,"CEILINGS, PARTITIONS AND ACCESS FLOORING"]
[]
[582,970,3,7,58,null,null,"PREAMBLES",null,"QTY","RATE","AMOUNT"]
[]
[583,971,3,7,58,null,null,"For preambles refer to \"General Specification of Materials and Methods to be used for Building Contracts\"  (GP /ASC)"]
[]
[584,972,3,7,58,null,null,"CPAP ADJUSTMENT"]
[]
[585,973,3,7,58,null,null,"Unless otherwise stated all items in this bill shall be deemed to fall into Work Group 129 for Contract Price Adjustment Provisions"]
[]
[586,974,3,7,58,null,null,"SUSPENDED CEILINGS"]
[]
[587,975,3,7,58,null,null,"Proprietary suspended ceilings"]
[]
[588,976,3,7,58,null,null,"Hangers, suspension grids, \"lay-in\" panels, etc are to be in accordance with the manufacturers' recommendations"]
[]
[589,977,3,7,58,null,null,"Flush plastered gypsum plasterboard suspended ceilings"]
[]
[590,978,3,7,58,null,null,"Ceilings shall comprise 12,5mm gypsum plasterboard boards screwed to and including screw-up suspension grid consisting of main tees at 1 200mm centres and galvanised steel capped cross tees at 400mm centres and with tape fixed over joints and the whole finished with gypsum plaster trowelled to a smooth polished surface"]
[]
[591,979,3,7,58,null,null,"The grid shall be suspended by means of galvanised steel L-section hangers at suitable centres, securely shot-pinned or screwed to concrete, steel or wood"]
[]
[592,980,3,7,59,null,null,"Flush plastered gypsum plasterboard suspended bulkheads"]
[]
[593,981,3,7,59,null,null,"Bulkheads shall comprise galvanised steel studding of 63,5mm top and bottom tracks with vertical studs at maximum 400mm centres, pop-riveted to the top and bottom tracks with similar additional vertical studs as necessary at abutments, ends, etc and covered as described with plasterboard screwed to studding with drywall screws at maximum 300mm centres. Boards shall be butt jointed and finished with tape and jointing compound and the whole finished with gypsum plaster trowelled to a smooth polished surface to the thicknessrecommended by the manufacturer."]
[]
[594,982,3,7,59,null,null,"Descriptions shall be deemed to include any additional studs at ends and intersections, corner beads, cornices at junctions with ceilings, jointing compound, tape, etc",{"$nulls":8}," "]
[]
[595,983,3,7,59,{"v":1,"d":"1 "},null,"AMF thermatex exposed grid system ceiling, tiles size 1200x600mm with a thickness of 15mm , white in colour","m2",600]
[]
[596,984,3,7,59,{"v":2,"d":"2 "},null,"Gypsum plasterboard ceiling fixed to a concealed grid system, joints to be closed off with ceiling tape, edges to receive a shadowline, ceiling to skimmed and painted to Architects specification","m²",{"v":500,"d":"500 "}]
[]
[598,5435,3,7,59,{"v":2,"d":"2 "},null,"Gypsum plasterboard ceiling fixed to concealed grid system, joints to be closed off","No",{"v":10,"d":"10 "}]
[]
[599,987,3,7,60,null,null,"Cornices, perimeter trims, etc to suspended ceilings"]
[]
[600,988,3,7,60,{"v":3,"d":"3 "},null,"Cornices","m",{"v":300,"d":"300 "}]
[]
[{"$nulls":7},"PARTITIONS"]
[]
[{"$nulls":7},"DRYWALL"]
[]
[{"$nulls":5},{"v":4,"d":"4 "},null,"Partitioning 3,090mm high with floor track fixed to floor and head track fixed to soffit","m",{"v":100,"d":"100 "}]
[]
[{"$nulls":5},{"v":5,"d":"5 "},null,"Extra over partition 3,090mm high for vertical abutment","No",{"v":4,"d":"4 "}]
[]
[{"$nulls":5},{"v":6,"d":"6 "},null,"Extra over partition 3,090mm high for T-junction","No",{"v":5,"d":"5 "}]
[]
[{"$nulls":5},{"v":7,"d":"7 "},null,"Extra over partition for noggins for electrical and plumbing, 400mm long x 200mm wide noggins","No",{"v":5,"d":"5 "}]
{"$rows_empty":17}
[{"$nulls":7},"Carried forward to Summary ",{"$nulls":3},{"$f":"SUM(L999:L1034)","v":0}]
[]
[602,990,3,8,61,null,null,"BILL  NO. 7"]
[]
[603,991,3,8,61,null,null,"FLOOR COVERINGS, WALL LININGS, ETC"]
[]
[604,992,3,8,61,null,null,"PREAMBLES",null,"QTY","RATE","AMOUNT"]
[]
[605,993,3,8,61,null,null,"For preambles refer to \"General Specification of Materials and Methods to be used for Building Contracts\"  (GP /ASC)"]
[]
[606,994,3,8,61,null,null,"Sheeting is to be laid in pressure-sensitive or acrylic adhesive (as approved by flooring manufacturer), with a notched trowel at the rate of 5.5 to 6.5 m2/litre on a previously prepared Class 1 sub-base The sheet is to be rolled in both directions with a 68 kg three-sectional metal floor roller, during the course of the installation, immediately after the sheeting is laid in the adhesive. Factory edges of vinyl sheeting are to be removed before laying if recommended by manufacturer (10 to 20 mm) . Joints are to be butted, grooved to about half the depth of the sheet, (about 1 mm) and heat welded, with a welding rod. The finished width of the weld should be a width of 3 mm, and ensure a minimum 70% bond with the sheeting \"€“ all in accordance with the manufacturer\"€™s spec. No concave or convex joints allowed \"€“ the joints must finish flush with the sheeting.  No open joints will be accepted. All welds to be glazed and checked prior to polishing. No cross-joins allowed.  (Note: No stripping to PuR finished floors as this will damage the sheeting.)"]
[]
[607,995,3,8,61,null,null,"Welding between 2 coloured vinyls to be neatly done and according to the strict recommendations and specifications of the manufacturer. All in accordance to the floor finish layout."]
[]
[608,996,3,8,61,null,null,"Skirting to be finished with extruded capping strip (or clip-on capping strip with backing) to be supplied and fixed with manufacturer approved contact adhesive spread evenly and quickly onto both material and wall surface. Ensure that no gaps remain between the wall, the skirting and the floor."]
[]
[609,997,3,8,61,null,null,"CPAP ADJUSTMENT"]
[]
[610,998,3,8,61,null,null,"Unless otherwise stated all items in this bill shall be deemed to fall into Work Group 130 for Contract Price Adjustment Provisions"]
[]
[611,999,3,8,62,null,null,"FLOOR COVERINGS"]
[]
[615,1003,3,8,62,{"v":1,"d":"1 "},null,"Fin floor-agt effect AC5/W33-V4 ural, plant size 1195 x189 x 12mm Laminate floor with sand transitions","m²",{"v":210,"d":"210 "}]
[]
[{"$nulls":5},{"v":2,"d":"2 "},null,"Polished concrete floors (Vuka flow 400 Nominal 2mm Epoxy flooring)","m2",{"v":700,"d":"700 "}]
[]
[616,1004,3,8,62,null,null,"SKIRTINGS, NOSINGS, ETC"]
[]
[617,1005,3,8,62,{"v":3,"d":"3 "},null,"90mm high pine bullnose skirting with 5mm shadowline fixed to wall with skirting adhesive and painted with gloss enamel black skirting from vis to mouldings or similar approved gaps between wall/ floor & skirting to be sealed with paintable silicone","m",{"v":230,"d":"230 "}]
[618,1006,3,8,62,{"v":4,"d":"4 "},null,"Aluminium contractor retro-fit nosing with ridged pvc infill, code aprn25r from m-trim","m",{"v":150,"d":"150 "}]
[]
[]
[620,1008,3,8,62,{"v":5,"d":"5 "},null,"Fin floor- Aluminium transition strip, colour to sand","m",{"v":30,"d":"30 "}]
{"$rows_empty":52}
[{"$nulls":7},"Carried forward to Summary ",{"$nulls":3},{"$f":"SUM(L1059:L1087)","v":0}]
[]
[622,1010,3,9,63,null,null,"BILL  NO. 8"]
[]
[623,1011,3,9,63,null,null,"IRONMONGERY"]
[]
[624,1012,3,9,63,null,null,"PREAMBLES",null,"QTY","RATE","AMOUNT"]
[]
[625,1013,3,9,63,null,null,"For preambles refer to \"General Specification of Materials and Methods to be used for Building Contracts\"  (GP /ASC)"]
[]
[626,1014,3,9,63,null,null,"CPAP ADJUSTMENT"]
[]
[627,1015,3,9,63,null,null,"Unless otherwise stated all items in this bill shall be deemed to fall into Work Group 132 for Contract Price Adjustment Provisions"]
[]
[628,1016,3,9,63,null,null,"SUPPLEMENTARY PREAMBLES"]
[]
[629,1017,3,9,63,null,null,"Finishes to ironmongery"]
[]
[630,1018,3,9,63,null,null,"Where applicable finishes to ironmongery are indicated by suffixes in accordance with the following list: BS Satin bronze lacquered CH Chromium plated SC Satin chromium plated SE Silver enamelled GE Grey enamelled AS Anodised silver AB Anodised bronze AG Anodised gold ABL Anodised black PB Polished brass PL Polished and lacquered PT Epoxy coated SD Sanded"]
[]
[631,1027,3,9,64,null,null,"LOCKS"]
[]
[632,1028,3,9,64,null,null,"\"APPROVED\""]
[]
[633,1029,3,9,64,{"v":1,"d":"1 "},null,"Oslo- Tube lever handle on rose with escutcheons, stainless steel , 19mm diameter pair","No",{"v":37,"d":"37 "}]
[]
[634,1030,3,9,64,{"v":2,"d":"2 "},null,"QS4428-Rectangular narrow style plate, stainless steel, 225x28mm, pair","No",{"v":36,"d":"36 "}]
[]
[635,1031,3,9,64,{"v":3,"d":"3 "},null,"QS2301 - Cranked D Handle, Back -to-back, stainless, 30x300x330mm each","No",{"v":8,"d":"8 "}]
[]
[636,1032,3,9,64,{"v":4,"d":"4 "},null,"QS4405- Narrow style cylinder escutcheon, stainless steel, 6mm, pair","No",{"v":3,"d":"3 "}]
[]
[637,1035,3,9,64,{"v":5,"d":"5 "},null,"QS4407-2mm narrow style cylinder escutcheon, stainless steel, 2mm pair","No",{"v":6,"d":"6 "}]
[]
[638,1036,3,9,64,{"v":6,"d":"6 "},null,"QS400/1-Panic push bar, one point locking , EN1125 and EN1634 rated, stainless steel, 900mm, each","No",{"v":3,"d":"3 "}]
[]
[641,1041,3,9,65,{"v":7,"d":"7 "},null,"QS6001-Adjustable roller bolt, stainless steel, 40mm backset, each","No",{"v":3,"d":"3 "}]
[]
[642,1042,3,9,65,{"v":8,"d":"8 "},null,"QS8535/1- Narrow style latch and cylinder lock, stainless steel, 35mm backset, 85mm ","No",{"v":34,"d":"34 "}]
[]
[645,1050,3,9,65,{"v":9,"d":"9 "},null,"QS6055/5- Bathroom latch lock and deadbolt, stainless steel , 55mm backset, 60mm centre, each","No",{"v":1,"d":"1 "}]
[]
[646,1051,3,9,65,{"v":10,"d":"10 "},null,"QS8535/4- Narrow style dead bolt loc k , stainless steel , 35mm backset , 85mm centre, each","No",{"v":7,"d":"7 "}]
[]
[647,3604,3,9,65,{"v":11,"d":"11 "},null,"QS0035-Dead lock, stainless steel, 35mm backset , each","No",{"v":7,"d":"7 "}]
[]
[650,1058,3,9,65,{"v":12,"d":"12 "},null,"QS1104SN- Double cylinder with 3 keys, satin nickel, 66mm , each ","No",{"v":36,"d":"36 "}]
[]
[653,1061,3,9,65,{"v":13,"d":"13 "},null,"QS1108SN/EM - Knob cylinder with oval knob with emergency  release -no keys , satin nickel, 65mm, each","No",{"v":2,"d":"2 "}]
[]
[654,1062,3,9,65,{"v":14,"d":"14 "},null,"QS1102SN-Single cylinder with 3 keys, satin nickel, 40mm,each","No",{"v":11,"d":"11 "}]
[]
[655,1064,3,9,66,{"v":15,"d":"15 "},null,"QS1108SN- Knob cylinder with 3 keys, satin nickel, 66mm, each","No",{"v":1,"d":"1 "}]
[]
[656,1065,3,9,66,{"v":16,"d":"16 "},null,"QS920-Rack and cam pinion door closer with slide channel , non-hold open , stainless steel , 60x39mm , each","No",{"v":5,"d":"5 "}]
[]
[657,1066,3,9,66,{"v":17,"d":"17 "},null,"QS700DA/1-Delayed action door closer, EN1154 fire rated, size 2-3 with desi…, silver painted, 60x39mm, each","No",{"v":20,"d":"20 "}]
[]
[658,1067,3,9,66,{"v":18,"d":"18 "},null,"QS7703-Universal slide channel only - stainless steel , 540x30x20mm,each","No",{"v":2,"d":"2 "}]
[]
[659,1068,3,9,66,{"v":19,"d":"19 "},null,"QS763-Fire door coordinator, stainless steel , 1320mm ,each","No",{"v":1,"d":"1 "}]
[]
[660,1069,3,9,66,{"v":20,"d":"20 "},null,"QS4413-Ring pull, stainless steel steel, 63x44mm,each","No",{"v":10,"d":"10 "}]
[]
[]
[663,3607,3,9,67,{"v":21,"d":"21 "},null,"QS4492-Dust excluding socket, stainless steel , 25x39mm, each","No",{"v":19,"d":"19 "}]
[]
[{"$nulls":5},{"v":22,"d":"22 "},null,"QS4422SS-Hooded doorstop , stainless steel ,40mm diameter, each","No",{"v":46,"d":"46 "}]
[]
[{"$nulls":5},{"v":23,"d":"23 "},null,"QS4410-WC indacator bolt and thumb turn with coin release, stainless steel , 50mm diameter, each","No",{"v":1,"d":"1 "}]
[]
[{"$nulls":5},{"v":24,"d":"24 "},null,"QS4434-Hat and Coat hook with rubber stop, stainless steel, 90 x70mm , each","No",{"v":1,"d":"1 "}]
{"$rows_empty":26}
[{"$nulls":7},"Carried forward to Summary ",{"$nulls":3},{"$f":"SUM(L1144:L1203)","v":0}]
[]
[]
[665,1127,3,10,68,null,null,"BILL NO. 9"]
[]
[666,1128,3,10,68,null,null,"METALWORK"]
[]
[667,1129,3,10,68,null,null,"PREAMBLES",null,"QTY","RATE","AMOUNT"]
[]
[668,1130,3,10,68,null,null,"For preambles refer to \"General Specification of Materials and Methods to be used for Building Contracts\"  (GP /ASC)"]
[]
[669,1131,3,10,68,null,null,"CPAP ADJUSTMENT"]
[]
[670,1132,3,10,68,null,null,"Unless otherwise stated all items in this bill shall be deemed to fall into Work Group 136 and 149 for Contract Price Adjustment Provisions"]
[]
[671,1133,3,10,68,null,null,"SUPPLEMENTARY PREAMBLES"]
[]
[672,1134,3,10,68,null,null,"General"]
[]
[673,1135,3,10,68,null,null,"Screens shall be the Window Wall system as supplied by HBS Aluminium Systems.  Manufacture shall be in accordance with the current manuals as provided by HBS Aluminium Systems All aluminium work must comply with the latest edition of publications of Messer AAAMSA An AFSA Certificate of Conformance in respect of product finishes must be obtained."]
[]
[674,1136,3,10,68,null,null,"Materials"]
[]
[675,1137,3,10,68,null,null,"Material shall be of 6063T6 aluminium alloy with a minimum structural wall thickness of 1.8mm. Outer frame to infill panels will be a nominal depth of 166 or 111mm."]
[]
[676,1138,3,10,69,null,null,"Construction"]
[]
[677,1139,3,10,69,null,null,"Outer frame to consist of a single part compensating head and jamb and continuous sub-Sill.  Infill panels are to be constructed from double cavity tubular profiles, forming a wet cavity with drainage slots to allow for transom drainage to the exterior. All glazing rebates to be 25mm. Joints of the infill panels shall be notched and screwed to spigots with No 8 stainless steel screws. Where required, a 111mm or 166mm Split mullion assembly must be used to couple infill panels together, still making allowance for all thermal and dynamic movement. Door panels within the screens to have a 4-edge door rebate with gasket seal all round."]
[]
[678,1140,3,10,69,null,null,"Installation"]
[]
[679,1141,3,10,69,null,null,"All aluminium work to be done in strict accordance to the manufacturers specifications by a specialist firm. All openings to be checked on site before any materials are ordered or manufacture of window and door frames. Panel-by-panel installation from Inside or from Outside the building. All aluminium frame works to be provided with a continuous silicone seal around all construction openings."]
[]
[680,1142,3,10,69,null,null,"Hardware"]
[]
[681,1143,3,10,69,null,null,"All sashes to have mechanical Corner Connectors, wind locks and multi-point locking handles. Sashes not to exceed 1700mm wide by 1200mm high as per specification. Friction stay to suit max weight and size of Sash.  Door hardware shall be compatible with the system and will take cognisance of the finish specification of the applicable area. See Hardware Schedule for door."]
[]
[682,1144,3,10,69,null,null,"Finish"]
[]
[683,1145,3,10,69,null,null,"Sections will be painted in accordance with SABS1578, parts1 & 2. Powercote, and anodised aluminium, should be protected to prevent any damage or stain by cement, etc. All powder coating to be 25 micron thick and shall be executed in strict adherence to sabs 999"]
[]
[684,1146,3,10,70,null,null,"Glazing"]
[]
[685,1147,3,10,70,null,null,"Glass thickness should be in accordance with SANS 10400 and deigned by a competent person. Glazing is to be carried out in accordance with SABS 0137, with particular attention to size limitations, packing and setting blocks. Thicknesses from 6-28mm."]
[]
[686,1148,3,10,70,null,null,"Structural Perfomance"]
[]
[687,1149,3,10,70,null,null,"System shall meet or exceed the requirements of SANS613 and the design loading determination by SABS 0160 for this application. Deflection of structural members shall not exceed L/175 or L/240 as applicable."]
[]
[688,1150,3,10,70,null,null,"Thermal Perfomance"]
[]
[689,1151,3,10,70,null,null,"System shall comply with SANS204 in applications where Fenestration makes up more than 15% of Floor area.  U-value with Air filled glazing units = 3.36  For U-values below 3.38 use Argon or Krypton gas filled glazing units."]
[]
[690,4095,3,10,71,null,null,"DOOR FRAMES, DOORS, WINDOWS, ETC"]
[]
[691,4096,3,10,71,null,null,"Aluminium windows"]
[]
[692,4097,3,10,71,{"v":1,"d":"1 "},null,"Window overall size opproximately 2500 x 1400 as per drawing number 013 (W1)","No",{"v":1,"d":"1 "}]
[]
[{"$nulls":5},{"v":2,"d":"2 "},null,"Window overall size opproximately 2900 x 1785 as per drawing number 013 (W2)","No",{"v":2,"d":"2 "}]
[]
[{"$nulls":5},{"v":3,"d":"3 "},null,"Window overall size opproximately 2800 x 1785 as per drawing number 013 (W3)","No",{"v":1,"d":"1 "}]
[]
[{"$nulls":5},{"v":4,"d":"4 "},null,"Window overall size opproximately 3000 x 1785 as per drawing number 013 (W4)","No",{"v":2,"d":"2 "}]
[]
[{"$nulls":5},{"v":5,"d":"5 "},null,"Window overall size opproximately 350 x 3485 as per drawing number 013 (W5)","No",{"v":9,"d":"9 "}]
[]
[{"$nulls":5},{"v":6,"d":"6 "},null,"Window overall size opproximately 600 x 3485 as per drawing number 013 (W6)","No",{"v":4,"d":"4 "}]
[]
[{"$nulls":5},{"v":7,"d":"7 "},null,"Window overall size opproximately 350 x 3485 as per drawing number 013 (W7)","No",{"v":5,"d":"5 "}]
[]
[{"$nulls":5},{"v":8,"d":"8 "},null,"Window overall size opproximately 600 x 3485 as per drawing number 013 (W8)","No",{"v":7,"d":"7 "}]
[]
[{"$nulls":5},{"v":9,"d":"9 "},null,"Window overall size opproximately 900 x 3485 as per drawing number 013 (W9)","No",{"v":6,"d":"6 "}]
[]
[{"$nulls":5},{"v":10,"d":"10 "},null,"Window overall size opproximately 600 x 2975 as per drawing number 013 (W10)","No",{"v":3,"d":"3 "}]
[]
[{"$nulls":5},{"v":11,"d":"11 "},null,"Window overall size opproximately 500 x 2975 as per drawing number 013 (W11)","No",{"v":2,"d":"2 "}]
[]
[{"$nulls":5},{"v":12,"d":"12 "},null,"Window overall size opproximately 350 x 2975 as per drawing number 013 (W12)","No",{"v":2,"d":"2 "}]
[]
[{"$nulls":7},"Aluminium Doors"]
[]
[{"$nulls":7},"Aluminium door frame able to withstand wind pressures  of 600Pa in accordance with SANS 613, Surface to receive 50-80pm charcoal grey powder coating for architectural applications , applied by a certified markholder of SANS 1274"]
[]
[{"$nulls":5},{"v":13,"d":"13 "},null,"Aluminium door frame  size 900 x 2725 as per drawing number 013 (D3)","No",{"v":1,"d":"1 "}]
[]
[{"$nulls":5},{"v":14,"d":"14 "},null,"Aluminium door size 1500 x 2725 as per drawing number 013 (D4)","No",{"v":2,"d":"2 "}]
[]
[{"$nulls":5},{"v":15,"d":"15 "},null,"Aluminium door size 1500 x 2725 as per drawing number 013 (D5)","No",{"v":3,"d":"3 "}]
[]
[{"$nulls":5},{"v":16,"d":"16 "},null,"Aluminium door size 900 x 2725 as per drawing number 013 (D6)","No",{"v":1,"d":"1 "}]
[]
[{"$nulls":7},"Frosted glazing shall be executed strictly in conformance with manufacturer's recommendations and all in accordance with the natural building  regulations parts B,B,T SANS 10137, SANS 10400 and SANS 1263 fitted in accordance with wispeco casement 28 system, plugged and screwed to brickwork or concrete"]
[]
[{"$nulls":5},{"v":17,"d":"17 "},null,"Aluminium door size 900 x 2725 as per drawing number 013 (D7)","No",{"v":6,"d":"6 "}]
[]
[{"$nulls":5},{"v":18,"d":"18 "},null,"Aluminium door size 900 x 2725 as per drawing number 013 (D8)","No",{"v":4,"d":"4 "}]
[]
[{"$nulls":5},{"v":19,"d":"19 "},null,"Aluminium door size 900 x 2725 as per drawing number 013 (D9)","No",{"v":2,"d":"2 "}]
[]
[{"$nulls":5},{"v":20,"d":"20 "},null,"Aluminium door size 900 x 2725 as per drawing number 013 (D10)","No",{"v":4,"d":"4 "}]
[]
[{"$nulls":5},{"v":21,"d":"21 "},null,"Aluminium door size 900 x 2725 as per drawing number 013 (D11)","No",{"v":2,"d":"2 "}]
[]
[{"$nulls":7},"Clear glazing shall be executed strictly in conformance with manufacturer's recommendations and all in accordance with the natural building  regulations parts B,B,T SANS 10137, SANS 10400 and SANS 1263 fitted in accordance with wispeco casement 28 system, plugged and screwed to brickwork or concrete"]
[]
[{"$nulls":5},{"v":22,"d":"22 "},null,"Aluminium door size 900 x 2725 as per drawing number 013 (D12)","No",{"v":10,"d":"10 "}]
[]
[{"$nulls":5},{"v":23,"d":"23 "},null,"Aluminium door size 900 x 2725 as per drawing number 013 (D13)","No",{"v":2,"d":"2 "}]
[]
[{"$nulls":7},"Aluminium Louvre"]
[]
[{"$nulls":5},{"v":24,"d":"24 "},null,"Aluminium Louvre size 3600 x 680 as per drawing number 013 (LV1)","No",{"v":5,"d":"5 "}]
[]
[{"$nulls":5},{"v":25,"d":"25 "},null,"Aluminium Louvre size 3000 x 680 as per drawing number 013 (LV2)","No",{"v":2,"d":"2 "}]
[]
[{"$nulls":5},{"v":26,"d":"26 "},null,"Aluminium Louvre size 3000 x 2295 as per drawing number 013 (LV3)","No",{"v":1,"d":"1 "}]
[]
[{"$nulls":7},"Aluminium Shopfront"]
[]
[{"$nulls":7},"Reflective glazing shall be executed strictly in conformance with manufacturer's recommendations and all in accordance with the natural building  regulations parts B,B,T SANS 10137, SANS 10400 and SANS 1263 fitted in accordance with wispeco casement 28 system, plugged and screwed to brickwork or concrete. Glazing code to later specification"]
[]
[{"$nulls":5},{"v":27,"d":"27 "},null,"Aluminium shopfront SF1 per drawing number 013 ","No",{"v":1,"d":"1 "}]
[]
[{"$nulls":5},{"v":28,"d":"28 "},null,"Aluminium shopfront SF2 as per drawing number 013 ","No",{"v":1,"d":"1 "}]
[]
[{"$nulls":5},{"v":29,"d":"29 "},null,"Aluminium shopfront SF3 as per drawing number 013 ","No",{"v":3,"d":"3 "}]
[]
[{"$nulls":5},{"v":30,"d":"30 "},null,"Aluminium shopfront SF4 as per drawing number 013 ","No",{"v":2,"d":"2 "}]
[]
[{"$nulls":5},{"v":31,"d":"31 "},null,"Aluminium shopfront SF5 as per drawing number 013 ","No",{"v":3,"d":"3 "}]
[]
[{"$nulls":5},{"v":32,"d":"32 "},null,"Aluminium shopfront SF6 as per drawing number 013 ","No",{"v":1,"d":"1 "}]
[]
[{"$nulls":5},{"v":33,"d":"33 "},null,"Aluminium shopfront SF7 as per drawing number 013 ","No",{"v":1,"d":"1 "}]
[]
[{"$nulls":5},{"v":34,"d":"34 "},null,"Aluminium shopfront SF8 as per drawing number 013 ","No",{"v":1,"d":"1 "}]
[]
[{"$nulls":5},{"v":35,"d":"35 "},null,"Aluminium shopfront SF9 as per drawing number 013 ","No",{"v":1,"d":"1 "}]
[]
[]
[693,3613,3,10,71,null,null,"Roller Shutter door"]
[]
[695,3615,3,10,71,{"v":37,"d":"37 "},null,"Perforated motorised roller shutter door by Maxidor or similar approved (4800 x 2295 )","No",{"v":1,"d":"1 "}]
[]
[696,3616,3,10,71,null,null,"STEEL   DOOR  FRAMES:"]
[]
[{"$nulls":7},"Steel door  frame for 220mm wide wall"]
[]
[698,3618,3,10,71,{"v":38,"d":"38 "},null,"Frame for door size 900 x 2100mm high","No",{"v":3,"d":"3 "}]
[]
[{"$nulls":7},"Steel door  frame for 110mm wide wall"]
[]
[{"$nulls":5},{"v":39,"d":"39 "},null,"Frame for door size 900 x 2100mm high","No",{"v":1,"d":"1 "}]
[]
[]
[]
[]
[]
[{"$nulls":7},"Carried forward to Summary ",{"$nulls":3},{"$f":"SUM(L1276:L1377)","v":0}]
[]
[705,1176,3,11,72,null,null,"BILL NO. 10"]
[]
[706,1177,3,11,72,null,null,"PLASTERING"]
[]
[707,1178,3,11,72,null,null,"PREAMBLES",null,"QTY","RATE","AMOUNT"]
[]
[708,1179,3,11,72,null,null,"For preambles refer to \"General Specification of Materials and Methods to be used for Building Contracts\"  (GP /ASC)"]
[]
[709,1180,3,11,72,null,null,"CPAP ADJUSTMENT"]
[]
[710,1181,3,11,72,null,null,"Unless otherwise stated all items in this bill shall be deemed to fall into Work Group 142 for Contract Price Adjustment Provisions"]
[]
[711,1182,3,11,72,null,null,"SCREEDS"]
[]
[712,1183,3,11,72,null,null,"The screed mix must consist of 1 part cement to 3 parts sand. Both sand and stone must comply with SABS 1083. Cement must comply with SANS 50197-1:2000 and achieve strength of 25mPa. No dry mix is permitted. The screed must be laid to a minimum of 25mm thick (preferably 40mm thick) with a wood trowelled finish where self-levelling compound is to be laid. Cube samples of the screed mix must comply when tested in accordance with SANS 5861-3:1994. The dry, cured (min. 14 days) screed must also be tested using a BRE screed tester, with one test per 20 to 25m\"² and to 3 to 5m intervals on corridors.Strength category A: max 3mm indentation."]
[]
[713,1184,3,11,72,{"v":1,"d":"1 "},null,"30mm Thick on floors and landings(LI)","m²",{"v":1005,"d":"1,005 "}]
[]
[714,1190,3,11,72,null,null,"EXTERNAL PLASTER"]
[]
[715,1191,3,11,72,null,null,"Plaster exterior walls with 1:4 cement sand plaster with wood float finish and approved plaster sand."]
[]
[716,1192,3,11,72,{"v":2,"d":"2 "},null,"On walls(LI) Provisional","m²",{"v":80,"d":"80 "}]
[]
[717,1193,3,11,72,{"v":3,"d":"3 "},null,"On narrow widths(LI)","m²",{"$f":"J1404*20%","v":{"v":16,"d":"16 "}}]
[]
[718,1194,3,11,72,null,null,"INTERNAL PLASTER"]
[]
[719,1195,3,11,73,null,null,"Plaster interior walls with 1:4 cement sand plaster with steel trowel finish and approved plaster sand.  Plaster RhinoLite smooth coat according to the instructions of the manufacturer."]
[]
[720,1196,3,11,73,{"v":4,"d":"4 "},null,"On walls(LI)","m²",{"v":2000,"d":"2,000 "}]
[]
[721,1197,3,11,73,{"v":5,"d":"5 "},null,"On narrow widths(LI)","m²",{"$f":"J1412*10%","v":{"v":200,"d":"200 "}}]
[]
[{"$nulls":5},{"v":6,"d":"6 "},null,"One coat \"Rhinolite\" skim plaster to gypsum board surfaces, finished smooth with a steel trowel to","m²",{"v":410,"d":"410 "}]
{"$rows_empty":11}
[{"$nulls":7},"Carried forward to Summary ",{"$nulls":3},{"$f":"SUM(L1397:L1424)","v":0}]
[723,1199,3,12,74,null,null,"BILL  NO. 11"]
[]
[724,1200,3,12,74,null,null,"TILING"]
[]
[725,1201,3,12,74,null,null,"PREAMBLES",null,"QTY","RATE","AMOUNT"]
[]
[726,1202,3,12,74,null,null,"For preambles refer to \"General Specification of Materials and Methods to be used for Building Contracts\"  (GP /ASC)"]
[]
[727,1203,3,12,74,null,null,"CPAP ADJUSTMENT"]
[]
[728,1204,3,12,74,null,null,"Unless otherwise stated all items in this bill shall be deemed to fall into Work Group 144 for Contract Price Adjustment Provisions"]
[]
[729,1205,3,12,74,null,null,"SUPPLEMENTARY PREAMBLES"]
[]
[730,1206,3,12,74,null,null,"Fixing"]
[]
[731,1207,3,12,74,null,null,"Unless described as \"fixed with adhesive to plaster (plaster elsewhere)\" descriptions of tiling on brick or concrete walls, columns, etc shall be deemed to include 1:4 cement plaster backing and descriptions of tiling on concrete floors etc shall be deemed to include 1:3 plaster bedding"]
[]
[732,1208,3,12,74,null,null,"Tiling described as \"fixed with adhesive on power floated concrete\" shall be deemed to include for approved tiling key-coat"]
[]
[733,1209,3,12,74,null,null,"Ceramic, porcelain, marble and granite tiles are to be fixed and grouted with suitable adhesives and grouts as recommended by the manufacturer of the tiles"]
[]
[734,1215,3,12,75,null,null,"FLOOR TILING"]
[]
[735,1216,3,12,75,null,null,"\"Tile Africa\" 600 x 600mm Tatum silver hardbody tiles  on tile adhesive with 3mm joints & grouting to be grey in colour 30 som excl wastage"]
[]
[736,1217,3,12,75,{"v":1,"d":"1 "},null,"On  floors","m²",{"v":264,"d":"264 "}]
[]
[737,1218,3,12,75,null,null,"Tile Africa\" 600 x 600mm silkstone grey slip resistant hardbody  tiles on tiles on tile adhesive with 3mm joints & grouting to be grey in colour 36 some excl wastage"]
[]
[738,1219,3,12,75,{"v":2,"d":"2 "},null,"on floors","m²",{"v":84,"d":"84 "}]
[]
[{"$nulls":7},"\"Tile Africa\" 100 x 100mm Tatum silver hardbody tiles on tile adhesive with 5mm Joints & grouting to be grey in colour"]
[]
[{"$nulls":5},{"v":3,"d":"3 "},null,"On  floors","m²",{"v":2,"d":"2 "}]
[]
[{"$nulls":7},"SKIRTINGS, NOSINGS, ETC"]
[]
[{"$nulls":5},{"v":4,"d":"4 "},null,"Tile Africa 100 x 600mm Tatum silver hardbody tile skirting on tile adhesive, with 3mm joints & grouting to be grey in colour tile skirting to have alumunium straight edge trim, code ase100 on top, all around from m- trim","m",{"v":170,"d":"170 "}]
[]
[{"$nulls":5},{"v":5,"d":"5 "},null,"Tile Africa 100 x 600mm silkstone grey slip resistant tile skirting on tile adhesive, with 3mm joints & grouting to be grey in colour tile skirting to have alumunium straight edge trim, code ase100 on top, all around from m- trim","m",{"v":80,"d":"80 "}]
[]
[{"$nulls":7},"WALL TILING"]
[]
[{"$nulls":7},"Tile Africa-300 x 600mm Tatum anthacite hardbody tiles on tile adhesive, with 3mm joints & grouting  to be white in colour"]
[]
[{"$nulls":5},{"v":6,"d":"6 "},null,"On walls ","m²",{"v":320,"d":"320 "}]
[]
[{"$nulls":7},"Corner Protector "]
[]
[{"$nulls":5},{"v":7,"d":"7 "},null,"M-Trim- Aluminum retro fit corner protector to be 1,2m high, size 50x50x2m, code ACP502 Fixed in accordance to the manufacturer's specification","m",{"v":200,"d":"200 "}]
{"$rows_empty":28}
[{"$nulls":7},"Carried forward to Summary ",{"$nulls":3},{"$f":"SUM(L1454:L1496)","v":0}]
[]
[740,1225,3,13,76,null,null,"BILL  NO. 12"]
[]
[741,1226,3,13,76,null,null,"PLUMBING AND DRAINAGE (PROVISIONAL)"]
[]
[742,1227,3,13,76,null,null,"PREAMBLES",null,"QTY","RATE","AMOUNT"]
[]
[743,1228,3,13,76,null,null,"For preambles refer to \"General Specification of Materials and Methods to be used for Building Contracts\"  (GP /ASC)"]
[]
[744,1229,3,13,76,null,null,"CPAP ADJUSTMENT"]
[]
[745,1230,3,13,76,null,null,"Unless otherwise stated all items in this bill shall be deemed to fall into Work Group 146 and 148 for Contract Price Adjustment Provisions"]
[]
[746,1231,3,13,76,null,null,"SUPPLEMENTARY PREAMBLES"]
[]
[747,1232,3,13,76,null,null,"Polypropylene pipes:"]
[]
[748,1233,3,13,76,null,null,"Polypropylene pipes 54mm diameter and under shall be seamless copper coloured class 16 pipes jointed with \"Fast-fuse\" heat welded thermoplastic or brass compression fittings as designed for use with copper pipes as stated"]
[]
[749,1234,3,13,76,null,null,"Pipes shall be firmly fixed to walls etc with coloured nylon snap-in pipe clips with provision for accommodating thermal movement and jointed and fixed strictly in accordance with the manufacturer's instructions"]
[]
[750,1235,3,13,76,null,null,"All pipe diameters are nominal external"]
[]
[751,1236,3,13,76,null,null,"Polypropylene pipes:"]
[]
[752,1237,3,13,76,null,null,"Polypropylene pipes 63mm diameter and over shall be class 12 pipes jointed with cast iron \"Supraclamp\" running joints"]
[]
[753,1238,3,13,76,null,null,"Fusion welded bends, once or twice mitred as necessary, and tees shall be factory manufactured"]
[]
[754,1239,3,13,76,null,null,"Fusion welded bends and tees shall include jointing to pipes with PVC rubber ring double Z joint couplers"]
[]
[755,1240,3,13,77,null,null,"Branch tees shall include flanged and bolted joints to \"Polycop\" branch pipes in addition and for brass compression male iron to copper straight couplers"]
[]
[756,1241,3,13,77,null,null,"Reducers shall include jointing to pipes with PVC rubber ring double Z joint couplers and reducers shall be of sufficient overall length to accommodate same"]
[]
[757,1242,3,13,77,null,null,"All pipes shall be jointed and fixed strictly in accordance with the manufacturer's instructions"]
[]
[758,1243,3,13,77,null,null,"All pipe diameters are nominal external"]
[]
[761,1246,3,13,77,null,null,"Sewer and drainage pipes and fittings shall be jointed and sealed with butyl rubber rings"]
[]
[762,1247,3,13,77,null,null,"uPVC pipes and fittings:"]
[]
[763,1248,3,13,77,null,null,"Soil, waste and vent pipes and fittings shall be solvent weld jointed"]
[]
[764,1263,3,13,77,null,null,"RAINWATER DISPOSAL"]
[]
[765,1264,3,13,77,null,null,"0,6mm steel rainwater disposal system (incl. rectangular gutters & rainwater downpipes), of dimensions to accommodate for effective channeling of rainwater; all to be coated with Chromadek Z200 to match colour of roof sheeting."]
[]
[766,1266,3,13,77,{"v":1,"d":"1 "},null,"100 x 100mm Eaves gutters","m",{"v":60,"d":"60 "}]
[]
[767,1267,3,13,77,{"v":2,"d":"2 "},null,"Extra over square eaves gutter for outlet for 75mm pipe","No",{"v":8,"d":"8 "}]
[]
[768,1268,3,13,77,{"v":3,"d":"3 "},null,"75mm diameter galvanised rainwater downpipes","m",{"v":28,"d":"28 "}]
[]
[769,1269,3,13,77,{"v":4,"d":"4 "},null,"Extra over round rainwater pipe for bend","No",{"v":16,"d":"16 "}]
[]
[770,1270,3,13,77,{"v":5,"d":"5 "},null,"Extra over round rainwater pipe for shoe","No",{"v":8,"d":"8 "}]
[]
[{"$nulls":7},"SANITARY FITTINGS"]
[]
[{"$nulls":7},"Chrome Plated Schedules"]
[]
[{"$nulls":5},{"v":6,"d":"6 "},null,"1600mm Left hand sluice and sink combination with W-B106 flush  valve , Trigger spray and kitchen  sink Mixer from \"Chilli-B\" or similar approved.","No",{"v":1,"d":"1 "}]
[]
[{"$nulls":5},{"v":7,"d":"7 "},null,"Evox skye close coupled toilet round  from tile round from \"Tile Africa\"","No",{"v":4,"d":"4 "}]
[]
[{"$nulls":5},{"v":8,"d":"8 "},null,"Cobra pause urinal from \"Tile Africa\"","No",{"v":2,"d":"2 "}]
[]
[{"$nulls":5},{"v":9,"d":"9 "},null,"Nuvo Axis rectangular counter top basin from \"Tile Africa\"","No",{"v":4,"d":"4 "}]
[]
[{"$nulls":5},{"v":10,"d":"10 "},null,"Evox bottle trap small from \"Tile Africa\"","No",{"v":4,"d":"4 "}]
[]
[{"$nulls":5},{"v":11,"d":"11 "},null,"Nuvo Arc high basin mixer chrome from \"Tile Africa\"","No",{"v":4,"d":"4 "}]
[]
[{"$nulls":5},{"v":12,"d":"12 "},null,"Stainless steel folded towel paper dispenser from \"TCS hygiene\" or \"similar approved\"","No",{"v":2,"d":"2 "}]
[]
[{"$nulls":5},{"v":13,"d":"13 "},null,"Stainless steel 1250ml soap dispenser from \"TCS Hygiene\" or\" similar approved\" ","No",{"v":2,"d":"2 "}]
[]
[{"$nulls":5},{"v":14,"d":"14 "},null,"TCS rectangular wall bin-Large SS complete, plastic bags, plugs, screws \"TCS Htgiene\" or \"similar approved\"","No",{"v":2,"d":"2 "}]
[]
[{"$nulls":5},{"v":15,"d":"15 "},null,"Stainless steel square 2 rolls toilet roll holder from \"TCS Hygiene\" or \"similar approved\"","No",{"v":4,"d":"4 "}]
[]
[{"$nulls":5},{"v":16,"d":"16 "},null,"Evox skye close coupled toilet round from \"Tile Africa\" ","No",{"v":5,"d":"5 "}]
[]
[{"$nulls":5},{"v":17,"d":"17 "},null,"Nuvo Axis Rectangular counter top basin from \"Tile Africa\"","No",{"v":6,"d":"6 "}]
[]
[{"$nulls":5},{"v":18,"d":"18 "},null,"Evox bottle trap small from \"Tile Africa\"","No",{"v":6,"d":"6 "}]
[]
[{"$nulls":5},{"v":19,"d":"19 "},null,"Nuvo Arch high basin mixer chrome from \"Tile Africa\"","No",{"v":6,"d":"6 "}]
[]
[{"$nulls":5},{"v":20,"d":"20 "},null,"stainless steel folded towel paper dispenser from \"TCS hygiene\" or \"similar approved\"","No",{"v":2,"d":"2 "}]
[]
[{"$nulls":5},{"v":21,"d":"21 "},null,"Stainless steel 1250ml soap dispenser from \"TCS Hygiene\" or \"similar approved\"","No",{"v":2,"d":"2 "}]
[]
[{"$nulls":5},{"v":22,"d":"22 "},null,"TCS Rectangular wall bin - large ss complete, plastic bags, plugs, screws \"TCS Hygiene\" or \"similar approved\"","No",{"v":2,"d":"2 "}]
[]
[{"$nulls":5},{"v":23,"d":"23 "},null,"Stainless steel square 2 rolls toilet roll holder from \"TCS Hygiene\" or \"similar approved\"","No",{"v":5,"d":"5 "}]
[]
[{"$nulls":5},{"v":24,"d":"24 "},null,"Lecico Atlas Ccparaplegic suite  ( pan cistern& Mech) incl seat from \"Plumlink \"or \"similar approved\"","No",{"v":2,"d":"2 "}]
[]
[{"$nulls":5},{"v":25,"d":"25 "},null,"Cobra shelter basin wall hung 495x430x190 from \"Plumlink\" or \"similar approved\"","No",{"v":2,"d":"2 "}]
[]
[{"$nulls":5},{"v":26,"d":"26 "},null,"Plumline clinx pillar tap CP cold 15mm from \"Plumlink\" or \"similar approved\"","No",{"v":2,"d":"2 "}]
[]
[{"$nulls":5},{"v":27,"d":"27 "},null,"Stainless steel folded towel paper dispenser from \"TCS Hygiene\" or \"similar approved\"","No",{"v":2,"d":"2 "}]
[]
[{"$nulls":5},{"v":28,"d":"28 "},null,"TCS Rectangular wall bin - Large SS complete , plastic bags, plugs screws from \"TCS  Hygiene\" or \"similar approved\"","No",{"v":2,"d":"2 "}]
[]
[{"$nulls":5},{"v":29,"d":"29 "},null,"Stainless steel square 2 rolls toilet roll holder from \"TCS Hygiene\" or \"similar approved\" ","No",{"v":2,"d":"2 "}]
[]
[{"$nulls":5},{"v":30,"d":"30 "},null,"Stainless steel paraplegic grab rail  CNTX par from \"Chilli-B\" or \"similar approved\"","No",{"v":2,"d":"2 "}]
[]
[{"$nulls":5},{"v":31,"d":"31 "},null,"Stainless steel cistrern back rail size 750 x 206- CNTXBR from \"Chill-B\" or \"similar approved\" ","No",{"v":2,"d":"2 "}]
[]
[{"$nulls":5},{"v":32,"d":"32 "},null,"Franze double projectline sink PLN6211160 x 460x 140mm from \"Tile Africa\"","No",{"v":1,"d":"1 "}]
[]
[{"$nulls":5},{"v":33,"d":"33 "},null,"Nuco Arc sink mixer chrome from \"Tile Africa\"","No",{"v":1,"d":"1 "}]
[]
[{"$nulls":5},{"v":34,"d":"34 "},null,"Evox shower waste from \"Tile Africa \"","No",{"v":1,"d":"1 "}]
[]
[{"$nulls":5},{"v":35,"d":"35 "},null,"Body shower with eye/face shower and bowl, module- disability  friendly . In stainless steel with chemical resistant red broen -lab  polycoat  with  self- draining shower head. Eye wash with built -in FLOWFIX regulation of water flow (161/min). Bowl in stainless steel with intergrated outlet. min .Working pressure : 1.5 bar . From Broen-Lab or Chilli-b","No",{"v":1,"d":"1 "}]
[]
[{"$nulls":5},{"v":36,"d":"36 "},null,"CB-MED515 Stainless steel medical basin with 200mm splashback and CO-515/055-15 Medical Elbow Mixer from\" Chill-B\"","No",{"v":4,"d":"4 "}]
[]
[{"$nulls":5},{"v":37,"d":"37 "},null,"Stainless steel 1250ml soap dispenser from \"TCS Hygiene\" or \"similar approved \"","No",{"v":4,"d":"4 "}]
[]
[{"$nulls":5},{"v":38,"d":"38 "},null,"Stainless steel folded towel paper dispenser from \"TCS Hygiene\" or \"similar approved\"","No",{"v":4,"d":"4 "}]
[]
[{"$nulls":5},{"v":39,"d":"39 "},null,"TCS Rectangular wall bin-large SS complete, plastic bags, plugs,screws from \"TCS Hygiene\" or \"similar approved\"","No",{"v":4,"d":"4 "}]
[]
[{"$nulls":5},{"v":40,"d":"40 "},null,"Allow for Five Hundred thousand rands  (R500 000) External Works","sum",{"v":1,"d":"1 "},{"v":500000,"d":"500,000.00"}]
[]
[{"$nulls":5},{"v":41,"d":"41 "},null," Contractor charge to allow for handling costs & profit for the above item","%"]
{"$rows_empty":8}
[{"$nulls":7},"Carried forward to Summary ",{"$nulls":3},{"$f":"SUM(L1558:L1645)","v":0}]
[]
[772,1346,3,14,78,null,null,"BILL NO. 13"]
[]
[773,1347,3,14,78,null,null,"GLAZING"]
[]
[774,1348,3,14,78,null,null,"PREAMBLES",null,"QTY","RATE","AMOUNT"]
[]
[775,1349,3,14,78,null,null,"For preambles refer to \"General Specification of Materials and Methods to be used for Building Contracts\"  (GP /ASC)"]
[]
[776,1350,3,14,78,null,null,"CPAP ADJUSTMENT"]
[]
[777,1351,3,14,78,null,null,"Unless otherwise stated all items in this bill shall be deemed to fall into Work Group 150 for Contract Price Adjustment Provisions"]
[]
[778,1352,3,14,78,null,null,"SUPPLEMENTARY PREAMBLES"]
[]
[779,1353,3,14,78,null,null,"Float glass"]
[]
[780,1354,3,14,78,null,null,"The term \"float glass\" is used for monolithic annealed glass"]
[]
[781,1355,3,14,78,null,null,"Laminated glass"]
[]
[782,1356,3,14,78,null,null,"Laminated glass to have polyvinyl butyral (PVB) interlayer(s)"]
[]
[783,4098,3,14,78,null,null,"GLAZING  TO  STEEL  WITH  PUTTY:"]
[]
[784,4099,3,14,78,null,null,"4mm Clear float glass:"]
[]
[785,4100,3,14,78,{"v":1,"d":"1 "},null,"Panes exceeding 0,1 m2 and not exceeding 0,5 m2.","m²",{"v":100,"d":"100 "}]
{"$rows_empty":27}
[{"$nulls":7},"Carried forward to Summary ",{"$nulls":3},{"$f":"SUM(L1678:L1705)","v":0}]
[]
[]
[787,1361,3,15,79,null,null,"BILL  NO. 14"]
[]
[788,1362,3,15,79,null,null,"PAINTWORK"]
[]
[789,1363,3,15,79,null,null,"PREAMBLES",null,"QTY","RATE","AMOUNT"]
[]
[790,1364,3,15,79,null,null,"For preambles refer to \"General Specification of Materials and Methods to be used for Building Contracts\"  (GP /ASC)"]
[]
[791,1365,3,15,79,null,null,"CPAP ADJUSTMENT"]
[]
[792,1366,3,15,79,null,null,"Unless otherwise stated all items in this bill shall be deemed to fall into Work Group 152 for Contract Price Adjustment Provisions"]
[]
[793,1367,3,15,79,null,null,"PREPARATORY WORK TO EXISTING WORK"]
[]
[794,1368,3,15,79,null,null,"New plastered walls"]
[]
[795,1369,3,15,79,null,null," Ensure plastered surface to be clean and dry before painting. New plaster must be given adequate drying time (moisture content must be less than 15%) and treat with plaster primer before the first coat of paint is applied"]
[]
[796,1370,3,15,79,null,null,"Previously painted plastered surfaces"]
[]
[797,1371,3,15,79,null,null,"Surfaces shall be thoroughly washed down and allowed to dry completely before any paint is applied. Blistered or peeling paint shall be completely removed and cracks shall be opened, filled with a suitable filler and finished smooth"]
[]
[798,1372,3,15,79,null,null,"Previously painted metal surfaces"]
[]
[799,1373,3,15,79,null,null,"Surfaces shall be thoroughly rubbed and cleaned down.  Blistered or peeling paint shall be completely removed down to bare metal"]
[]
[800,1374,3,15,79,null,null,"Previously painted wood surfaces"]
[]
[801,1375,3,15,79,null,null,"Surfaces shall be thoroughly cleaned down.  Blistered or peeling paint shall be completely removed and cracks and crevices shall be primed, filled with suitable filler and finished smooth"]
[]
[802,1376,3,15,80,null,null,"Previously painted surfaces to receive epoxy coating"]
[]
[803,1377,3,15,80,null,null,"Previously painted surfaces are to be stripped back to the orignal firm substrate by abrading, flaem treatings or chemical removal, using an approved paint Remover. Once contanminants have been reomoved the surface is to be acid etched using an approved acid dilited 1:1 with water, applied with plasitc watering can at approximately 2m/lt, removing laitance and slightly roughening the surface to give a finish similar to that of fine sandpapaer. Rinse the entire surface with clean water and allow to dry; normally if well ventilated."]
[]
[804,1378,3,15,80,null,null,"ON INTERNAL FLOATED PLASTER SURFACES"]
[]
[805,1379,3,15,80,null,null,"Prepare one coat Professional Gypsum & Plaster Primer & 2 coats of Superior Low Sheen. Final colour: TBC."]
[]
[806,1380,3,15,80,{"v":1,"d":"1 "},null,"Walls","m²",{"v":1500,"d":"1,500 "}]
[]
[807,1383,3,15,80,null,null,"ON EXTERNAL FLOATED PLASTER SURFACES"]
[]
[808,1384,3,15,80,null,null,"Prepare one coat of plaster primer and two coats of Superior Lowsheen paint. Colour TBC"]
[]
[809,1385,3,15,80,{"v":2,"d":"2 "},null,"On walls","m²",{"v":100,"d":"100 "}]
[]
[810,1386,3,15,80,null,null,"ON PLASTERBOARD SURFACES"]
[]
[811,1387,3,15,80,null,null,"Prepare one coat Professional Gypsum & Plaster Primer & 2 coats of Superior Low Sheen. Final colour: TBC."]
[]
[812,1388,3,15,80,{"v":3,"d":"3 "},null,"Ceilings and cornices, including priming metal cover strips and nailheads","m²",{"v":1005,"d":"1,005 "}]
[]
[813,1390,3,15,81,null,null,"ON FIBRE-CEMENT BOARD SURFACES"]
[]
[814,1391,3,15,81,null,null,"One coat primer and painted two coats enamel paint."]
[]
[815,1392,3,15,81,{"v":4,"d":"4 "},null,"Fascias and barge boards, including priming metal jointing strips","m²",{"v":100,"d":"100 "}]
[]
[816,1393,3,15,81,null,null,"ON METAL SURFACES"]
[]
[817,1394,3,15,81,null,null,"One coat primer and Two coats enamel paint finish over edge (Colour: according to the architect)."]
[]
[818,1395,3,15,81,{"v":5,"d":"5 "},null,"New rainwater gutters and downpipes","m²",{"v":26,"d":"26 "}]
[]
[819,1396,3,15,81,{"v":6,"d":"6 "},null,"Gates, grilles, burglar screens, balustrades, etc (both sides measured over the full flat area)","m²",{"v":23,"d":"23 "}]
[]
[820,1397,3,15,81,{"v":7,"d":"7 "},null,"Rails, bars, pipes, etc","m",{"v":25,"d":"25 "}]
[]
[821,1398,3,15,81,null,null,"ON WOOD SURFACES"]
[]
[822,1399,3,15,81,null,null,"One coat primer and Two coats enamel paint finish over edge (Colour: according to the architect)."]
[]
[823,1400,3,15,81,{"v":8,"d":"8 "},null,"Timber doors and frames","m²",{"v":50,"d":"50 "}]
{"$rows_empty":23}
[{"$nulls":7},"Carried forward to Summary ",{"$nulls":3},{"$f":"SUM(L1747:L1800)","v":0}]
[]
[{"$nulls":7},"SECTION SUMMARY-BUILDING WORKS"]
[]
[]
[]
[825,689,3,16,82,{"v":1,"d":"1 "},null,"Bill No. 1 - Earthworks (Provisional)","Page",{"v":3,"d":"3 "},null,{"$f":"L659","v":0}]
[]
[826,748,3,16,82,{"v":2,"d":"2 "},null,"Bill No. 2 - Concrete, Formwork & Reinforcement","Page",{"v":5,"d":"5 "},null,{"$f":"L768","v":0}]
[]
[827,779,3,16,82,{"v":3,"d":"3 "},null,"Bill No. 3 - Masonry","Page",{"v":7,"d":"7 "},null,{"$f":"L868","v":0}]
[]
[828,819,3,16,82,{"v":4,"d":"4 "},null,"Bill No. 4 - Waterproofing","Page",{"v":8,"d":"8 "},null,{"$f":"L910","v":0}]
[]
[829,835,3,16,82,{"v":5,"d":"5 "},null,"Bill No. 5 - Carpentry and Joinery","Page",{"v":9,"d":"9 "},null,{"$f":"L967","v":0}]
[]
[831,967,3,16,82,{"v":6,"d":"6 "},null,"Bill No. 6 - Ceilings, Partitions and Access Flooring","Page",{"v":11,"d":"11 "},null,{"$f":"L1037","v":0}]
[]
[832,989,3,16,82,{"v":7,"d":"7 "},null,"Bill No. 7 - Floor Coverings, Plastic Linings, etc.","Page",{"v":13,"d":"13 "},null,{"$f":"L1122","v":0}]
[]
[833,1009,3,16,82,{"v":8,"d":"8 "},null,"Bill No. 8 - Iron Mongery","Page",{"v":15,"d":"15 "},null,{"$f":"L1220","v":0}]
[]
[834,1126,3,16,82,{"v":9,"d":"9 "},null,"Bill No. 9 - Metal Work","Page",{"v":19,"d":"19 "},null,{"$f":"L1380","v":0}]
[]
[835,1175,3,16,82,{"v":10,"d":"10 "},null,"Bill No. 10 - Plastering","Page",{"v":20,"d":"20 "},null,{"$f":"L1428","v":0}]
[]
[836,1198,3,16,82,{"v":11,"d":"11 "},null,"Bill No. 11 - Tiling","Page",{"v":22,"d":"22 "},null,{"$f":"L1508","v":0}]
[]
[837,1224,3,16,82,{"v":12,"d":"12 "},null,"Bill No. 12 - Plumbing and Drainage (Provisional)","Page",{"v":25,"d":"25 "},null,{"$f":"L1651","v":0}]
[]
[838,1345,3,16,82,{"v":13,"d":"13 "},null,"Bill No. 13 - Glazing","Page",{"v":26,"d":"26 "},null,{"$f":"L1707","v":0}]
[]
[839,1360,3,16,82,{"v":14,"d":"14 "},null,"Bill No. 14 - Paintwork","Page",{"v":28,"d":"28 "},null,{"$f":"L1806","v":0}]
{"$rows_empty":29}
[{"$nulls":7},"Carried Final Summary ",{"$nulls":3},{"$f":"SUM(L1812:L1851)","v":0}]

{"sheet":"1HVAC","index":2,"n_rows":206,"n_cols":9,"rows_kept":206,"merged":[[165,2,165,4],[166,2,166,4],[170,2,170,4],[171,2,171,4],[186,2,186,4],[187,2,187,4],[191,2,191,4],[192,2,192,4]]}
["RUSTENBURG NHLS"]
["BILL NO 1"]
["MECHANICAL INSTALLATIONS HVAC SYSTEMS "]
[]
["PAYMENT"]
["REFERS","ITEM",null,null,"DESCRIPTION","UNIT","QUANTITY","RATE","AMOUNT"]
["TO","NO"]
[]
[null,"1.00","HEATING, VENTILATION & AIR-CONDITIONING "]
[null,null,"SYSTEM"]
[]
[null,"1.01"," Air Conditioning Units"]
[]
[null,null,".01","Supply and installation of new 14,1 kW"]
[{"$nulls":3},"cassette inverter type heating and cooling  "]
[{"$nulls":3},"air-conditioning unit. Rate to be inclusive "]
[{"$nulls":3},"of all required building work, pipework and "]
[{"$nulls":3},"making good. ",null,"No.",6]
[]
[null,null,".02","Supply and installation of new 8,8 kW"]
[{"$nulls":3}," ceiling cassette inverter type heating and cooling  "]
[{"$nulls":3},"air-conditioning unit. Rate to be inclusive "]
[{"$nulls":3},"of all required building work, pipework and "]
[{"$nulls":3},"making good.  ",null,"No.",2]
[]
[null,null,".03","Supply and installation of new 7,1 kW"]
[{"$nulls":3}," underceiling cassette inverter type heating and cooling  "]
[{"$nulls":3},"air-conditioning unit. Rate to be inclusive "]
[{"$nulls":3},"of all required building work, pipework and "]
[{"$nulls":3},"making good.  ",null,"No.",3]
[]
[null,null,".04","Supply and installation of new 7,1 kW"]
[{"$nulls":3}," midwall split inverter type heating and cooling  "]
[{"$nulls":3},"air-conditioning unit. Rate to be inclusive "]
[{"$nulls":3},"of all required building work, pipework and "]
[{"$nulls":3},"making good.  ",null,"No.",1]
[]
[null,null,".05","Supply and installation of new 5.3 kW"]
[{"$nulls":3},"midwall split inverter type heating and cooling  "]
[{"$nulls":3},"air-conditioning unit. Rate to be inclusive "]
[{"$nulls":3},"of all required building work, pipework and "]
[{"$nulls":3},"making good.  ",null,"No.",0]
[]
[null,null,".06","Supply and installation of new 3.6 kW"]
[{"$nulls":3},"ceiling cassette split inverter type heating and cooling  "]
[{"$nulls":3},"air-conditioning unit. Rate to be inclusive "]
[{"$nulls":3},"of all required building work, pipework and "]
[{"$nulls":3},"making good.  ",null,"No.",2]
[]
[null,null,".07","Supply and installation of new 3.6 kW"]
[{"$nulls":3},"mid wall split inverter type heating and cooling  "]
[{"$nulls":3},"air-conditioning unit. Rate to be inclusive "]
[{"$nulls":3},"of all required building work, pipework and "]
[{"$nulls":3},"making good.  ",null,"No.",5]
[]
[null,null,".08","Supply and installation of new 2.6 kW"]
[{"$nulls":3},"midwall split inverter type heating and cooling  "]
[{"$nulls":3},"air-conditioning unit. Rate to be inclusive "]
[{"$nulls":3},"of all required building work, pipework and "]
[{"$nulls":3},"making good.  ",null,"No.",7]
{"$rows_empty":13}
[null,"CARRIED FORWARD"]
[{"$nulls":7},"R"]
[]
[null,"BROUGHT FORWARD",{"$nulls":5},"R"]
[]
[]
[null,"1.02","Fans and Ducting"]
[]
[null,null,"01.","Supply and install 315mm diameter in-line "]
[{"$nulls":3},"axial fresh air fan supplying 190 litres"]
[{"$nulls":3},"per second at 55 Pa complete with 2 sound"]
[{"$nulls":3},"attenuators, filter box and accessories.",null,"No.",1]
[]
[null,null,"02.","Supply and install 315mm diameter in-line "]
[{"$nulls":3},"axial extraction air fan supplying 190 litres"]
[{"$nulls":3},"per second at 90 Pa complete with 2 sound"]
[{"$nulls":3},"attenuators, filter box and accessories.",null,"No.",1]
[]
[null,null,"03.","Supply and install 315 mm diameter in-line  "]
[{"$nulls":3},"axial extraction air fan extracting 220 litres"]
[{"$nulls":3},"per second at 90 Pa complete with 1 sound"]
[{"$nulls":3},"attenuator and accessories.",null,"No.",2]
[]
[null,null,"04.","Supply and install 300 x 300mm  "]
[{"$nulls":3},"galvanized externally insulated ducting "]
[{"$nulls":3},"complete with supports and transition pieces.",null,"m",4]
[]
[null,null,"05.","Supply and install 300 x 250mm  "]
[{"$nulls":3},"galvanized externally insulated ducting "]
[{"$nulls":3},"complete with supports and transition pieces.",null,"m",8]
[]
[null,null,"06.","Supply and install 250 x 250mm "]
[{"$nulls":3},"galvanized externally insulated ducting "]
[{"$nulls":3},"complete with supports and transition pieces.",null,"m",12]
[]
[null,null,"07.","Supply and install internally insulated "]
[{"$nulls":3},"galvanized 150 mm spiral ducting rate to be "]
[{"$nulls":3},"complete with all required spigots and"]
[{"$nulls":3},"mounting accessories",null,"m",16]
[]
[null,null,"08.","Supply and install 300 x 250mm  uninsulated"]
[{"$nulls":3},"galvanized ducting c/w supports and transition pieces",null,"m",8]
[]
[null,null,"09.","Supply and install 250 x 250mm  uninsulated"]
[{"$nulls":3},"galvanized ducting c/w supports and transition pieces",null,"m",12]
[]
[null,null,"10.","Supply and install 200 x 250mm  uninsulated"]
[{"$nulls":3},"galvanized ducting c/w supports and transition pieces",null,"m",24]
[]
[null,null,"11.","Supply and install 200 x 200mm  uninsulated"]
[{"$nulls":3},"galvanized ducting c/w supports and transition pieces",null,"m",16]
[]
[null,null,"12.","Supply and install uninsulated galvanized 150mm "]
[{"$nulls":3},"diameter spiral ducting, rate to be complete with all "]
[{"$nulls":3},"required spigots and mounting accessories.",null,"m",48]
[]
[null,null,"13.","Supply and install 150mm disc valve",null,"No.",30]
[]
[null,null,"14.","Supply 350mm x 350mm natural anodised"]
[{"$nulls":3},"aluminium weather louvre.",null,"No.",4]
[]
[null,null,"15.","Supply and install 500mm x 300mm natural "]
[{"$nulls":3},"anodised alumimium door grille.",null,"No.",4]
[]
[]
[]
[]
[null,"CARRIED FORWARD",{"$nulls":5},"R"]
[]
[]
[null,"BROUGHT FORWARD",{"$nulls":5},"R"]
[]
[]
[null,null,"15.","Supply and install 300mm x 300mm white "]
[{"$nulls":3},"epoxy coated supply air grille, 150mm spigot.",null,"No.",16]
[]
[null,null,"16.","Supply & install 300 x 250 mm fire dampers "]
[{"$nulls":3},"with fusible links",null,"No.",4]
[]
[]
[null,"1.04","GENERAL",{"$nulls":5},{"$f":"IF(OR(AND(G154=\"Prov\",H154=\"Sum\"),(H154=\"PC Sum\")),\". . . . . . . . .00\",IF(ISERR(G154*H154),\"\",IF(G154*H154=0,\"\",ROUND(G154*H154,2))))","v":""}]
[{"$nulls":8},{"$f":"IF(OR(AND(G155=\"Prov\",H155=\"Sum\"),(H155=\"PC Sum\")),\". . . . . . . . .00\",IF(ISERR(G155*H155),\"\",IF(G155*H155=0,\"\",ROUND(G155*H155,2))))","v":""}]
[null,null,"Operating and Maintenance manuals:"]
[]
[null,null,".01","Prepare and supply three sets of "]
[{"$nulls":3},"detailed Operation and Maintenance Manuals"]
[{"$nulls":3},"including as-built drawings. An electronic "]
[{"$nulls":3},"version of the drawings shall also be supplied "]
[{"$nulls":3},"on compact disc in AutoCAD format. The "]
[{"$nulls":3},"manuals and compact disc shall be handed"]
[{"$nulls":3},"over to the Engineer.",null,"-","-","Sum"]
[]
[null,null,"Development of a syllabus for maintenance"]
[null,null,"and operations training"]
[]
[null,null,"02","HVAC Systems",null,"-","-","Sum"]
[]
[null,null,"Presentation of training course on HVAC "]
[null,null," Equipment Maintenance and Operations."]
[null,null,""]
[null,null,"03","HVAC  System",null,"-","-","Sum"]
[]
[null,null," COMMISSIONING"]
[]
[null,null,"Commissioning and testing of the installation"]
[]
[null,null,".01"," HVAC  Equipment",null,"-","-","Sum"]
{"$rows_empty":25}
[null,"TOTAL BILL NO 1 - CARRIED TO SUMMARY",{"$nulls":5},"R"]

{"sheet":"2 FIRE DETECTION","index":3,"n_rows":114,"n_cols":9,"rows_kept":114}
[{"$f":"'[1]1 HVAC'!A1","v":"RUSTENBURG NHLS"}]
[]
["BILL NO 2 FIRE DETECTION"]
[]
[]
[null,"ITEM",null,null,"DESCRIPTION","UNIT","QUAN-","RATE","AMOUNT"]
[null,"NO",{"$nulls":4},"TITY"]
[]
[null,"2.","FIRE DETECTION SYSTEM"]
[]
[null,"2.01","Supply, install,test and commission a complete"]
[null,null,"fire detection and alarm system as per "]
[null,null,"specification and local municipal by-laws."]
[]
[null,null,"The fire detection and alarm system shall "]
[null,null,"comprise of the following description and as per"]
[null,null,"drawing."]
[]
[null,"2.02","Supply and install 25mm metal conduits for fire"]
[null,null,"detection system wiring, including all round and"]
[null,null,"square termination boxes and P8000 trunking.",null,null,"m",420]
[]
[null,"2.03","Supply and install fire resistant type 1mm² wire,"]
[null,null,"interconnected between, the detectors, the"]
[null,null,"break glass units, strobe light and audible alarm.",null,null,"m",450]
[]
[null,"2.04","Supply and install 8 zone analogue "]
[null,null,"addressable fire control panel complete"]
[null,null,"with battery back-up system and printer as per"]
[null,null,"specification. Wall mounted 1,5m above ground in "]
[null,null,"area indicated on the Engineer's drawing.",null,null,"No",1]
[]
[null,"2.05","Supply and install analogue addressable optical "]
[null,null,"smoke detectors as per specification fixed to a"]
[null,null,"65mm diameter conduit box.",null,null,"No",44]
[]
[null,"2.06","Supply and install analogue addressable rate-of "]
[null,null,"rise heat detectors as per specification fixed to"]
[null,null,"a 65mm diameter conduit box.",null,null,"No",12]
[]
[null,"2.07","Supply and install optical smoke detectors or"]
[null,null,"rate-of rise heat detectors with base siren/sounder "]
[null,null,"warning unit as per specification fixed to a 65mm"]
[null,null,"diameter conduit box, as shown on the"]
[null,null,"drawing.",null,null,"No",8]
[]
[null,"2.08","Supply and install fire signage and accessories.",null,null,"-","-","Sum"]
[]
[null,"2.09","Supply and install analogue addressable 'Red'"]
[null,null,"strobe lights as per specification fixed to a  65mm"]
[null,null,"diameter conduit box.",null,null,"No",5]
[]
[null,"2.10","Supply and install Red \"fire\" manual call points"]
[null,null,"(Breakglass Unit) as per specification fixed to a"]
[null,null,"65mm diameter conduit box.",null,null,"No",3]
[]
[null,"2.11","Supply & Install Inert Gas Fire Supression "]
[null,null,"System for enclosed rooms including  all"]
[null,null,"accessories required to make the system complete"]
[]
[]
[null,"CARRIED FORWARD"]
[]
[]
[null,"BROUGHT FORWARD"]
[]
[]
[{"$nulls":3},"The rooms shall have the following sizes:"]
[]
[{"$nulls":3},".01","Server Room 8 m³","-","-","Sum"]
[]
[{"$nulls":3},".02","Archives 58 m³","-","-","Sum"]
[]
[null,"2.12","REMRAD System"]
[]
[null,null,"Supply and install REMRAD system linked"]
[null,null,"to fire panel and with wireless communication link"]
[null,null,"to security and emergency management systems."]
[null,null,"Installation to include one year's licence"]
[null,null,"including maintenance.",null,null,"No",1]
[]
[null,"2.13","Operation and Maintenance Manuals"]
[]
[null,null,".01","Prepare and supply three sets of detailed and"]
[{"$nulls":3},"Operation and Maintenance manuals"]
[{"$nulls":3},"including as-built drawings. An electronic "]
[{"$nulls":3},"version of the drawings shall also be supplied"]
[{"$nulls":3},"on compact disc in AutoCAD format. The"]
[{"$nulls":3},"manuals and compact disc shall be"]
[{"$nulls":3},"handed over to the Engineer.",null,"-","-","Sum"]
[]
[null,null,"Development of a syllabus for maintanance "]
[null,null,"and operations training"]
[]
[null,null,".02","Complete Fire Detection and Suppression"]
[{"$nulls":3},"System",null,"-","-","Sum"]
[]
[null,null,"Presentation of training course on Fire "]
[null,null,"Detection and Suppression Equipment"]
[null,null,"Maintenance and Operations"]
[]
[null,null,".03","Complete Fire Detection and Suppression",null,"-"]
[{"$nulls":3},"System",null,"-","-","Sum"]
[]
[null,"2.14","Commissioning"]
[]
[null,null,"Testing and commissioning of the entire fire"]
[null,null,"detection and suppression system including "]
[null,null,"issuing relevant installation certificates.",null,null,"-","-","Sum"]
[]
[]
[]
[]
[null,"TOTAL BILL NO 2 - CARRIED TO SUMMARY",{"$nulls":5},"R"]

{"sheet":"3 BUILDING WET SERVICES","index":4,"n_rows":176,"n_cols":9,"rows_kept":176}
[{"$f":"'[1]1 HVAC'!A1","v":"RUSTENBURG NHLS"}]
["BILL NO 3"]
["BUILDING WET SERVICES"]
[]
["PAYMENT"]
["REFERS","ITEM",null,null,"DESCRIPTION","UNIT","QUAN-","RATE","AMOUNT"]
["TO","NO",{"$nulls":4},"TITY"]
[null,"3.00"," PLUMBING"]
[]
[null,"3.01","Installation of domestic "]
[null,null,"copper water piping systems,"]
[null,null,"Class 0 SABS 460 with  capillary"]
[null,null,"copper fittings :"]
[]
[null,null,".01","Cold water piping installed on surface"]
[{"$nulls":3},"in ducts, against walls and soffits"]
[{"$nulls":3},"including bracketing"]
[]
[{"$nulls":3},".01","35 dia ","m",10]
[]
[{"$nulls":3},".02","28 dia ","m",12]
[]
[{"$nulls":3},".03","22 dia","m",30]
[]
[{"$nulls":3},".04","15 dia ","m",40]
[]
[null,null,".02","Hot water piping , installed on surface"]
[{"$nulls":3},"in ducts, against walls and soffits,"]
[{"$nulls":3},"inclusive of lagging , cladding and "]
[{"$nulls":3},"bracketing"]
[]
[{"$nulls":3},".01","22 dia","m",20]
[]
[{"$nulls":3},".02","15 dia ","m",48]
[]
[null,null,".03","Hot and cold water piping chased in"]
[{"$nulls":3},"walls including wrapping of pipes "]
[{"$nulls":3},"with builders paper, chasing and "]
[{"$nulls":3},"reinstatement of chased surfaces"]
[]
[{"$nulls":3},".03","22 dia","m",30]
[]
[{"$nulls":3},".04","15 dia ","m",60]
[]
[null,null,".04","Capillary soldered copper fititings"]
[{"$nulls":3},"for tees;"]
[]
[{"$nulls":3},".01","22 dia","No",80]
[]
[{"$nulls":3},".02","15 dia ","No",160]
[]
[{"$nulls":3},".03","28 dia x 22 dia ","No",20]
[]
[{"$nulls":3},".03","22 dia x 15 dia ","No",40]
[]
[null,null,".05","Capillary soldered copper fittings "]
[{"$nulls":3},"for elbows"]
[]
[{"$nulls":3},".01","22 dia","No",90]
[]
[{"$nulls":3},".02","15 dia ","No",110]
[]
[]
[]
[null,"Carried forward",{"$nulls":5},"R"]
[]
[]
[null,"Brought forward",{"$nulls":5},"R"]
[{"$nulls":8},{"$f":"IF(OR(AND(G69=\"Prov\",H69=\"Sum\"),(H69=\"PC Sum\")),\". . . . . . . . .00\",IF(ISERR(G69*H69),\"\",IF(G69*H69=0,\"\",ROUND(G69*H69,2))))","v":""}]
[]
[]
[null,null,".06","Shut off ball valves"]
[]
[{"$nulls":3},".01","20 dia","No",20]
[]
[{"$nulls":3},".02","15 dia","No",60]
[]
[null,null,".07","Strainers"]
[]
[{"$nulls":3},".01","25 dia","No",20]
[]
[{"$nulls":3},".02","20 dia","No",16]
[]
[null,null,".08","Non return valves"]
[]
[{"$nulls":3},".01","25 dia","No",10]
[]
[{"$nulls":3},".02","20 dia","No",15]
[]
[{"$nulls":3},".03","15 dia ","No",40]
[]
[null,"3.02","Supply and install domestic SABS"]
[null,null,"approved solar geysers including shut-off"]
[null,null,"valves, strainers, non-return valves"]
[null,null,"expansion relief valve, safety"]
[null,null,"valve and 3kW power provision (Indirect system);"]
[]
[null,null,".01","300 ltr",null,"No",2]
[]
[null,null,".02","200 ltr",null,"No",0]
[]
[null,null,".03","150 ltr",null,"No",1]
[]
[null,null,".04","Supply and install 150l electric"]
[{"$nulls":3},"geyser complete with all accessories to"]
[{"$nulls":3},"make installation complete.",null,"No",1]
[]
[]
[null,"3.03","Supply and installation of a 5l Hydro Boil",null,null,"No",1]
[]
[null,"3.04","Supply and install electrically driven domestic"]
[null,null,"water pump delivering 1.5l/s at 4.5 bar c/w"]
[null,null,"valves, pressure switches controls etc",null,null,"No",2]
[]
[null,"3.05","Allow for fittings to connect to main water"]
[null,null,"pipe",null,null,"sum","-","-"]
[]
[]
[null,"Carried forward",{"$nulls":5},"R"]
[]
[]
[null,"Brought forward",{"$nulls":5},"R"]
[]
[]
[null,"3.05","Supply and installation of water drainage"]
[null,null," pipe work and fittings"]
[]
[null,null,".01","uPVC piping installed on surface"]
[{"$nulls":3},"in ducts, against walls and soffits"]
[{"$nulls":3},"including bracketing"]
[]
[{"$nulls":3},".01","110 dia","m",36]
[]
[{"$nulls":3},".02","50 dia","No",80]
[]
[null,null,".02","Extra over 50 mm pipes for"]
[]
[{"$nulls":3},".01","Bend","No",10]
[]
[{"$nulls":3},".02","Bend with cleaning eye","No",24]
[]
[{"$nulls":3},".03","Junction with cleaning eye","No",30]
[]
[{"$nulls":3},".04","Vent Fitting with Cowl","No",40]
[]
[{"$nulls":3},".05","Butyl resealing P-trap","No",30]
[]
[{"$nulls":3},".06","Two way vent valves","No",8]
[]
[null,null,".03","Extra over 110 mm pipes for"]
[]
[{"$nulls":3},".01","Bend","No",20]
[]
[{"$nulls":3},".02","Bend with cleaning eye","No",22]
[]
[{"$nulls":3},".03","Junction with cleaning eye","No",8]
[]
[{"$nulls":3},".04","Butyl resealing P-trap","No",10]
[]
[{"$nulls":3},".05","Two way vent valve","No",12]
[]
[null,"3.06","Allow for fittings to connect to main sewer"]
[null,null,"pipe",null,null,"sum","-","-"]
[]
[null,"3.07","Tests and Inspection on completion"]
[null,null,"of installation work"]
[]
[null,null,".01","Pressure test completed water"]
[{"$nulls":3},"piping installation",null,"item",1]
[]
[]
[]
[]
[]
[]
[null,"TOTAL CARRIED FORWARD TO  SUMMARY",{"$nulls":5},"R"]

{"sheet":"4 GAS EQUIPMENT","index":5,"n_rows":67,"n_cols":9,"rows_kept":67}
[{"$f":"'[1]1 HVAC'!A1","v":"RUSTENBURG NHLS"}]
["BILL NO 4: "]
["GAS EQUIPMENT "]
[]
["PAYMENT"]
["REFERS","ITEM",null,null,"DESCRIPTION","UNIT","QUAN-","RATE","AMOUNT"]
["TO","NO",{"$nulls":4},"TITY"]
[]
[null,"4.00","GENERAL",{"$nulls":5},{"$f":"IF(OR(AND(G9=\"Prov\",H9=\"Sum\"),(H9=\"PC Sum\")),\". . . . . . . . .00\",IF(ISERR(G9*H9),\"\",IF(G9*H9=0,\"\",ROUND(G9*H9,2))))","v":""}]
[{"$nulls":8},{"$f":"IF(OR(AND(G10=\"Prov\",H10=\"Sum\"),(H10=\"PC Sum\")),\". . . . . . . . .00\",IF(ISERR(G10*H10),\"\",IF(G10*H10=0,\"\",ROUND(G10*H10,2))))","v":""}]
[null,"4.01","GAS"]
[]
[null,null,".01","Supply and install 48kg LPG free standing gas"]
[{"$nulls":3},"cylinders to be installed in a lockable cage."]
[{"$nulls":3},"LP gas cylinders are to be installed in an upright"]
[{"$nulls":3},"position supported and bracketed to prevent fall."]
[{"$nulls":3},"Cylinders to be installed in a lockable cage to"]
[{"$nulls":3},"Architect's specification.",null,"No",4]
[]
[null,null,".02","Supply and install a 2000 x 1500 x 600mm LPG"]
[{"$nulls":3},"cylinder lockable cage. ",null,"No",1]
[]
[null,null,".03","Install dia 22mm 2 way gas selector valve in"]
[{"$nulls":3},"the middle of the cylinders linking both gas "]
[{"$nulls":3},"cylinders.",null,"No",2]
[]
[null,null,".04","Install 4 off dia 22mm gas isolation valves outside"]
[{"$nulls":3},"after each gas cylinder",null,"No",2]
[]
[null,null,".05","Supply and install dia 75mm pvc sleeve which is"]
[{"$nulls":3},"required to be laid in under the concrete surface"]
[{"$nulls":3},"from the gas cylinders outside to the indoor"]
[{"$nulls":3},"position of gas stoves",null,"m",2]
[]
[null,null,".06","Install dia 22mm copper mains gas pipe",null,"m",20]
[]
[null,null,".07","Install dia 15mm copper gas pipe",null,"m",12]
[]
[null,null,".08","Install dia 22mm elbows",null,"No",6]
[]
[null,null,".09","Install dia 15mm elbows",null,"No",12]
[]
[null,null,".10","Dia 22mm x dia15mm x dia 22mm red tees",null,"No",12]
{"$rows_empty":23}
[null,"TOTAL BILL NO 4- CARRIED TO SUMMARY"]

{"sheet":"5 LIFT","index":6,"n_rows":66,"n_cols":9,"rows_kept":66}
[]
[{"$f":"'[1]1 HVAC'!A1","v":"RUSTENBURG NHLS"}]
["BILL NO. 5  LIFT "]
["PAYMENT","ITEM"]
["REFERS"," NO",null,null,"DESCRIPTION","UNIT","QUAN-","RATE","AMOUNT"]
["TO",{"$nulls":5},"TITY"]
[null,"5.00"," LIFTS ",{"$nulls":5},{"$f":"IF(OR(AND(G7=\"Prov\",H7=\"Sum\"),(H7=\"PC Sum\")),\". . . . . . . . .00\",IF(ISERR(G7*H7),\"\",IF(G7*H7=0,\"\",ROUND(G7*H7,2))))","v":""}]
[{"$nulls":8},{"$f":"IF(OR(AND(G8=\"Prov\",H8=\"Sum\"),(H8=\"PC Sum\")),\". . . . . . . . .00\",IF(ISERR(G8*H8),\"\",IF(G8*H8=0,\"\",ROUND(G8*H8,2))))","v":""}]
[{"$nulls":8},{"$f":"IF(OR(AND(G9=\"Prov\",H9=\"Sum\"),(H9=\"PC Sum\")),\". . . . . . . . .00\",IF(ISERR(G9*H9),\"\",IF(G9*H9=0,\"\",ROUND(G9*H9,2))))","v":""}]
[null,"5.01","Supply and installation of elevator complete "]
[null,null," with accessories"]
[]
["Refer to Lift",null,".01","1125 kg 3 stop lift for Main Building",null,"Sum",1]
["Specifications"]
[null,null,".02","Allow for interface with Fire Detection",null,"-","-","Sum"]
[]
[]
[]
[null,"5.02"," COMMISSIONING"]
[]
[null,null,"Commissioning and testing of the installation"]
[]
[null,null,".01","Lifts",null,"-","-","Sum"]
{"$rows_empty":42}
[null,"TOTAL BILL NO 5- CARRIED TO SUMMARY",{"$nulls":5},"R"]

{"sheet":"MECHANICAL MAIN SUMMARY","index":7,"n_rows":42,"n_cols":5,"rows_kept":42}
[]
[{"$f":"'[1]1 HVAC'!A1","v":"RUSTENBURG NHLS"}]
[]
[]
["SUMMARY: SCHEDULE OF QUANTITIES: MECHANICAL SERVICES"]
[]
[]
[]
[]
["BILL NO 1: AIR CONDITIONING AND VENTILATION ",{"$nulls":3},"R"]
[]
[]
[]
[]
[]
["BILL NO 2: FIRE DETECTION",{"$nulls":3},"R"]
[]
[]
[]
[]
[]
["BILL NO 3: WET SERVICES",{"$nulls":3},"R"]
[]
[]
[]
[]
[]
["BILL NO 4: GAS",{"$nulls":3},"R"]
[]
[]
[]
[]
[]
["BILL NO 5: LIFT",{"$nulls":3},"R"]
[]
[]
[]
[]
[]
[]
["TOTAL OF SCHEDULE OF QUANTITIES: MECHANICAL SERVICES"]
["CARRIED TO CALCULATION OF SERVICES SUMMARY . . . . . . . . . . . . . . . . . . . . . . . . . . . . . . . . . . . . . .",{"$nulls":3},"R"]

{"sheet":"SITE RETICULATION","index":8,"n_rows":208,"n_cols":6,"rows_kept":208,"merged":[[3,7,3,8]]}
[null,"NHLS"]
[null,"ELECTRICAL INSTALLATION BILL OF QUANTITIES"]
[]
["BILL No. 1: SITE RETICULATION & GENERAL INSTALLATIONS"]
[{"$nulls":4},"RATE","AMOUNT"]
["ITEM","DESCRIPTION","UNIT","QTY","R","R"]
[]
[]
["1.1","DISTRIBUTION BOARDS"]
[]
[null,"Supply and Installation of distribution boards as per attached "]
[null,"drawing and specifications with labels, legends, danger warning "]
[null,"signs,and green locks with master keys."]
[]
["1.1.1","Main Distribution Board MDB (Flush mounted with lockable doors)","no.",1]
[]
["1.1.2","Sub Distribution Board DB-G (Flush mounted with lockable doors)","no.",1]
[]
["1.1.3","Sub Distribution Board DB-F (Flush mounted with lockable doors)","no.",1]
[]
["1.1.4","450x450mm Telkom Distribution Board (Flush mounted with ","no.",1]
[null,"lockable doors)"]
[]
["1.2","LV DISTRIBUTION CABLES"]
[]
[null,"Supply and installation of 600/1000V PVC/SWA/PVC/PVC "]
[null,"copper cables installed in ground, ducts, cable trays, and ceiling "]
[null,"voids"]
[]
["1.2.1","185mm² x 4 core copper cable (Main Supply Cable)","m",300]
[]
["1.2.2","95mm² bare copper earth wire (BCEW)","m",300]
[]
["1.2.3","95mm² x 4 core copper cable (DB-G Main Supply Cable)","m",30]
[]
["1.2.4","50mm² bare copper earth wire (BCEW)","m",30]
[]
["1.2.5","25mm² x 4 core copper cable (DB-F Main Supply Cable)","m",30]
[]
["1.2.6","16mm² bare copper earth wire (BCEW)","m",30]
[]
["1.2.7","16mm² x 4 core copper cable ","m",20]
[]
["1.2.8","10mm² bare copper earth wire (BCEW)","m",20]
[]
["1.2.9","10mm² x 4 core copper cable ","m",20]
[]
["1.2.10","6mm² bare copper earth wire (BCEW)","m",20]
[]
["1.2.11","6mm² x 4 core copper cable ","m",50]
[]
["1.2.12","4mm² bare copper earth wire (BCEW)","m",50]
[]
["1.2.13","4mm² x 4 core copper cable ","m",1600]
[]
[null,"CARRIED FORWARD"]
[]
[]
["BILL No. 1: SITE RETICULATION"]
[{"$nulls":4},"RATE","AMOUNT"]
["ITEM","DESCRIPTION","UNIT","QTY","R","R"]
[]
[null,"BROUGHT FORWARD"]
[]
["1.2.14","2,5mm² bare copper earth wire (BCEW)","m",1600]
[]
["1.2.15","4mm² x 3 core copper cable ","m",1000]
[]
["1.2.16","2,5mm² bare copper earth wire (BCEW)","m",1000]
[]
["1.2.17","2,5mm² x 3 core copper cable ","m",100]
[]
["1.3","CABLE TERMINATIONS"]
[]
[null,"Supply and installation of 600/1000V PVC/SWA/PVC/PVC copper"]
[null,"cable terminations complete with  lugs and earthings as required "]
[null,"and specified"]
[]
["1.3.1","185mm² x 4 core copper cable (Main Supply Cable)","no.",2]
[]
["1.3.2","95mm² bare copper earth wire (BCEW)","no.",2]
[]
["1.3.3","95mm² x 4 core copper cable (DB-G Main Supply Cable)","no.",2]
[]
["1.3.4","50mm² bare copper earth wire (BCEW)","no.",2]
[]
["1.3.5","25mm² x 4 core copper cable (DB-F Main Supply Cable)","no.",2]
[]
["1.3.6","16mm² bare copper earth wire (BCEW)","no.",2]
[]
["1.3.7","16mm² x 4 core copper cable ","no.",2]
[]
["1.3.8","10mm² bare copper earth wire (BCEW)","no.",2]
[]
["1.3.9","10mm² x 4 core copper cable ","no.",2]
[]
["1.3.10","6mm² bare copper earth wire (BCEW)","no.",2]
[]
["1.3.11","6mm² x 4 core copper cable ","no.",2]
[]
["1.3.12","4mm² bare copper earth wire (BCEW)","no.",2]
[]
["1.3.13","4mm² x 4 core copper cable ","no.",54]
[]
["1.3.14","2,5mm² bare copper earth wire (BCEW)","no.",54]
[]
["1.3.15","4mm² x 3 core copper cable ","no.",54]
[]
["1.3.16","2,5mm² bare copper earth wire (BCEW)","no.",54]
[]
["1.3.17","2,5mm² x 3 core copper cable ","no.",2]
[]
[null,"CARRIED FORWARD"]
[]
[]
["BILL No. 1: SITE RETICULATION"]
[{"$nulls":4},"RATE","AMOUNT"]
["ITEM","DESCRIPTION","UNIT","QTY","R","R"]
[]
[null,"BROUGHT FORWARD"]
[]
[1.5,"MANHOLES AND CABLE SLEEVES"," "]
[]
[null,"Supply and install cable sleeves and manholes as indicated on "]
[null,"drawings"]
[]
["1.5.1","110mmØ  Kable Flex uPVC sleeves.","m",300]
[]
["1.5.2","110mmØ  Kable Flex uPVC slow bend","no.",5]
[]
[]
["1.6","TRENCHING AND BACK FILLING"]
[]
[null,"All prices below includes the excavation of trenches and holes,"]
[null,"separating of stones and soil, rocks etc, levelling of trench "]
[null,"beds, refill compacting  and reparation of all surfaces to the "]
[null,"original finish (600mm deep x 300mm wide)"]
[]
["1.6.1","Excavating in Earth","m3",90]
[]
["1.6.2","Excavating in Soft Rock","m3",1,null,"Rate Only"]
[]
["1.6.3","Excavating in Hard Rock","m3",1,null,"Rate Only"]
[]
["1.7","CABLE MARKERS AND DANGER WARNING TAPE"]
[]
[null,"Supply and installation of cable markers and danger warning "]
[null,"tape as specified"]
[]
["1.7.1","Low voltage concrete cable route markers","no.",5]
[]
["1.7.2","Low voltage danger warning tape ","m",300]
[]
[]
[]
[]
[]
[null,"CARRIED FORWARD"]
[]
[]
["BILL No. 1: SITE RETICULATION"]
[{"$nulls":4},"RATE","AMOUNT"]
["ITEM","DESCRIPTION","UNIT","QTY","R","R"]
[]
[null,"BROUGHT FORWARD"]
[]
["1.8","EARTHING AND LIGHTINING PROTECTION"]
[]
["1.8.1","16mm² BCEW down conductor","m",352]
[]
["1.8.2","8mm² Diameter Round Aluminium Ground Conductor","m",150]
[]
["1.8.3","1500mm long, 16mm², A grade copper earth spikes","no.",10]
[]
["1.8.4","Accessories such as ferrules, clamps, brackets, test boxes etc"]
[null,"to make installation complete","sum",1]
[]
["1.8.5","Testing and certification of the earthing and lighting protection"]
[null,"system  including all test equipment required as well as the  "]
[null,"issuing of an earthing certification by a qualified  person","sum",1]
[]
["1.9","UPS"]
[]
["1.9.1","Supply and install 30kVA UPS with 30 minutes battery back up"]
[null,"@ 0.9 power factor complete with a wrap around maintenance"]
[null,"bypass (external bypass). The UPS must have an SNMP card "]
[null,"and must be able to send the following alerts; common alarm,"]
[null,"bypass active, Load on battery, and load on bypass. "]
[null,"Note: UPS must be able to work in parallel. ","no.",2]
[]
["1.9.2","Supply and install UPS paralleling kit/panel to parallel the"]
[null,"2 x 30kVA UPS above.","sum",1]
[]
["1.9.3","Supply operating & maintenance manuals, test & commissioning ","copies",3]
[null,"results"]
[]
["1.9.4","Supply maintenance and warranty for 12 months","sum",1]
[]
["1.10","TESTING AND COMISSIONING"]
[]
["1.10.1","Testing and comissioning of the entire low voltage network and "]
[null,"area lighting including the provision of  all test equipment required "]
[null,"and issuing of a certificate of compliance for the installation.","sum",1]
[]
["1.10.2","Provide as built drawings for the whole electrical installation","set",3]
[null,"to the engineer"]
[]
[null,"TOTAL CARRIED FORWARD TO SUMMARY"]

{"sheet":"LIGHTING &POWER","index":9,"n_rows":193,"n_cols":6,"rows_kept":193}
["                                                  ","NHLS"]
[null,"ELECTRICAL INSTALLATION BILL OF QUANTITIES"]
[]
["BILL No. 2:LIGHTING AND POWER INSTALLATION"]
[{"$nulls":4},"RATE","AMOUNT"]
["ITEM","DESCRIPTION","UNIT","QTY","R","R"]
[]
["2.0","CONDUITS AND  ACCESSORIES"]
[null,"Supply and install new PVC conduit chased in walls, "]
[null,"installed into ceiling voids, cast into concrete as specified"]
[null,"complete with accessories."]
["2.0.1","20mm diameter PVC conduits complete with accessories","m",7000]
[]
["2.0.2","25mm diameter PVC conduits complete with accessories","m",3500]
[]
["2.0.3","32mm diameter PVC conduits complete with accessories","m",210]
[]
["2.0.4","32mm diameter bosal conduits complete with accessories","m",150]
[]
["2.0.5","150x150x50mm draw box flush mounted","no.",4]
[]
["2.0.6","Electrical slab box (210x130x150mm) complete with cover","no.",27]
[]
["2.1","CONDUCTORS "]
[null,"Supply and installation of the following PVC"]
[null,"insulated conductors with colours as specified, into"]
[null,"trunking and conduit including terminations on both"]
[null,"ends, to specification"]
[]
["2.1.1","1,5mm²","m",8500]
[]
["2.1.2","2,5mm²","m",8500]
[]
["2.1.3","4mm²","m",6750]
[]
["2.1.4","6mm²","m",450]
[]
["2.1.5","10mm²","m",200]
[]
["2.1.6","2,5mm² bare copper earth wire","m",150]
[]
["2.1.7","4mm² bare copper earth wire","m",150]
[]
["2.1.8","6mm² bare copper earth wire","m",100]
[]
["2.2","LIGHT SWITCHES"]
[null,"Supply and install the following flush mounted light switches"]
[null,"complete with wall boxes as specified and indicated on "]
[null,"drawings"]
[]
["2.2.1","1 Lever, 1 Way Light Switch","no.",6]
[]
["2.2.2","1 Lever, 2 Way Light Switch","no.",14]
[]
["2.2.3","Photocell, 10A, 240V.","no.",3]
[]
[null,"CARRIED FORWARD"]
[]
[]
[]
[]
[]
[]
["BILL No. 2:LIGHTING AND POWER INSTALLATION"]
[{"$nulls":4},"RATE","AMOUNT"]
["ITEM","DESCRIPTION","UNIT","QTY","R","R"]
[]
[null,"BROUGHT FORWARD"]
[]
["2.2.4","Dual technology occupancy sensor, 10A, 240V, 50Hz.","no.",52]
[]
["2.3","POWER SKIRTING, TRUNKING CABLE TRAY & WIRE MESH"]
[]
[null,"Supply and install the following wire ways complete with"]
[null,"mounting accessories, tees, bends, end caps etc"]
[]
["2.3.1","230mm wide perforated galvanised steel cable tray complete with "]
[null,"mounting and suspending accessories, medium duty","m",450]
[]
["2.3.2","230mm galvanised steel cable wire mesh basket complete "]
[null,"with mounting, splicing and suspending accessories","m",450]
[]
["2.3.3","P2000 trunking complete with mounting  and suspending "]
[null,"accessories, tees, end caps, bends etc","m",250]
[]
["2.3.4","2 cover, three compartment, galvanised steel, powder coated"]
[null,"power skirting with mounting accessories, end caps, elbows,"]
[null,"etc. Color: White","m",400]
[]
["2.4","SOCKET OUTLETS AND ISOLATORS"]
[]
[null,"Supply and install the following socket outlets and isolators"]
[null,"as specified and as indicated on drawings."]
[]
["2.4.1","Normal, white single switched socket outlet mounted on","no.",30]
[null,"power skirting"]
[]
["2.4.2","Single, normal, switched socket outlet wall mounted","no.",10]
[]
["2.4.3","Dedicated, red single switched socket outlet mounted on","no.",80]
[null,"power skirting"]
[]
["2.4.4","UPS, violet single switched socket outlet mounted on","no.",50]
[null,"power skirting"]
[]
["2.4.5","Combination switched socket with 1 normal 16A ","no.",145]
[null,"outlet + 1 Euro 3 pin socket outlets"]
[]
["2.4.6","20A double pole isolator  in weather proof box for AC units","no.",30]
[]
["2.4.7","20A double pole isolator in ceiling or wall mounted","no.",30]
[]
[]
[null,"CARRIED FORWARD"]
[]
[]
[]
[]
["BILL No. 2:LIGHTING AND POWER INSTALLATION"]
[{"$nulls":4},"RATE","AMOUNT"]
["ITEM","DESCRIPTION","UNIT","QTY","R","R"]
[]
[null,"BROUGHT FORWARD"]
[]
["2.4.8","40A double pole isolator for geysers","no.",4]
[]
["2.4.9","60A tripple pole isolator weather proof box for AC units","no.",20]
[]
["2.4.10","5A unswitched socket outlets for light fittings","no.",100]
[]
["2.4.11","16A, 2P+E Industrial Socket Outlet","no.",10]
[]
["2.4.12","32A, 3P+N+E, Caravan Plug/ Industrial Socket Outlet","no.",6]
[]
["2.4.13","Double, normal, switched socket outlet wall mounted","no.",6]
[]
["2.5","DATA AND TELEPHONE"]
[]
[null,"Supply and installtion of data and telephone points on power"]
[null,"skirting or wall mounted as specified and as indicated on "]
[null,"drawings"]
[]
["2.5.1","RJ45 Data points","no.",70]
[]
["2.5.2","RJ45 Telephone points","no.",70]
[]
["2.6","LIGHTING INSTALLATION"]
[]
[null,"Supply and installation of the following light fittings, complete "]
[null,"with lamps and electronic control gear, mounting accessories "]
[null,"as specified and as indicated on attached drawings."]
[]
["2.6.1","Batten-55W-LED By Lascon Or Similar Approved  light fitting -TYPE V","no.",24]
[]
["2.6.2","22W LED decorative down light fitting- Beka Rondo by"]
[null,"Beka or similar approved - TYPE B","no.",170]
[]
["2.6.3","22W LED decorative, circular bulkhead light fitting- Beka"]
[null,"Series 50 by Beka or similar approved - TYPE D","no.",20]
[]
["2.6.4","65W LED decorative reccessed light fitting, 1200x600mm"]
[null,"Beka Dari or similar approved - TYPE I","no.",100]
[]
["2.6.5","Same as above with 1 hour emergency battery back-up system"]
[null,"TYPE IE","no.",30]
[]
["2.6.6","9w LED Decorative Inground LED, Type S","no.",15]
[]
[null,"CARRIED FORWARD"]
[]
[]
["BILL No. 2:LIGHTING AND POWER INSTALLATION"]
[{"$nulls":4},"RATE","AMOUNT"]
["ITEM","DESCRIPTION","UNIT","QTY","R","R"]
[]
[null,"BROUGHT FORWARD"]
[]
["2.6.7","LED Linear Light 14w/m by lightnet or similar approved: Type L","no.",150]
[]
["2.7","SCANNING OF SERVICES"]
[]
["2.7.1","Provide scanning for underground services on all the cable "]
[null,"routes and allow for exposing by hand such services","sum",1]
[]
["2.8","INTERFACING WITH FIRE DETECTION INSTALLATION"]
[]
["2.8.1","Allow for interfacing of signals from the fire detection ","sum",1]
[null,"installation with contactors in distribution boards. Fire "]
[null,"signal shall trip the contactors in DBs during a fire shutting"]
[null,"down the whole HVAC system"]
[]
[]
[null,"TOTAL CARRIED FORWARD TO SUMMARY"]

{"sheet":"CCTV & ACCESS","index":10,"n_rows":95,"n_cols":6,"rows_kept":95}
[null,"NHLS"]
[]
[null,"ELECTRICAL INSTALLATION BILL OF QUANTITIES"]
[]
["BILL No. 3:CCTV & ACCESS CONTROL INSTALLATION"]
[{"$nulls":4},"RATE","AMOUNT"]
["ITEM","DESCRIPTION","UNIT","QTY","R","R"]
[]
[]
["3.0","CCTV INSTALLATION"]
[null,"Supply, install, and install a complete CCTV installation "]
[null,"as indicated on drawings and as per attached"]
[null,"specifications (Avigilon system or similar approved)"]
[]
["3.0.1","3.0 MP (1080p) WDR  LightCatcher, 3.3-9mm f/1.3 P-iris lens, Integrated IR+ Junction box for the H4A HD Bullet, Day & Night Vision","no.",8]
[]
["3.0.2","3.0 MP WDR, LightCatcher,  Day/Night, Outdoor Dome, 2.8mm f/1.2, IR + in-Ceiling Mount Adapter","no.",18]
[]
["3.0.3","8.0 MP, H5A Fisheye Dome Camera,","no.",2]
[null,"LightCatcher, Day/Night, WDR, 1.41mm f/2.0,"]
[null,"Next-Generation Analytics, Integrated IR"]
[]
["3.0.4","AI NVR Value, 12TB, NA ; 1U Rack Mount; Linux Operating System with Analytics kit and Duel redundant PSU","no.",1]
[]
["3.0.5","AI NVR Value, 6TB, NA ; 1U Rack Mount; Linux Operating System with Analytics kit and Duel redundant PSU","no.",1]
[]
[]
["3.0.6","230mm galvanised steel cable wire mesh basket ","m",150]
[null,"complete with mounting, splicing and suspending"]
[null,"accessories"]
[]
["3.0.7","Testing and commsioning of the CCTV system","sum",1]
[]
["3.0.8","Training of user personnel","sum",1]
[]
["3.0.9","Operating and maintenace manuals ","copies",3]
[]
["3.0.10","As built drawings for the CCTV system","copies",3]
[]
["3.0.11","Wiring and cabling for all the cameras","Lot",1]
[]
["3.0.12","Poles and mounting accessories","Lot",1]
[]
["3.1","ACCESS CONTROL INSTALLATION"]
[]
["3.1.1","Supply and install proximity card readers","no.",5]
[]
["3.1.2","Supply and install access control software complete "]
[null,"with desk top PC in server room","sum",1]
[]
["3.1.3","Supply and install IR sensor no touch exit button","no.",5]
[null,"CARRIED FORWARD"]
[]
[]
["BILL No. 3:CCTV & ACCESS CONTROL INSTALLATION"]
[{"$nulls":4},"RATE","AMOUNT"]
["ITEM","DESCRIPTION","UNIT","QTY","R","R"]
[]
[null,"BROUGHT FORWARD"]
[]
["3.1.4","Supply and install Mylar screened twisted pair cable "]
[null,"for access control applications","m",{"$f":"520","v":520}]
[]
["3.1.5","Supply and install 300kg magnetic door locks complete "]
[null,"with mounting brackets","no.",5]
[]
["3.1.6","Supply and install door controllers","no.",5]
[]
["3.1.7","Supply and install power supply units for the whole"]
[null,"access control installation","sum",1]
[]
["3.1.8","Testing and commissioning of the entire access control ","sum",1]
[null,"installation system"]
[]
["3.1.9","HID Lumidign Biometric Finger Print Reader","no.",5]
[]
["3.1.10","Operating and maintenance manuals","copies",3]
[]
["3.1.11","Training of user personnel","sum",1]
[]
["3.1.12","Produce as built drawings for the whole access control "]
[null,"installation","copies",3]
[]
["3.1.13","Emergency Green Breakglass Unit/Call Point"]
[null,"re-settable type","no.",5]
[]
[]
["3.2","CABLING"]
[]
["3.2.1","Twisted Pair cable - Stranded (14/0.2mm) - 21AWG, brown and green sheath to match standard HBus wire colours","m",562]
[]
["3.2.2","Power Conductors - Stranded (24/0.2mm) - 18AWG","m",562]
[]
[]
[null,"TOTAL CARRIED FORWARD TO SUMMARY"]

{"sheet":"ELECTRICAL MAIN SUMMARY","index":11,"n_rows":20,"n_cols":2,"rows_kept":20}
[]
[null,"SUMMARY "]
[]
[null,"NHLS"]
[]
[null,"ELECTRICAL INSTALLATION"]
[]
[]
[1,"Bill no. 1: Site Reticulation & General Installations"]
[]
[]
[2,"Bill no. 2: Lighting & Power Installation"]
[]
[]
[3,"Bill no. 3: CCTV & Access Control"]
[]
[]
[]
[]
[null,"TOTAL CARRIED TO FINAL SUMMARY "]

{"sheet":"FINAL SUMMARY","index":12,"n_rows":35,"n_cols":7,"rows_kept":35}
[]
[null,null,"FINAL SUMMARY",{"$nulls":3},"AMOUNT"]
[]
[]
[null,null,"PRELIMINARIES AND GENERALS "]
[]
[null,null,"BUILDING WORKS"]
[]
[null,null,"MECHANICAL WORKS"]
[]
[null,null,"ELECTRICAL WORKS"]
[]
[]
[null,null,"SUB -TOTAL"]
[]
[]
[]
[]
[null,null,"CONTIGENCIES"]
[]
[null,null,"Allow 10% Contigencies of the measured works including the preliminaries and general, to be directed by the project manager"]
[]
[]
[null,null,"SUBTOTAL"]
[]
[]
[null,null,"Add Value Added Tax at the rate of 15%"]
{"$rows_empty":7}
[null,null,"Carried to Form of Offer and Acceptance"]